{"text_format":"1","workbook":"xlsx","n_sheets":15,"sheets":["Instrukcija","Sakuma lapa","Gramatiņas dati","Darbnespējas lapas","VSAOI data","VSAOI transakcijas","Vidējas likmes","Zinas par DN","VSAOI vertikāli","VSAOI horizontāli","VSAOI pa darbiniekiem","Ienākumi pa gruppam - Alga","Ienākumi pa gruppam - st.likme","Format","Tiesibas"],"not_rendered":{"charts":0,"images":6,"macros":1,"external_links":0,"defined_names":16,"comments":5,"pivot_tables":2},"unopened":[],"bounds":{"document_bytes":16777216,"sheet_cells":100000,"rows_first":2000,"rows_last":500,"rows_between":2000,"halvings":0,"cell_chars":16384,"cell_head_chars":4096},"cells_cut":0,"cells_raw":0,"read":"whole","date_system":"1900"}

{"sheet":"Instrukcija","index":0,"n_rows":68,"n_cols":4,"rows_kept":68,"cut":false,"hidden":false,"merged":[[67,1,67,17],[29,1,29,17],[5,1,5,17],[46,1,46,17],[1,2,1,8],[2,3,2,9],[3,3,3,9]]}
[]
[null,"Apraksts:","https://exceldarbariki.mozello.lv/produkti/vsaoi/"]
[null,"Kā ieslēgt makrosus:",null,"https://exceldarbariki.mozello.lv/produkti/instrukcijas/"]
[null,"Kā atbloķēt makrosus:",null,"https://exceldarbariki.mozello.lv/produkti/ka-atbloket-makrosus/"]
[]
[null,"VSAOI deklarācijas"]
[]
[]
[]
[]
[]
[]
[]
[]
[]
[]
[]
[]
[]
[]
[]
[]
[]
[]
[]
[]
[]
[]
[]
[null,"Algas nodokļa grāmatiņas"]
[null,"Atslkaite nepieciešama par visu parskata periodu"]
[]
[]
[]
[]
[]
[]
[]
[]
[]
[]
[]
[]
[]
[]
[]
[null,"Darbinieku darbnespējas lapas"]
[null,"Atslkaite nepieciešama par visu parskata periodu"]
[]
[]
[]
[]
[]
[]
[]
[]
[]
[]
[]
[]
[]
[]
[]
[]
[]
[]
[]
[null,"Pārskats par darbinieku vidējām stundas likmēm"]

{"sheet":"Sakuma lapa","index":1,"n_rows":30,"n_cols":18,"rows_kept":30,"cut":false,"hidden":false,"merged":[[27,7,27,9],[29,14,29,17],[1,7,1,9],[2,7,2,9],[5,7,5,9],[13,7,13,8],[15,7,15,8],[6,7,6,9],[11,15,11,16],[7,7,7,8],[7,9,7,10],[9,7,9,8],[10,7,10,8],[11,7,11,8],[26,7,26,9],[18,7,18,9],[14,7,14,8],[3,1,3,3],[7,1,7,3],[24,7,24,9],[15,1,15,3],[12,7,12,8],[22,7,22,9],[20,7,20,9],[21,7,21,9],[19,7,19,9],[17,2,17,3],[3,7,3,9],[11,1,11,3]]}
[]
[null,null,null,null,null,null,null,"Decimālais atdalītais",null,null,{"$f":"MID(1/10,2,1)","v":"."}]
[null,null,null,null,null,null,null,"Tūkstošu atdalītais"]
[null,"Nolasītais periods",null,null,null,null,null,"VSAOI kopsavilkuma izskats",null,null,"Horizontāli"]
[null,null,null,null,null,null,null,null,null,null,null,null,null,"Nodokļu aprēķini var nesakrīt"]
[null,null,null,null,null,null,null,"IIN ar nodokļu grāmatiņu",null,null,0.2,null,null," - ja ir parejošais atvaļinājums, kad IIN samaksa uzreiz, bet Bruto alga sadalīta 2 mēnešos"]
[null,null,null,null,null,null,null,"IIN bez nodokļu grāmatiņas",null,null,0.23,null,null," - ja algas uzskaites programmā nav precīzi dati no EDS par algas grāmatiņām un slimības lapām B"]
[null,"Nolasītais periods",null,null,null,null,null,"Salīdzināt IIN pret",null,"pārskata mēnesi",null,null,null,"- neprecizitāte var būt dēļ manuālas kļūdas"]
[null,null,null,null,null,null,null,null,null,null,null,null,null,"- neprecizitāte var būt ja VG dati netiek regulāri sinhronizēti ar EDS"]
[null,null,null,null,null,null,null,"VSAOI tips",null,"DN","DD"]
[null,null,null,null,null,null,null,"Standarta",null,0.105,0.2359]
[null,"Nolasītais periods",null,null,null,null,null,"Pensionārs",null,9.2499999999999999E-2,0.2077,null,null,null,null,"Minimālā alga",null,700]
[null,null,null,null,null,null,null,"Izdienas pensija; Invalīds",null,9.7600000000000006E-2,0.21940000000000001]
[null,null,null,null,null,null,null,"BASIL Standarta",null,8.8700000000000001E-2,0.1993,null,null,"Datums","DD","DST","VidSt/D","Min. Likme"]
[null,null,null,null,null,null,null,"BASIL Izdienas pensija",null,7.6700000000000004E-2,0.1724,null,null,"2024-01-31",22,176,{"$f":"P15/O15","v":8},3.8043]
[null,"Nolasītais periods",null,null,null,null,null,"Autoratlīdzību saņēmēji",null,0,0.1,null,null,{"$f":"DATE(YEAR(N15),MONTH(N15)+2,0)","v":"2024-02-29"},21,168,8,4.1666999999999996]
[null,null,null,null,null,null,null,null,null,null,null,null,null,{"$f":"DATE(YEAR(N16),MONTH(N16)+2,0)","v":"2024-03-31"},20,159,7.95,4.1666999999999996]
[null,"Gads","RegNr.",null,"Mēnesis","DokId",null,null,null,null,null,null,null,"2024-04-30",21,167,{"$f":"P18/O18","v":7.9523809523809526},3.9773000000000001]
[null,null,null,null,null,null,null,"Atvieglojumi par 1 apgādājamo",null,null,250,null,null,"2024-05-31",21,167,{"$f":"P19/O19","v":7.9523809523809526},3.8043]
[null,null,null,null,null,null,null,"Atvieglojumi represētiem",null,null,154,null,null,"2024-06-30",19,152,8,4.375]
[null,null,null,null,null,null,null,"Atvieglojumi 1. grupas invalidiem",null,null,154,null,null,"2024-07-31",23,184,8,3.8043]
[null,null,null,null,null,null,null,"Atvieglojumi 2. grupas invalidiem",null,null,154,null,null,"2024-08-31",22,175,7.9545454545454541,3.9773000000000001]
[null,null,null,null,null,null,null,"Atvieglojumi 3. grupas invalidiem",null,null,120,null,null,"2024-09-30",21,168,8,4.1666999999999996]
[null,null,null,null,null,null,null,null,null,null,null,null,null,"2024-10-31",23,184,8,3.8043]
[null,null,null,null,null,null,null,"Bruto alga virs kuras nepiemērot NM",null,null,1800,null,null,"2024-11-30",20,160,8,4.1666999999999996]
[null,null,null,null,null,null,null,null,null,null,null,null,null,"2024-12-31",18,142,7.8888888888888893,3.9773000000000001]
[null,null,null,null,null,null,null,"Radīt lapu - Zinas par DN",null,null,null,null,null,"Kopā",{"$f":"SUM(O15:O26)","v":251},{"$f":"SUM(P15:P26)","v":2002}]
[null,null,null,null,null,null,null,"Radīt lapu - VSAOI pa darbiniekiem",null,null,"X",null,null,"Vidēji",{"$f":"AVERAGE(O15:O26)","v":20.916666666666668},{"$f":"AVERAGE(P15:P26)","v":166.83333333333334},{"$f":"AVERAGE(Q15:Q26)","v":7.9748496873496864},{"$f":"AVERAGE(R15:R26)","v":4.015908333333333}]
[]
[null,null,null,null,null,null,null,null,null,null,null,null,null,"Uzņemums"]

{"sheet":"Gramatiņas dati","index":2,"n_rows":3,"n_cols":24,"rows_kept":3,"cut":false,"hidden":false,"merged":[[1,21,1,23],[1,1,1,6],[1,7,1,10],[1,11,1,13],[1,14,1,16],[1,17,1,20]]}
[]
[null,"Gramatiņa",null,null,null,null,null,"Apgadajamie",null,null,null,"Pensija",null,null,"Atvieglojumi",null,null,"Neapliekamais minimums",null,null,null,"IIN likmes maiņa"]
[null,"Kods","Persona","Numurs","Datums","No","Līdz","Persona","Veids","No","Līdz","Veids","No","Līdz","Veids","No","Līdz","Veids","No","Līdz","Summa","Veids","No","Līdz"]

{"sheet":"Darbnespējas lapas","index":3,"n_rows":3,"n_cols":15,"rows_kept":3,"cut":false,"hidden":false,"merged":[[1,1,1,9]]}
[]
[null,"Darbinieku darbnespējas lapu dati",null,null,null,null,null,null,null,null,"Darbnespējas","Darbā stāšanās","Datums, no kura ","Iepriekšējās","Statusa"]
[null,"Kods","Persona","Numurs","Tips","Veids","Statuss","No","Līdz","Parrēk. Līdz","cēlonis","datums","DNL turpinās","DNL reģ. nr.","datums"]

{"sheet":"VSAOI data","index":4,"n_rows":3,"n_cols":52,"rows_kept":3,"cut":false,"hidden":false,"merged":[[1,1,1,23],[1,30,1,37],[1,24,1,29],[1,38,1,41]]}
[null,null,null,null,null,null,null,null,null,null,null,null,null,null,null,null,null,null,null,null,null,null,null,null,null,null,null,null,null,null,null,null,null,null,null,null,null,null,null,null,null,null,null,{"$f":"IF(IFERROR(SEARCH(\" 9\",H1,1),0)=0,ROUND(IF($AF1=0,0,IF($AE1=\"Nav\",($J1+$L1)*0.23-$AO1*0.2,IF($AF1='Sakuma lapa'!$K$7,\n($J1+$L1)*0.23-SUM($AJ1:$AK1,$AO1)*IF(AJ1=\"Ir\",0.2,0.23)-IF(AND($J1>='Sakuma lapa'!$K$25,'Sakuma lapa'!$K$25>0),0,$AL1)*0.2,\nROUND(IF(($J1+$L1)>1667,(($J1+$L1)-1667)*0.23,0),2) + ROUND(IF(AND((IF(($J1+$L1)<=1667,($J1+$L1),1667)-$AJ1-$AK1-IF(AND($J1>='Sakuma lapa'!$K$25,'Sakuma lapa'!$K$25>0),0,$AL1)-$AO1)<0,($J1+$L1)<=1667),0,1)*IF($AE1=\"Nav\",0.23*IF(($J1+$L1)<=1667,($J1+$L1),1667),$AF1*(IF(($J1+$L1)<=1667,($J1+$L1),1667)-$AJ1-$AK1-IF(AND($J1>='Sakuma lapa'!$K$25,'Sakuma lapa'!$K$25>0),0,$AL1)-$AO1)),2)))),2)*IF(P1=0,0,1),0)*IF(O1*AK1-SUM(AO1:AQ1,AT1)*0.2<0,0,1)","v":0},{"$f":"IF('Sakuma lapa'!$J$8=\"iepriekšējo mēnesi\",IF($C1=$C2,$AM1-$N2,0),$AM1-$N1)","v":0},{"$f":"($J1+$L1)*$AG1","v":0},{"$f":"($J1+$L1)*$AH1","v":0},null,{"$f":"ROUND(IF(($J1+$L1-$AO1-$AJ1-$AK1-$AL1)*$AF1>0,($J1+$L1-$AO1-$AJ1-$AK1-$AL1)*$AF1,0),2)","v":0},{"$f":"IF('Sakuma lapa'!$J$8=\"iepriekšējo mēnesi\",IF($C1=$C2,$AM1-$N2,0),$AM1-$N1)","v":0},{"$f":"($J1+$L1)*$AG1","v":0},{"$f":"($J1+$L1)*$AH1","v":0}]
[null,"Dati no EDS VSAOI deklarācijām",null,null,null,null,null,null,null,null,null,null,null,null,null,null,null,null,null,null,null,null,null,null,"Tehniskie identifikatori",null,null,null,null,null,"Dati no EDS nodokļu grāmatiņām, ņemot verā slimibās lapas B",null,null,null,null,null,null,null,"Revidenta veiktie aprēķini"]
[null,"DokId","Persona,kods,lapa","Persona2","Gads","Menesis","Sagatavotajs","Npk","Persona","Ienakumi","VSAOI","Precizetie ienakumi","Precizētie VSAOI","Ieturētais IIN","RN\npazīme","Riska nodeva","Nostrādātas stundas","Pensiju apdroš.","Solidaritātes nodoklis","Preciz.iem. pens.apdr.","Preciz.aprēķ. \nsolidar.nod.","Status","Darba veids","Lapa","GM","GMS","GML","GMS","DGM","DGMS","Nod.\nGram.","IIN","DN SOC","DD SOC","Apgad.\nSkaits","Par apgād.","Atviegl.","Neapl.\nMin.","IIN","IIN \nstarpība","DN SOC","DD SOC"]

{"sheet":"VSAOI transakcijas","index":5,"n_rows":4,"n_cols":21,"rows_kept":4,"cut":false,"hidden":true,"merged":[[1,11,1,12],[1,18,1,20]]}
[]
[null,null,null,null,null,null,null,null,null,null,null,"Taksācijas periods",null,"EDS uzskaites",null,null,null,null,"VG"]
[]
[null,"Nodokļa veids","Transakcijas \ndatums","Aprēķins / \nMaksājums","Aprēķina \npamatojums","Saistības veids","Saistības \ndok. nr.","Summas \nveids","Summa","Maks.uzd. / saist.dok.nr.","Papildus informācija","No","Līdz","Termiņš","Gads","Men.","Nodoklis","EUR","Datums","VgGads","VgMen"]

{"sheet":"Vidējas likmes","index":6,"n_rows":3,"n_cols":12,"rows_kept":3,"cut":false,"hidden":false,"merged":[[1,1,1,2],[1,3,1,4]]}
[]
[null,"Profesijas/ profesijas grupas",null,"Darba ņēmēja",null,"Kopējie","Kopējās","Vidējā st. likme","Vidējā st.","80% no vidējās","Atbilstība 80% no vidējās","Atbilstība valsts"]
[null,"kods","nosaukums","pers. kods","uzvārds vārds","ienākumi","stundas","uzņēmumā","likme valstī","st. likmes valstī","st. likmei valstī","min. st. likmei"]

{"sheet":"Zinas par DN","index":7,"n_rows":3,"n_cols":12,"rows_kept":3,"cut":false,"hidden":true,"merged":[[1,1,1,11]]}
[]
[null,"Dati no EDS - Ziņas par darba ņēmējiem"]
[null,"DokId","Precizējums","Sagatavotājs","Personas kods","Persona\n(1-ais nosaukums)","Persona\n(deklaracijā, ja atšķiras)","Datums","Ziņu kods","Profesijas \nkods","Prof. darbības ierobežojums","Valsts \nkods"]

{"sheet":"VSAOI vertikāli","index":8,"n_rows":58,"n_cols":15,"rows_kept":58,"cut":false,"hidden":true,"merged":[]}
[]
[null,null,{"$f":"'Sakuma lapa'!E16","v":"00:00:00"},{"$f":"DATE(YEAR(C2),MONTH(C2)+2,0)","v":60},"1900-03-31","1900-04-30","1900-05-31","1900-06-30","1900-07-31","1900-08-31","1900-09-30","1900-10-31","1900-11-30","1900-12-31","KOPĀ gads"]
[null,"Bruto alga",{"$f":"SUMIF('VSAOI data'!$Y:$Y,YEAR(C$2)&MONTH(C$2),'VSAOI data'!$J:$J)+SUMIF('VSAOI data'!$Y:$Y,YEAR(C$2)&MONTH(C$2),'VSAOI data'!$L:$L)","v":0},{"$f":"SUMIF('VSAOI data'!$Y:$Y,YEAR(D$2)&MONTH(D$2),'VSAOI data'!$J:$J)+SUMIF('VSAOI data'!$Y:$Y,YEAR(D$2)&MONTH(D$2),'VSAOI data'!$L:$L)","v":0},{"$f":"SUMIF('VSAOI data'!$Y:$Y,YEAR(E$2)&MONTH(E$2),'VSAOI data'!$J:$J)+SUMIF('VSAOI data'!$Y:$Y,YEAR(E$2)&MONTH(E$2),'VSAOI data'!$L:$L)","v":0},{"$f":"SUMIF('VSAOI data'!$Y:$Y,YEAR(F$2)&MONTH(F$2),'VSAOI data'!$J:$J)+SUMIF('VSAOI data'!$Y:$Y,YEAR(F$2)&MONTH(F$2),'VSAOI data'!$L:$L)","v":0},{"$f":"SUMIF('VSAOI data'!$Y:$Y,YEAR(G$2)&MONTH(G$2),'VSAOI data'!$J:$J)+SUMIF('VSAOI data'!$Y:$Y,YEAR(G$2)&MONTH(G$2),'VSAOI data'!$L:$L)","v":0},{"$f":"SUMIF('VSAOI data'!$Y:$Y,YEAR(H$2)&MONTH(H$2),'VSAOI data'!$J:$J)+SUMIF('VSAOI data'!$Y:$Y,YEAR(H$2)&MONTH(H$2),'VSAOI data'!$L:$L)","v":0},{"$f":"SUMIF('VSAOI data'!$Y:$Y,YEAR(I$2)&MONTH(I$2),'VSAOI data'!$J:$J)+SUMIF('VSAOI data'!$Y:$Y,YEAR(I$2)&MONTH(I$2),'VSAOI data'!$L:$L)","v":0},{"$f":"SUMIF('VSAOI data'!$Y:$Y,YEAR(J$2)&MONTH(J$2),'VSAOI data'!$J:$J)+SUMIF('VSAOI data'!$Y:$Y,YEAR(J$2)&MONTH(J$2),'VSAOI data'!$L:$L)","v":0},{"$f":"SUMIF('VSAOI data'!$Y:$Y,YEAR(K$2)&MONTH(K$2),'VSAOI data'!$J:$J)+SUMIF('VSAOI data'!$Y:$Y,YEAR(K$2)&MONTH(K$2),'VSAOI data'!$L:$L)","v":0},{"$f":"SUMIF('VSAOI data'!$Y:$Y,YEAR(L$2)&MONTH(L$2),'VSAOI data'!$J:$J)+SUMIF('VSAOI data'!$Y:$Y,YEAR(L$2)&MONTH(L$2),'VSAOI data'!$L:$L)","v":0},{"$f":"SUMIF('VSAOI data'!$Y:$Y,YEAR(M$2)&MONTH(M$2),'VSAOI data'!$J:$J)+SUMIF('VSAOI data'!$Y:$Y,YEAR(M$2)&MONTH(M$2),'VSAOI data'!$L:$L)","v":0},{"$f":"SUMIF('VSAOI data'!$Y:$Y,YEAR(N$2)&MONTH(N$2),'VSAOI data'!$J:$J)+SUMIF('VSAOI data'!$Y:$Y,YEAR(N$2)&MONTH(N$2),'VSAOI data'!$L:$L)","v":0},{"$f":"SUM(C3:N3)","v":0}]
[null,"Aprēķinātās DD VSAOI",{"$f":"SUMIF('VSAOI data'!$Z:$Z,YEAR(C$2)&MONTH(C$2)&\"D*\",'VSAOI data'!$AP:$AP)+SUMIF('VSAOI data'!$Z:$Z,YEAR(C$2)&MONTH(C$2)&\"C*\",'VSAOI data'!$AP:$AP)+SUMIF('VSAOI data'!$Z:$Z,YEAR(C$2)&MONTH(C$2)&\"A*\",'VSAOI data'!$AP:$AP)","v":0},{"$f":"SUMIF('VSAOI data'!$Z:$Z,YEAR(D$2)&MONTH(D$2)&\"D*\",'VSAOI data'!$AP:$AP)+SUMIF('VSAOI data'!$Z:$Z,YEAR(D$2)&MONTH(D$2)&\"C*\",'VSAOI data'!$AP:$AP)+SUMIF('VSAOI data'!$Z:$Z,YEAR(D$2)&MONTH(D$2)&\"A*\",'VSAOI data'!$AP:$AP)","v":0},{"$f":"SUMIF('VSAOI data'!$Z:$Z,YEAR(E$2)&MONTH(E$2)&\"D*\",'VSAOI data'!$AP:$AP)+SUMIF('VSAOI data'!$Z:$Z,YEAR(E$2)&MONTH(E$2)&\"C*\",'VSAOI data'!$AP:$AP)+SUMIF('VSAOI data'!$Z:$Z,YEAR(E$2)&MONTH(E$2)&\"A*\",'VSAOI data'!$AP:$AP)","v":0},{"$f":"SUMIF('VSAOI data'!$Z:$Z,YEAR(F$2)&MONTH(F$2)&\"D*\",'VSAOI data'!$AP:$AP)+SUMIF('VSAOI data'!$Z:$Z,YEAR(F$2)&MONTH(F$2)&\"C*\",'VSAOI data'!$AP:$AP)+SUMIF('VSAOI data'!$Z:$Z,YEAR(F$2)&MONTH(F$2)&\"A*\",'VSAOI data'!$AP:$AP)","v":0},{"$f":"SUMIF('VSAOI data'!$Z:$Z,YEAR(G$2)&MONTH(G$2)&\"D*\",'VSAOI data'!$AP:$AP)+SUMIF('VSAOI data'!$Z:$Z,YEAR(G$2)&MONTH(G$2)&\"C*\",'VSAOI data'!$AP:$AP)+SUMIF('VSAOI data'!$Z:$Z,YEAR(G$2)&MONTH(G$2)&\"A*\",'VSAOI data'!$AP:$AP)","v":0},{"$f":"SUMIF('VSAOI data'!$Z:$Z,YEAR(H$2)&MONTH(H$2)&\"D*\",'VSAOI data'!$AP:$AP)+SUMIF('VSAOI data'!$Z:$Z,YEAR(H$2)&MONTH(H$2)&\"C*\",'VSAOI data'!$AP:$AP)+SUMIF('VSAOI data'!$Z:$Z,YEAR(H$2)&MONTH(H$2)&\"A*\",'VSAOI data'!$AP:$AP)","v":0},{"$f":"SUMIF('VSAOI data'!$Z:$Z,YEAR(I$2)&MONTH(I$2)&\"D*\",'VSAOI data'!$AP:$AP)+SUMIF('VSAOI data'!$Z:$Z,YEAR(I$2)&MONTH(I$2)&\"C*\",'VSAOI data'!$AP:$AP)+SUMIF('VSAOI data'!$Z:$Z,YEAR(I$2)&MONTH(I$2)&\"A*\",'VSAOI data'!$AP:$AP)","v":0},{"$f":"SUMIF('VSAOI data'!$Z:$Z,YEAR(J$2)&MONTH(J$2)&\"D*\",'VSAOI data'!$AP:$AP)+SUMIF('VSAOI data'!$Z:$Z,YEAR(J$2)&MONTH(J$2)&\"C*\",'VSAOI data'!$AP:$AP)+SUMIF('VSAOI data'!$Z:$Z,YEAR(J$2)&MONTH(J$2)&\"A*\",'VSAOI data'!$AP:$AP)","v":0},{"$f":"SUMIF('VSAOI data'!$Z:$Z,YEAR(K$2)&MONTH(K$2)&\"D*\",'VSAOI data'!$AP:$AP)+SUMIF('VSAOI data'!$Z:$Z,YEAR(K$2)&MONTH(K$2)&\"C*\",'VSAOI data'!$AP:$AP)+SUMIF('VSAOI data'!$Z:$Z,YEAR(K$2)&MONTH(K$2)&\"A*\",'VSAOI data'!$AP:$AP)","v":0},{"$f":"SUMIF('VSAOI data'!$Z:$Z,YEAR(L$2)&MONTH(L$2)&\"D*\",'VSAOI data'!$AP:$AP)+SUMIF('VSAOI data'!$Z:$Z,YEAR(L$2)&MONTH(L$2)&\"C*\",'VSAOI data'!$AP:$AP)+SUMIF('VSAOI data'!$Z:$Z,YEAR(L$2)&MONTH(L$2)&\"A*\",'VSAOI data'!$AP:$AP)","v":0},{"$f":"SUMIF('VSAOI data'!$Z:$Z,YEAR(M$2)&MONTH(M$2)&\"D*\",'VSAOI data'!$AP:$AP)+SUMIF('VSAOI data'!$Z:$Z,YEAR(M$2)&MONTH(M$2)&\"C*\",'VSAOI data'!$AP:$AP)+SUMIF('VSAOI data'!$Z:$Z,YEAR(M$2)&MONTH(M$2)&\"A*\",'VSAOI data'!$AP:$AP)","v":0},{"$f":"SUMIF('VSAOI data'!$Z:$Z,YEAR(N$2)&MONTH(N$2)&\"D*\",'VSAOI data'!$AP:$AP)+SUMIF('VSAOI data'!$Z:$Z,YEAR(N$2)&MONTH(N$2)&\"C*\",'VSAOI data'!$AP:$AP)+SUMIF('VSAOI data'!$Z:$Z,YEAR(N$2)&MONTH(N$2)&\"A*\",'VSAOI data'!$AP:$AP)","v":0},{"$f":"SUM(C4:N4)","v":0}]
[null,"Aprēķinātās DŅ VSAOI",{"$f":"SUMIF('VSAOI data'!$Z:$Z,YEAR(C$2)&MONTH(C$2)&\"D*\",'VSAOI data'!$AO:$AO)+SUMIF('VSAOI data'!$Z:$Z,YEAR(C$2)&MONTH(C$2)&\"C*\",'VSAOI data'!$AO:$AO)+SUMIF('VSAOI data'!$Z:$Z,YEAR(C$2)&MONTH(C$2)&\"A*\",'VSAOI data'!$AO:$AO)","v":0},{"$f":"SUMIF('VSAOI data'!$Z:$Z,YEAR(D$2)&MONTH(D$2)&\"D*\",'VSAOI data'!$AO:$AO)+SUMIF('VSAOI data'!$Z:$Z,YEAR(D$2)&MONTH(D$2)&\"C*\",'VSAOI data'!$AO:$AO)+SUMIF('VSAOI data'!$Z:$Z,YEAR(D$2)&MONTH(D$2)&\"A*\",'VSAOI data'!$AO:$AO)","v":0},{"$f":"SUMIF('VSAOI data'!$Z:$Z,YEAR(E$2)&MONTH(E$2)&\"D*\",'VSAOI data'!$AO:$AO)+SUMIF('VSAOI data'!$Z:$Z,YEAR(E$2)&MONTH(E$2)&\"C*\",'VSAOI data'!$AO:$AO)+SUMIF('VSAOI data'!$Z:$Z,YEAR(E$2)&MONTH(E$2)&\"A*\",'VSAOI data'!$AO:$AO)","v":0},{"$f":"SUMIF('VSAOI data'!$Z:$Z,YEAR(F$2)&MONTH(F$2)&\"D*\",'VSAOI data'!$AO:$AO)+SUMIF('VSAOI data'!$Z:$Z,YEAR(F$2)&MONTH(F$2)&\"C*\",'VSAOI data'!$AO:$AO)+SUMIF('VSAOI data'!$Z:$Z,YEAR(F$2)&MONTH(F$2)&\"A*\",'VSAOI data'!$AO:$AO)","v":0},{"$f":"SUMIF('VSAOI data'!$Z:$Z,YEAR(G$2)&MONTH(G$2)&\"D*\",'VSAOI data'!$AO:$AO)+SUMIF('VSAOI data'!$Z:$Z,YEAR(G$2)&MONTH(G$2)&\"C*\",'VSAOI data'!$AO:$AO)+SUMIF('VSAOI data'!$Z:$Z,YEAR(G$2)&MONTH(G$2)&\"A*\",'VSAOI data'!$AO:$AO)","v":0},{"$f":"SUMIF('VSAOI data'!$Z:$Z,YEAR(H$2)&MONTH(H$2)&\"D*\",'VSAOI data'!$AO:$AO)+SUMIF('VSAOI data'!$Z:$Z,YEAR(H$2)&MONTH(H$2)&\"C*\",'VSAOI data'!$AO:$AO)+SUMIF('VSAOI data'!$Z:$Z,YEAR(H$2)&MONTH(H$2)&\"A*\",'VSAOI data'!$AO:$AO)","v":0},{"$f":"SUMIF('VSAOI data'!$Z:$Z,YEAR(I$2)&MONTH(I$2)&\"D*\",'VSAOI data'!$AO:$AO)+SUMIF('VSAOI data'!$Z:$Z,YEAR(I$2)&MONTH(I$2)&\"C*\",'VSAOI data'!$AO:$AO)+SUMIF('VSAOI data'!$Z:$Z,YEAR(I$2)&MONTH(I$2)&\"A*\",'VSAOI data'!$AO:$AO)","v":0},{"$f":"SUMIF('VSAOI data'!$Z:$Z,YEAR(J$2)&MONTH(J$2)&\"D*\",'VSAOI data'!$AO:$AO)+SUMIF('VSAOI data'!$Z:$Z,YEAR(J$2)&MONTH(J$2)&\"C*\",'VSAOI data'!$AO:$AO)+SUMIF('VSAOI data'!$Z:$Z,YEAR(J$2)&MONTH(J$2)&\"A*\",'VSAOI data'!$AO:$AO)","v":0},{"$f":"SUMIF('VSAOI data'!$Z:$Z,YEAR(K$2)&MONTH(K$2)&\"D*\",'VSAOI data'!$AO:$AO)+SUMIF('VSAOI data'!$Z:$Z,YEAR(K$2)&MONTH(K$2)&\"C*\",'VSAOI data'!$AO:$AO)+SUMIF('VSAOI data'!$Z:$Z,YEAR(K$2)&MONTH(K$2)&\"A*\",'VSAOI data'!$AO:$AO)","v":0},{"$f":"SUMIF('VSAOI data'!$Z:$Z,YEAR(L$2)&MONTH(L$2)&\"D*\",'VSAOI data'!$AO:$AO)+SUMIF('VSAOI data'!$Z:$Z,YEAR(L$2)&MONTH(L$2)&\"C*\",'VSAOI data'!$AO:$AO)+SUMIF('VSAOI data'!$Z:$Z,YEAR(L$2)&MONTH(L$2)&\"A*\",'VSAOI data'!$AO:$AO)","v":0},{"$f":"SUMIF('VSAOI data'!$Z:$Z,YEAR(M$2)&MONTH(M$2)&\"D*\",'VSAOI data'!$AO:$AO)+SUMIF('VSAOI data'!$Z:$Z,YEAR(M$2)&MONTH(M$2)&\"C*\",'VSAOI data'!$AO:$AO)+SUMIF('VSAOI data'!$Z:$Z,YEAR(M$2)&MONTH(M$2)&\"A*\",'VSAOI data'!$AO:$AO)","v":0},{"$f":"SUMIF('VSAOI data'!$Z:$Z,YEAR(N$2)&MONTH(N$2)&\"D*\",'VSAOI data'!$AO:$AO)+SUMIF('VSAOI data'!$Z:$Z,YEAR(N$2)&MONTH(N$2)&\"C*\",'VSAOI data'!$AO:$AO)+SUMIF('VSAOI data'!$Z:$Z,YEAR(N$2)&MONTH(N$2)&\"A*\",'VSAOI data'!$AO:$AO)","v":0},0]
[null,"starpības",{"$f":"C7-SUM(C4:C5)","v":0},{"$f":"D7-SUM(D4:D5)","v":0},0,0,0,0,0,0,0,0,0,0,0]
[null,"KOPĀ VSAOI no VID EDS",{"$f":"SUMIF('VSAOI data'!$Y:$Y,YEAR(C$2)&MONTH(C$2),'VSAOI data'!$K:$K)+SUMIF('VSAOI data'!$Y:$Y,YEAR(C$2)&MONTH(C$2),'VSAOI data'!$M:$M)","v":0},{"$f":"SUMIF('VSAOI data'!$Y:$Y,YEAR(D$2)&MONTH(D$2),'VSAOI data'!$K:$K)+SUMIF('VSAOI data'!$Y:$Y,YEAR(D$2)&MONTH(D$2),'VSAOI data'!$M:$M)","v":0},{"$f":"SUMIF('VSAOI data'!$Y:$Y,YEAR(E$2)&MONTH(E$2),'VSAOI data'!$K:$K)+SUMIF('VSAOI data'!$Y:$Y,YEAR(E$2)&MONTH(E$2),'VSAOI data'!$M:$M)","v":0},{"$f":"SUMIF('VSAOI data'!$Y:$Y,YEAR(F$2)&MONTH(F$2),'VSAOI data'!$K:$K)+SUMIF('VSAOI data'!$Y:$Y,YEAR(F$2)&MONTH(F$2),'VSAOI data'!$M:$M)","v":0},{"$f":"SUMIF('VSAOI data'!$Y:$Y,YEAR(G$2)&MONTH(G$2),'VSAOI data'!$K:$K)+SUMIF('VSAOI data'!$Y:$Y,YEAR(G$2)&MONTH(G$2),'VSAOI data'!$M:$M)","v":0},{"$f":"SUMIF('VSAOI data'!$Y:$Y,YEAR(H$2)&MONTH(H$2),'VSAOI data'!$K:$K)+SUMIF('VSAOI data'!$Y:$Y,YEAR(H$2)&MONTH(H$2),'VSAOI data'!$M:$M)","v":0},{"$f":"SUMIF('VSAOI data'!$Y:$Y,YEAR(I$2)&MONTH(I$2),'VSAOI data'!$K:$K)+SUMIF('VSAOI data'!$Y:$Y,YEAR(I$2)&MONTH(I$2),'VSAOI data'!$M:$M)","v":0},{"$f":"SUMIF('VSAOI data'!$Y:$Y,YEAR(J$2)&MONTH(J$2),'VSAOI data'!$K:$K)+SUMIF('VSAOI data'!$Y:$Y,YEAR(J$2)&MONTH(J$2),'VSAOI data'!$M:$M)","v":0},{"$f":"SUMIF('VSAOI data'!$Y:$Y,YEAR(K$2)&MONTH(K$2),'VSAOI data'!$K:$K)+SUMIF('VSAOI data'!$Y:$Y,YEAR(K$2)&MONTH(K$2),'VSAOI data'!$M:$M)","v":0},{"$f":"SUMIF('VSAOI data'!$Y:$Y,YEAR(L$2)&MONTH(L$2),'VSAOI data'!$K:$K)+SUMIF('VSAOI data'!$Y:$Y,YEAR(L$2)&MONTH(L$2),'VSAOI data'!$M:$M)","v":0},{"$f":"SUMIF('VSAOI data'!$Y:$Y,YEAR(M$2)&MONTH(M$2),'VSAOI data'!$K:$K)+SUMIF('VSAOI data'!$Y:$Y,YEAR(M$2)&MONTH(M$2),'VSAOI data'!$M:$M)","v":0},{"$f":"SUMIF('VSAOI data'!$Y:$Y,YEAR(N$2)&MONTH(N$2),'VSAOI data'!$K:$K)+SUMIF('VSAOI data'!$Y:$Y,YEAR(N$2)&MONTH(N$2),'VSAOI data'!$M:$M)","v":0},0]
[null,"Darbinieku skaits ",{"$f":"SUM(C9:C10)","v":0},{"$f":"SUM(D9:D10)","v":0},0,0,0,0,0,0,0,0,0,0]
[null,"ar nodokļu grāmatiņu",{"$f":"COUNTIF('VSAOI data'!$AA:$AA,YEAR(C$2)&MONTH(C$2)&\"Tab*Ir\")-COUNTIF('VSAOI data'!$AA:$AA,YEAR(C$2)&MONTH(C$2)&\"Tab4*Ir\")","v":0},{"$f":"COUNTIF('VSAOI data'!$AA:$AA,YEAR(D$2)&MONTH(D$2)&\"Tab*Ir\")-COUNTIF('VSAOI data'!$AA:$AA,YEAR(D$2)&MONTH(D$2)&\"Tab4*Ir\")","v":0},{"$f":"COUNTIF('VSAOI data'!$AA:$AA,YEAR(E$2)&MONTH(E$2)&\"Tab*Ir\")-COUNTIF('VSAOI data'!$AA:$AA,YEAR(E$2)&MONTH(E$2)&\"Tab4*Ir\")","v":0},{"$f":"COUNTIF('VSAOI data'!$AA:$AA,YEAR(F$2)&MONTH(F$2)&\"Tab*Ir\")-COUNTIF('VSAOI data'!$AA:$AA,YEAR(F$2)&MONTH(F$2)&\"Tab4*Ir\")","v":0},{"$f":"COUNTIF('VSAOI data'!$AA:$AA,YEAR(G$2)&MONTH(G$2)&\"Tab*Ir\")-COUNTIF('VSAOI data'!$AA:$AA,YEAR(G$2)&MONTH(G$2)&\"Tab4*Ir\")","v":0},{"$f":"COUNTIF('VSAOI data'!$AA:$AA,YEAR(H$2)&MONTH(H$2)&\"Tab*Ir\")-COUNTIF('VSAOI data'!$AA:$AA,YEAR(H$2)&MONTH(H$2)&\"Tab4*Ir\")","v":0},{"$f":"COUNTIF('VSAOI data'!$AA:$AA,YEAR(I$2)&MONTH(I$2)&\"Tab*Ir\")-COUNTIF('VSAOI data'!$AA:$AA,YEAR(I$2)&MONTH(I$2)&\"Tab4*Ir\")","v":0},{"$f":"COUNTIF('VSAOI data'!$AA:$AA,YEAR(J$2)&MONTH(J$2)&\"Tab*Ir\")-COUNTIF('VSAOI data'!$AA:$AA,YEAR(J$2)&MONTH(J$2)&\"Tab4*Ir\")","v":0},{"$f":"COUNTIF('VSAOI data'!$AA:$AA,YEAR(K$2)&MONTH(K$2)&\"Tab*Ir\")-COUNTIF('VSAOI data'!$AA:$AA,YEAR(K$2)&MONTH(K$2)&\"Tab4*Ir\")","v":0},{"$f":"COUNTIF('VSAOI data'!$AA:$AA,YEAR(L$2)&MONTH(L$2)&\"Tab*Ir\")-COUNTIF('VSAOI data'!$AA:$AA,YEAR(L$2)&MONTH(L$2)&\"Tab4*Ir\")","v":0},{"$f":"COUNTIF('VSAOI data'!$AA:$AA,YEAR(M$2)&MONTH(M$2)&\"Tab*Ir\")-COUNTIF('VSAOI data'!$AA:$AA,YEAR(M$2)&MONTH(M$2)&\"Tab4*Ir\")","v":0},{"$f":"COUNTIF('VSAOI data'!$AA:$AA,YEAR(N$2)&MONTH(N$2)&\"Tab*Ir\")-COUNTIF('VSAOI data'!$AA:$AA,YEAR(N$2)&MONTH(N$2)&\"Tab4*Ir\")","v":0}]
[null,"bez nodokļu grāmatiņas",{"$f":"COUNTIF('VSAOI data'!$AA:$AA,YEAR(C$2)&MONTH(C$2)&\"Tab*Nav\")-COUNTIF('VSAOI data'!$AA:$AA,YEAR(C$2)&MONTH(C$2)&\"Tab4*Nav\")","v":0},{"$f":"COUNTIF('VSAOI data'!$AA:$AA,YEAR(D$2)&MONTH(D$2)&\"Tab*Nav\")-COUNTIF('VSAOI data'!$AA:$AA,YEAR(D$2)&MONTH(D$2)&\"Tab4*Nav\")","v":0},{"$f":"COUNTIF('VSAOI data'!$AA:$AA,YEAR(E$2)&MONTH(E$2)&\"Tab*Nav\")-COUNTIF('VSAOI data'!$AA:$AA,YEAR(E$2)&MONTH(E$2)&\"Tab4*Nav\")","v":0},{"$f":"COUNTIF('VSAOI data'!$AA:$AA,YEAR(F$2)&MONTH(F$2)&\"Tab*Nav\")-COUNTIF('VSAOI data'!$AA:$AA,YEAR(F$2)&MONTH(F$2)&\"Tab4*Nav\")","v":0},{"$f":"COUNTIF('VSAOI data'!$AA:$AA,YEAR(G$2)&MONTH(G$2)&\"Tab*Nav\")-COUNTIF('VSAOI data'!$AA:$AA,YEAR(G$2)&MONTH(G$2)&\"Tab4*Nav\")","v":0},{"$f":"COUNTIF('VSAOI data'!$AA:$AA,YEAR(H$2)&MONTH(H$2)&\"Tab*Nav\")-COUNTIF('VSAOI data'!$AA:$AA,YEAR(H$2)&MONTH(H$2)&\"Tab4*Nav\")","v":0},{"$f":"COUNTIF('VSAOI data'!$AA:$AA,YEAR(I$2)&MONTH(I$2)&\"Tab*Nav\")-COUNTIF('VSAOI data'!$AA:$AA,YEAR(I$2)&MONTH(I$2)&\"Tab4*Nav\")","v":0},{"$f":"COUNTIF('VSAOI data'!$AA:$AA,YEAR(J$2)&MONTH(J$2)&\"Tab*Nav\")-COUNTIF('VSAOI data'!$AA:$AA,YEAR(J$2)&MONTH(J$2)&\"Tab4*Nav\")","v":0},{"$f":"COUNTIF('VSAOI data'!$AA:$AA,YEAR(K$2)&MONTH(K$2)&\"Tab*Nav\")-COUNTIF('VSAOI data'!$AA:$AA,YEAR(K$2)&MONTH(K$2)&\"Tab4*Nav\")","v":0},{"$f":"COUNTIF('VSAOI data'!$AA:$AA,YEAR(L$2)&MONTH(L$2)&\"Tab*Nav\")-COUNTIF('VSAOI data'!$AA:$AA,YEAR(L$2)&MONTH(L$2)&\"Tab4*Nav\")","v":0},{"$f":"COUNTIF('VSAOI data'!$AA:$AA,YEAR(M$2)&MONTH(M$2)&\"Tab*Nav\")-COUNTIF('VSAOI data'!$AA:$AA,YEAR(M$2)&MONTH(M$2)&\"Tab4*Nav\")","v":0},{"$f":"COUNTIF('VSAOI data'!$AA:$AA,YEAR(N$2)&MONTH(N$2)&\"Tab*Nav\")-COUNTIF('VSAOI data'!$AA:$AA,YEAR(N$2)&MONTH(N$2)&\"Tab4*Nav\")","v":0}]
[null,"Apgādājamo skaits",{"$f":"SUMIF('VSAOI data'!$Z:$Z,YEAR(C$2)&MONTH(C$2)&\"D*\",'VSAOI data'!$AI:$AI)+SUMIF('VSAOI data'!$Z:$Z,YEAR(C$2)&MONTH(C$2)&\"C*\",'VSAOI data'!$AI:$AI)+SUMIF('VSAOI data'!$Z:$Z,YEAR(C$2)&MONTH(C$2)&\"A*\",'VSAOI data'!$AI:$AI)","v":0},{"$f":"SUMIF('VSAOI data'!$Z:$Z,YEAR(D$2)&MONTH(D$2)&\"D*\",'VSAOI data'!$AI:$AI)+SUMIF('VSAOI data'!$Z:$Z,YEAR(D$2)&MONTH(D$2)&\"C*\",'VSAOI data'!$AI:$AI)+SUMIF('VSAOI data'!$Z:$Z,YEAR(D$2)&MONTH(D$2)&\"A*\",'VSAOI data'!$AI:$AI)","v":0},{"$f":"SUMIF('VSAOI data'!$Z:$Z,YEAR(E$2)&MONTH(E$2)&\"D*\",'VSAOI data'!$AI:$AI)+SUMIF('VSAOI data'!$Z:$Z,YEAR(E$2)&MONTH(E$2)&\"C*\",'VSAOI data'!$AI:$AI)+SUMIF('VSAOI data'!$Z:$Z,YEAR(E$2)&MONTH(E$2)&\"A*\",'VSAOI data'!$AI:$AI)","v":0},{"$f":"SUMIF('VSAOI data'!$Z:$Z,YEAR(F$2)&MONTH(F$2)&\"D*\",'VSAOI data'!$AI:$AI)+SUMIF('VSAOI data'!$Z:$Z,YEAR(F$2)&MONTH(F$2)&\"C*\",'VSAOI data'!$AI:$AI)+SUMIF('VSAOI data'!$Z:$Z,YEAR(F$2)&MONTH(F$2)&\"A*\",'VSAOI data'!$AI:$AI)","v":0},{"$f":"SUMIF('VSAOI data'!$Z:$Z,YEAR(G$2)&MONTH(G$2)&\"D*\",'VSAOI data'!$AI:$AI)+SUMIF('VSAOI data'!$Z:$Z,YEAR(G$2)&MONTH(G$2)&\"C*\",'VSAOI data'!$AI:$AI)+SUMIF('VSAOI data'!$Z:$Z,YEAR(G$2)&MONTH(G$2)&\"A*\",'VSAOI data'!$AI:$AI)","v":0},{"$f":"SUMIF('VSAOI data'!$Z:$Z,YEAR(H$2)&MONTH(H$2)&\"D*\",'VSAOI data'!$AI:$AI)+SUMIF('VSAOI data'!$Z:$Z,YEAR(H$2)&MONTH(H$2)&\"C*\",'VSAOI data'!$AI:$AI)+SUMIF('VSAOI data'!$Z:$Z,YEAR(H$2)&MONTH(H$2)&\"A*\",'VSAOI data'!$AI:$AI)","v":0},{"$f":"SUMIF('VSAOI data'!$Z:$Z,YEAR(I$2)&MONTH(I$2)&\"D*\",'VSAOI data'!$AI:$AI)+SUMIF('VSAOI data'!$Z:$Z,YEAR(I$2)&MONTH(I$2)&\"C*\",'VSAOI data'!$AI:$AI)+SUMIF('VSAOI data'!$Z:$Z,YEAR(I$2)&MONTH(I$2)&\"A*\",'VSAOI data'!$AI:$AI)","v":0},{"$f":"SUMIF('VSAOI data'!$Z:$Z,YEAR(J$2)&MONTH(J$2)&\"D*\",'VSAOI data'!$AI:$AI)+SUMIF('VSAOI data'!$Z:$Z,YEAR(J$2)&MONTH(J$2)&\"C*\",'VSAOI data'!$AI:$AI)+SUMIF('VSAOI data'!$Z:$Z,YEAR(J$2)&MONTH(J$2)&\"A*\",'VSAOI data'!$AI:$AI)","v":0},{"$f":"SUMIF('VSAOI data'!$Z:$Z,YEAR(K$2)&MONTH(K$2)&\"D*\",'VSAOI data'!$AI:$AI)+SUMIF('VSAOI data'!$Z:$Z,YEAR(K$2)&MONTH(K$2)&\"C*\",'VSAOI data'!$AI:$AI)+SUMIF('VSAOI data'!$Z:$Z,YEAR(K$2)&MONTH(K$2)&\"A*\",'VSAOI data'!$AI:$AI)","v":0},{"$f":"SUMIF('VSAOI data'!$Z:$Z,YEAR(L$2)&MONTH(L$2)&\"D*\",'VSAOI data'!$AI:$AI)+SUMIF('VSAOI data'!$Z:$Z,YEAR(L$2)&MONTH(L$2)&\"C*\",'VSAOI data'!$AI:$AI)+SUMIF('VSAOI data'!$Z:$Z,YEAR(L$2)&MONTH(L$2)&\"A*\",'VSAOI data'!$AI:$AI)","v":0},{"$f":"SUMIF('VSAOI data'!$Z:$Z,YEAR(M$2)&MONTH(M$2)&\"D*\",'VSAOI data'!$AI:$AI)+SUMIF('VSAOI data'!$Z:$Z,YEAR(M$2)&MONTH(M$2)&\"C*\",'VSAOI data'!$AI:$AI)+SUMIF('VSAOI data'!$Z:$Z,YEAR(M$2)&MONTH(M$2)&\"A*\",'VSAOI data'!$AI:$AI)","v":0},{"$f":"SUMIF('VSAOI data'!$Z:$Z,YEAR(N$2)&MONTH(N$2)&\"D*\",'VSAOI data'!$AI:$AI)+SUMIF('VSAOI data'!$Z:$Z,YEAR(N$2)&MONTH(N$2)&\"C*\",'VSAOI data'!$AI:$AI)+SUMIF('VSAOI data'!$Z:$Z,YEAR(N$2)&MONTH(N$2)&\"A*\",'VSAOI data'!$AI:$AI)","v":0}]
[null,{"$f":"\"Ieturētais IIN par \"&'Sakuma lapa'!$J$8","v":"Ieturētais IIN par pārskata mēnesi"},{"$f":"SUMIF('VSAOI data'!$Y:$Y,YEAR(C$2)&MONTH(C$2),'VSAOI data'!$N:$N)","v":0},{"$f":"SUMIF('VSAOI data'!$Y:$Y,YEAR(D$2)&MONTH(D$2),'VSAOI data'!$N:$N)","v":0},{"$f":"SUMIF('VSAOI data'!$Y:$Y,YEAR(E$2)&MONTH(E$2),'VSAOI data'!$N:$N)","v":0},{"$f":"SUMIF('VSAOI data'!$Y:$Y,YEAR(F$2)&MONTH(F$2),'VSAOI data'!$N:$N)","v":0},{"$f":"SUMIF('VSAOI data'!$Y:$Y,YEAR(G$2)&MONTH(G$2),'VSAOI data'!$N:$N)","v":0},{"$f":"SUMIF('VSAOI data'!$Y:$Y,YEAR(H$2)&MONTH(H$2),'VSAOI data'!$N:$N)","v":0},{"$f":"SUMIF('VSAOI data'!$Y:$Y,YEAR(I$2)&MONTH(I$2),'VSAOI data'!$N:$N)","v":0},{"$f":"SUMIF('VSAOI data'!$Y:$Y,YEAR(J$2)&MONTH(J$2),'VSAOI data'!$N:$N)","v":0},{"$f":"SUMIF('VSAOI data'!$Y:$Y,YEAR(K$2)&MONTH(K$2),'VSAOI data'!$N:$N)","v":0},{"$f":"SUMIF('VSAOI data'!$Y:$Y,YEAR(L$2)&MONTH(L$2),'VSAOI data'!$N:$N)","v":0},{"$f":"SUMIF('VSAOI data'!$Y:$Y,YEAR(M$2)&MONTH(M$2),'VSAOI data'!$N:$N)","v":0},{"$f":"SUMIF('VSAOI data'!$Y:$Y,YEAR(N$2)&MONTH(N$2),'VSAOI data'!$N:$N)","v":0},0]
[null,"Pārrēķinātais IIN par tekošo mēnesi",{"$f":"SUMIF('VSAOI data'!$Z:$Z,YEAR(C$2)&MONTH(C$2)&\"D*\",'VSAOI data'!$AM:$AM)+SUMIF('VSAOI data'!$Z:$Z,YEAR(C$2)&MONTH(C$2)&\"C*\",'VSAOI data'!$AM:$AM)+SUMIF('VSAOI data'!$Z:$Z,YEAR(C$2)&MONTH(C$2)&\"A*\",'VSAOI data'!$AM:$AM)","v":0},{"$f":"SUMIF('VSAOI data'!$Z:$Z,YEAR(D$2)&MONTH(D$2)&\"D*\",'VSAOI data'!$AM:$AM)+SUMIF('VSAOI data'!$Z:$Z,YEAR(D$2)&MONTH(D$2)&\"C*\",'VSAOI data'!$AM:$AM)+SUMIF('VSAOI data'!$Z:$Z,YEAR(D$2)&MONTH(D$2)&\"A*\",'VSAOI data'!$AM:$AM)","v":0},{"$f":"SUMIF('VSAOI data'!$Z:$Z,YEAR(E$2)&MONTH(E$2)&\"D*\",'VSAOI data'!$AM:$AM)+SUMIF('VSAOI data'!$Z:$Z,YEAR(E$2)&MONTH(E$2)&\"C*\",'VSAOI data'!$AM:$AM)+SUMIF('VSAOI data'!$Z:$Z,YEAR(E$2)&MONTH(E$2)&\"A*\",'VSAOI data'!$AM:$AM)","v":0},{"$f":"SUMIF('VSAOI data'!$Z:$Z,YEAR(F$2)&MONTH(F$2)&\"D*\",'VSAOI data'!$AM:$AM)+SUMIF('VSAOI data'!$Z:$Z,YEAR(F$2)&MONTH(F$2)&\"C*\",'VSAOI data'!$AM:$AM)+SUMIF('VSAOI data'!$Z:$Z,YEAR(F$2)&MONTH(F$2)&\"A*\",'VSAOI data'!$AM:$AM)","v":0},{"$f":"SUMIF('VSAOI data'!$Z:$Z,YEAR(G$2)&MONTH(G$2)&\"D*\",'VSAOI data'!$AM:$AM)+SUMIF('VSAOI data'!$Z:$Z,YEAR(G$2)&MONTH(G$2)&\"C*\",'VSAOI data'!$AM:$AM)+SUMIF('VSAOI data'!$Z:$Z,YEAR(G$2)&MONTH(G$2)&\"A*\",'VSAOI data'!$AM:$AM)","v":0},{"$f":"SUMIF('VSAOI data'!$Z:$Z,YEAR(H$2)&MONTH(H$2)&\"D*\",'VSAOI data'!$AM:$AM)+SUMIF('VSAOI data'!$Z:$Z,YEAR(H$2)&MONTH(H$2)&\"C*\",'VSAOI data'!$AM:$AM)+SUMIF('VSAOI data'!$Z:$Z,YEAR(H$2)&MONTH(H$2)&\"A*\",'VSAOI data'!$AM:$AM)","v":0},{"$f":"SUMIF('VSAOI data'!$Z:$Z,YEAR(I$2)&MONTH(I$2)&\"D*\",'VSAOI data'!$AM:$AM)+SUMIF('VSAOI data'!$Z:$Z,YEAR(I$2)&MONTH(I$2)&\"C*\",'VSAOI data'!$AM:$AM)+SUMIF('VSAOI data'!$Z:$Z,YEAR(I$2)&MONTH(I$2)&\"A*\",'VSAOI data'!$AM:$AM)","v":0},{"$f":"SUMIF('VSAOI data'!$Z:$Z,YEAR(J$2)&MONTH(J$2)&\"D*\",'VSAOI data'!$AM:$AM)+SUMIF('VSAOI data'!$Z:$Z,YEAR(J$2)&MONTH(J$2)&\"C*\",'VSAOI data'!$AM:$AM)+SUMIF('VSAOI data'!$Z:$Z,YEAR(J$2)&MONTH(J$2)&\"A*\",'VSAOI data'!$AM:$AM)","v":0},{"$f":"SUMIF('VSAOI data'!$Z:$Z,YEAR(K$2)&MONTH(K$2)&\"D*\",'VSAOI data'!$AM:$AM)+SUMIF('VSAOI data'!$Z:$Z,YEAR(K$2)&MONTH(K$2)&\"C*\",'VSAOI data'!$AM:$AM)+SUMIF('VSAOI data'!$Z:$Z,YEAR(K$2)&MONTH(K$2)&\"A*\",'VSAOI data'!$AM:$AM)","v":0},{"$f":"SUMIF('VSAOI data'!$Z:$Z,YEAR(L$2)&MONTH(L$2)&\"D*\",'VSAOI data'!$AM:$AM)+SUMIF('VSAOI data'!$Z:$Z,YEAR(L$2)&MONTH(L$2)&\"C*\",'VSAOI data'!$AM:$AM)+SUMIF('VSAOI data'!$Z:$Z,YEAR(L$2)&MONTH(L$2)&\"A*\",'VSAOI data'!$AM:$AM)","v":0},{"$f":"SUMIF('VSAOI data'!$Z:$Z,YEAR(M$2)&MONTH(M$2)&\"D*\",'VSAOI data'!$AM:$AM)+SUMIF('VSAOI data'!$Z:$Z,YEAR(M$2)&MONTH(M$2)&\"C*\",'VSAOI data'!$AM:$AM)+SUMIF('VSAOI data'!$Z:$Z,YEAR(M$2)&MONTH(M$2)&\"A*\",'VSAOI data'!$AM:$AM)","v":0},{"$f":"SUMIF('VSAOI data'!$Z:$Z,YEAR(N$2)&MONTH(N$2)&\"D*\",'VSAOI data'!$AM:$AM)+SUMIF('VSAOI data'!$Z:$Z,YEAR(N$2)&MONTH(N$2)&\"C*\",'VSAOI data'!$AM:$AM)+SUMIF('VSAOI data'!$Z:$Z,YEAR(N$2)&MONTH(N$2)&\"A*\",'VSAOI data'!$AM:$AM)","v":0},0]
[null,"starpības",{"$f":"IF(AND('Sakuma lapa'!$J$8=\"iepriekšējo mēnesi\",YEAR(C2)<=2020),IF(D3>0,C13-D12,0),IF(C3>0,C13-C12,0))","v":0},{"$f":"IF('Sakuma lapa'!$J$8=\"iepriekšējo mēnesi\",IF(E3>0,D13-E12,0),IF(D3>0,D13-D12,0))","v":0},{"$f":"IF('Sakuma lapa'!$J$8=\"iepriekšējo mēnesi\",IF(F3>0,E13-F12,0),IF(E3>0,E13-E12,0))","v":0},{"$f":"IF('Sakuma lapa'!$J$8=\"iepriekšējo mēnesi\",IF(G3>0,F13-G12,0),IF(F3>0,F13-F12,0))","v":0},{"$f":"IF('Sakuma lapa'!$J$8=\"iepriekšējo mēnesi\",IF(H3>0,G13-H12,0),IF(G3>0,G13-G12,0))","v":0},{"$f":"IF('Sakuma lapa'!$J$8=\"iepriekšējo mēnesi\",IF(I3>0,H13-I12,0),IF(H3>0,H13-H12,0))","v":0},{"$f":"IF('Sakuma lapa'!$J$8=\"iepriekšējo mēnesi\",IF(J3>0,I13-J12,0),IF(I3>0,I13-I12,0))","v":0},{"$f":"IF('Sakuma lapa'!$J$8=\"iepriekšējo mēnesi\",IF(K3>0,J13-K12,0),IF(J3>0,J13-J12,0))","v":0},{"$f":"IF('Sakuma lapa'!$J$8=\"iepriekšējo mēnesi\",IF(L3>0,K13-L12,0),IF(K3>0,K13-K12,0))","v":0},{"$f":"IF('Sakuma lapa'!$J$8=\"iepriekšējo mēnesi\",IF(M3>0,L13-M12,0),IF(L3>0,L13-L12,0))","v":0},{"$f":"IF('Sakuma lapa'!$J$8=\"iepriekšējo mēnesi\",IF(N3>0,M13-N12,0),IF(M3>0,M13-M12,0))","v":0},{"$f":"IF('Sakuma lapa'!$J$8=\"iepriekšējo mēnesi\",IF(O3>0,N13-#REF!,0),IF(N3>0,N13-N12,0))","v":0},0]
[null,"Riska nodeva",{"$f":"SUMIF('VSAOI data'!$Y:$Y,YEAR(C$2)&MONTH(C$2),'VSAOI data'!$P:$P)","v":0},{"$f":"SUMIF('VSAOI data'!$Y:$Y,YEAR(D$2)&MONTH(D$2),'VSAOI data'!$P:$P)","v":0},{"$f":"SUMIF('VSAOI data'!$Y:$Y,YEAR(E$2)&MONTH(E$2),'VSAOI data'!$P:$P)","v":0},{"$f":"SUMIF('VSAOI data'!$Y:$Y,YEAR(F$2)&MONTH(F$2),'VSAOI data'!$P:$P)","v":0},{"$f":"SUMIF('VSAOI data'!$Y:$Y,YEAR(G$2)&MONTH(G$2),'VSAOI data'!$P:$P)","v":0},{"$f":"SUMIF('VSAOI data'!$Y:$Y,YEAR(H$2)&MONTH(H$2),'VSAOI data'!$P:$P)","v":0},{"$f":"SUMIF('VSAOI data'!$Y:$Y,YEAR(I$2)&MONTH(I$2),'VSAOI data'!$P:$P)","v":0},{"$f":"SUMIF('VSAOI data'!$Y:$Y,YEAR(J$2)&MONTH(J$2),'VSAOI data'!$P:$P)","v":0},{"$f":"SUMIF('VSAOI data'!$Y:$Y,YEAR(K$2)&MONTH(K$2),'VSAOI data'!$P:$P)","v":0},{"$f":"SUMIF('VSAOI data'!$Y:$Y,YEAR(L$2)&MONTH(L$2),'VSAOI data'!$P:$P)","v":0},{"$f":"SUMIF('VSAOI data'!$Y:$Y,YEAR(M$2)&MONTH(M$2),'VSAOI data'!$P:$P)","v":0},{"$f":"SUMIF('VSAOI data'!$Y:$Y,YEAR(N$2)&MONTH(N$2),'VSAOI data'!$P:$P)","v":0},0]
[null,"Nostrādātās stundas",{"$f":"SUMIF('VSAOI data'!$Y:$Y,YEAR(C$2)&MONTH(C$2),'VSAOI data'!$Q:$Q)","v":0},{"$f":"SUMIF('VSAOI data'!$Y:$Y,YEAR(D$2)&MONTH(D$2),'VSAOI data'!$Q:$Q)","v":0},{"$f":"SUMIF('VSAOI data'!$Y:$Y,YEAR(E$2)&MONTH(E$2),'VSAOI data'!$Q:$Q)","v":0},{"$f":"SUMIF('VSAOI data'!$Y:$Y,YEAR(F$2)&MONTH(F$2),'VSAOI data'!$Q:$Q)","v":0},{"$f":"SUMIF('VSAOI data'!$Y:$Y,YEAR(G$2)&MONTH(G$2),'VSAOI data'!$Q:$Q)","v":0},{"$f":"SUMIF('VSAOI data'!$Y:$Y,YEAR(H$2)&MONTH(H$2),'VSAOI data'!$Q:$Q)","v":0},{"$f":"SUMIF('VSAOI data'!$Y:$Y,YEAR(I$2)&MONTH(I$2),'VSAOI data'!$Q:$Q)","v":0},{"$f":"SUMIF('VSAOI data'!$Y:$Y,YEAR(J$2)&MONTH(J$2),'VSAOI data'!$Q:$Q)","v":0},{"$f":"SUMIF('VSAOI data'!$Y:$Y,YEAR(K$2)&MONTH(K$2),'VSAOI data'!$Q:$Q)","v":0},{"$f":"SUMIF('VSAOI data'!$Y:$Y,YEAR(L$2)&MONTH(L$2),'VSAOI data'!$Q:$Q)","v":0},{"$f":"SUMIF('VSAOI data'!$Y:$Y,YEAR(M$2)&MONTH(M$2),'VSAOI data'!$Q:$Q)","v":0},{"$f":"SUMIF('VSAOI data'!$Y:$Y,YEAR(N$2)&MONTH(N$2),'VSAOI data'!$Q:$Q)","v":0},0]
[null,"Atlaistie",{"$f":"COUNTIF('VSAOI data'!$AA:$AA,YEAR(C$2)&MONTH(C$2)&\"Tab4G*\")","v":0},{"$f":"COUNTIF('VSAOI data'!$AA:$AA,YEAR(D$2)&MONTH(D$2)&\"Tab4G*\")","v":0},{"$f":"COUNTIF('VSAOI data'!$AA:$AA,YEAR(E$2)&MONTH(E$2)&\"Tab4G*\")","v":0},{"$f":"COUNTIF('VSAOI data'!$AA:$AA,YEAR(F$2)&MONTH(F$2)&\"Tab4G*\")","v":0},{"$f":"COUNTIF('VSAOI data'!$AA:$AA,YEAR(G$2)&MONTH(G$2)&\"Tab4G*\")","v":0},{"$f":"COUNTIF('VSAOI data'!$AA:$AA,YEAR(H$2)&MONTH(H$2)&\"Tab4G*\")","v":0},{"$f":"COUNTIF('VSAOI data'!$AA:$AA,YEAR(I$2)&MONTH(I$2)&\"Tab4G*\")","v":0},{"$f":"COUNTIF('VSAOI data'!$AA:$AA,YEAR(J$2)&MONTH(J$2)&\"Tab4G*\")","v":0},{"$f":"COUNTIF('VSAOI data'!$AA:$AA,YEAR(K$2)&MONTH(K$2)&\"Tab4G*\")","v":0},{"$f":"COUNTIF('VSAOI data'!$AA:$AA,YEAR(L$2)&MONTH(L$2)&\"Tab4G*\")","v":0},{"$f":"COUNTIF('VSAOI data'!$AA:$AA,YEAR(M$2)&MONTH(M$2)&\"Tab4G*\")","v":0},{"$f":"COUNTIF('VSAOI data'!$AA:$AA,YEAR(N$2)&MONTH(N$2)&\"Tab4G*\")","v":0}]
[null,"Vidējā mēneša alga",{"$f":"IFERROR((SUMIF('VSAOI data'!$AB:$AB,YEAR(C$2)&MONTH(C$2),'VSAOI data'!$J:$J)+SUMIF('VSAOI data'!$AB:$AB,YEAR(C$2)&MONTH(C$2),'VSAOI data'!$L:$L))/COUNTIF('VSAOI data'!$AB:$AB,YEAR(C$2)&MONTH(C$2)),\"-\")","v":"-"},{"$f":"IFERROR((SUMIF('VSAOI data'!$AB:$AB,YEAR(D$2)&MONTH(D$2),'VSAOI data'!$J:$J)+SUMIF('VSAOI data'!$AB:$AB,YEAR(D$2)&MONTH(D$2),'VSAOI data'!$L:$L))/COUNTIF('VSAOI data'!$AB:$AB,YEAR(D$2)&MONTH(D$2)),\"-\")","v":"-"},{"$f":"IFERROR((SUMIF('VSAOI data'!$AB:$AB,YEAR(E$2)&MONTH(E$2),'VSAOI data'!$J:$J)+SUMIF('VSAOI data'!$AB:$AB,YEAR(E$2)&MONTH(E$2),'VSAOI data'!$L:$L))/COUNTIF('VSAOI data'!$AB:$AB,YEAR(E$2)&MONTH(E$2)),\"-\")","v":"-"},{"$f":"IFERROR((SUMIF('VSAOI data'!$AB:$AB,YEAR(F$2)&MONTH(F$2),'VSAOI data'!$J:$J)+SUMIF('VSAOI data'!$AB:$AB,YEAR(F$2)&MONTH(F$2),'VSAOI data'!$L:$L))/COUNTIF('VSAOI data'!$AB:$AB,YEAR(F$2)&MONTH(F$2)),\"-\")","v":"-"},{"$f":"IFERROR((SUMIF('VSAOI data'!$AB:$AB,YEAR(G$2)&MONTH(G$2),'VSAOI data'!$J:$J)+SUMIF('VSAOI data'!$AB:$AB,YEAR(G$2)&MONTH(G$2),'VSAOI data'!$L:$L))/COUNTIF('VSAOI data'!$AB:$AB,YEAR(G$2)&MONTH(G$2)),\"-\")","v":"-"},{"$f":"IFERROR((SUMIF('VSAOI data'!$AB:$AB,YEAR(H$2)&MONTH(H$2),'VSAOI data'!$J:$J)+SUMIF('VSAOI data'!$AB:$AB,YEAR(H$2)&MONTH(H$2),'VSAOI data'!$L:$L))/COUNTIF('VSAOI data'!$AB:$AB,YEAR(H$2)&MONTH(H$2)),\"-\")","v":"-"},{"$f":"IFERROR((SUMIF('VSAOI data'!$AB:$AB,YEAR(I$2)&MONTH(I$2),'VSAOI data'!$J:$J)+SUMIF('VSAOI data'!$AB:$AB,YEAR(I$2)&MONTH(I$2),'VSAOI data'!$L:$L))/COUNTIF('VSAOI data'!$AB:$AB,YEAR(I$2)&MONTH(I$2)),\"-\")","v":"-"},{"$f":"IFERROR((SUMIF('VSAOI data'!$AB:$AB,YEAR(J$2)&MONTH(J$2),'VSAOI data'!$J:$J)+SUMIF('VSAOI data'!$AB:$AB,YEAR(J$2)&MONTH(J$2),'VSAOI data'!$L:$L))/COUNTIF('VSAOI data'!$AB:$AB,YEAR(J$2)&MONTH(J$2)),\"-\")","v":"-"},{"$f":"IFERROR((SUMIF('VSAOI data'!$AB:$AB,YEAR(K$2)&MONTH(K$2),'VSAOI data'!$J:$J)+SUMIF('VSAOI data'!$AB:$AB,YEAR(K$2)&MONTH(K$2),'VSAOI data'!$L:$L))/COUNTIF('VSAOI data'!$AB:$AB,YEAR(K$2)&MONTH(K$2)),\"-\")","v":"-"},{"$f":"IFERROR((SUMIF('VSAOI data'!$AB:$AB,YEAR(L$2)&MONTH(L$2),'VSAOI data'!$J:$J)+SUMIF('VSAOI data'!$AB:$AB,YEAR(L$2)&MONTH(L$2),'VSAOI data'!$L:$L))/COUNTIF('VSAOI data'!$AB:$AB,YEAR(L$2)&MONTH(L$2)),\"-\")","v":"-"},{"$f":"IFERROR((SUMIF('VSAOI data'!$AB:$AB,YEAR(M$2)&MONTH(M$2),'VSAOI data'!$J:$J)+SUMIF('VSAOI data'!$AB:$AB,YEAR(M$2)&MONTH(M$2),'VSAOI data'!$L:$L))/COUNTIF('VSAOI data'!$AB:$AB,YEAR(M$2)&MONTH(M$2)),\"-\")","v":"-"},{"$f":"IFERROR((SUMIF('VSAOI data'!$AB:$AB,YEAR(N$2)&MONTH(N$2),'VSAOI data'!$J:$J)+SUMIF('VSAOI data'!$AB:$AB,YEAR(N$2)&MONTH(N$2),'VSAOI data'!$L:$L))/COUNTIF('VSAOI data'!$AB:$AB,YEAR(N$2)&MONTH(N$2)),\"-\")","v":"-"}]
[null,"Vidējā stundas likme",{"$f":"IFERROR((SUMIF('VSAOI data'!$AB:$AB,YEAR(C$2)&MONTH(C$2),'VSAOI data'!$J:$J)+SUMIF('VSAOI data'!$AB:$AB,YEAR(C$2)&MONTH(C$2),'VSAOI data'!$L:$L))/SUMIF('VSAOI data'!$AB:$AB,YEAR(C$2)&MONTH(C$2),'VSAOI data'!$Q:$Q),\"-\")","v":"-"},{"$f":"IFERROR((SUMIF('VSAOI data'!$AB:$AB,YEAR(D$2)&MONTH(D$2),'VSAOI data'!$J:$J)+SUMIF('VSAOI data'!$AB:$AB,YEAR(D$2)&MONTH(D$2),'VSAOI data'!$L:$L))/SUMIF('VSAOI data'!$AB:$AB,YEAR(D$2)&MONTH(D$2),'VSAOI data'!$Q:$Q),\"-\")","v":"-"},{"$f":"IFERROR((SUMIF('VSAOI data'!$AB:$AB,YEAR(E$2)&MONTH(E$2),'VSAOI data'!$J:$J)+SUMIF('VSAOI data'!$AB:$AB,YEAR(E$2)&MONTH(E$2),'VSAOI data'!$L:$L))/SUMIF('VSAOI data'!$AB:$AB,YEAR(E$2)&MONTH(E$2),'VSAOI data'!$Q:$Q),\"-\")","v":"-"},{"$f":"IFERROR((SUMIF('VSAOI data'!$AB:$AB,YEAR(F$2)&MONTH(F$2),'VSAOI data'!$J:$J)+SUMIF('VSAOI data'!$AB:$AB,YEAR(F$2)&MONTH(F$2),'VSAOI data'!$L:$L))/SUMIF('VSAOI data'!$AB:$AB,YEAR(F$2)&MONTH(F$2),'VSAOI data'!$Q:$Q),\"-\")","v":"-"},{"$f":"IFERROR((SUMIF('VSAOI data'!$AB:$AB,YEAR(G$2)&MONTH(G$2),'VSAOI data'!$J:$J)+SUMIF('VSAOI data'!$AB:$AB,YEAR(G$2)&MONTH(G$2),'VSAOI data'!$L:$L))/SUMIF('VSAOI data'!$AB:$AB,YEAR(G$2)&MONTH(G$2),'VSAOI data'!$Q:$Q),\"-\")","v":"-"},{"$f":"IFERROR((SUMIF('VSAOI data'!$AB:$AB,YEAR(H$2)&MONTH(H$2),'VSAOI data'!$J:$J)+SUMIF('VSAOI data'!$AB:$AB,YEAR(H$2)&MONTH(H$2),'VSAOI data'!$L:$L))/SUMIF('VSAOI data'!$AB:$AB,YEAR(H$2)&MONTH(H$2),'VSAOI data'!$Q:$Q),\"-\")","v":"-"},{"$f":"IFERROR((SUMIF('VSAOI data'!$AB:$AB,YEAR(I$2)&MONTH(I$2),'VSAOI data'!$J:$J)+SUMIF('VSAOI data'!$AB:$AB,YEAR(I$2)&MONTH(I$2),'VSAOI data'!$L:$L))/SUMIF('VSAOI data'!$AB:$AB,YEAR(I$2)&MONTH(I$2),'VSAOI data'!$Q:$Q),\"-\")","v":"-"},{"$f":"IFERROR((SUMIF('VSAOI data'!$AB:$AB,YEAR(J$2)&MONTH(J$2),'VSAOI data'!$J:$J)+SUMIF('VSAOI data'!$AB:$AB,YEAR(J$2)&MONTH(J$2),'VSAOI data'!$L:$L))/SUMIF('VSAOI data'!$AB:$AB,YEAR(J$2)&MONTH(J$2),'VSAOI data'!$Q:$Q),\"-\")","v":"-"},{"$f":"IFERROR((SUMIF('VSAOI data'!$AB:$AB,YEAR(K$2)&MONTH(K$2),'VSAOI data'!$J:$J)+SUMIF('VSAOI data'!$AB:$AB,YEAR(K$2)&MONTH(K$2),'VSAOI data'!$L:$L))/SUMIF('VSAOI data'!$AB:$AB,YEAR(K$2)&MONTH(K$2),'VSAOI data'!$Q:$Q),\"-\")","v":"-"},{"$f":"IFERROR((SUMIF('VSAOI data'!$AB:$AB,YEAR(L$2)&MONTH(L$2),'VSAOI data'!$J:$J)+SUMIF('VSAOI data'!$AB:$AB,YEAR(L$2)&MONTH(L$2),'VSAOI data'!$L:$L))/SUMIF('VSAOI data'!$AB:$AB,YEAR(L$2)&MONTH(L$2),'VSAOI data'!$Q:$Q),\"-\")","v":"-"},{"$f":"IFERROR((SUMIF('VSAOI data'!$AB:$AB,YEAR(M$2)&MONTH(M$2),'VSAOI data'!$J:$J)+SUMIF('VSAOI data'!$AB:$AB,YEAR(M$2)&MONTH(M$2),'VSAOI data'!$L:$L))/SUMIF('VSAOI data'!$AB:$AB,YEAR(M$2)&MONTH(M$2),'VSAOI data'!$Q:$Q),\"-\")","v":"-"},{"$f":"IFERROR((SUMIF('VSAOI data'!$AB:$AB,YEAR(N$2)&MONTH(N$2),'VSAOI data'!$J:$J)+SUMIF('VSAOI data'!$AB:$AB,YEAR(N$2)&MONTH(N$2),'VSAOI data'!$L:$L))/SUMIF('VSAOI data'!$AB:$AB,YEAR(N$2)&MONTH(N$2),'VSAOI data'!$Q:$Q),\"-\")","v":"-"}]
[]
[null,"VG - Bruto alga",null,null,null,null,null,null,null,null,null,null,null,null,{"$f":"SUM(C21:N21)","v":0}]
[null,"VG - Aprēķinātās DD VSAOI",null,null,null,null,null,null,null,null,null,null,null,null,0]
[null,"VG - Aprēķinātās DŅ VSAOI",null,null,null,null,null,null,null,null,null,null,null,null,0]
[null,"VG - Ieturētais IIN ",null,null,null,null,null,null,null,null,null,null,null,null,0]
[null,"VG - Riska nodeva",null,null,null,null,null,null,null,null,null,null,null,null,0]
[]
[null,"Novirze - Bruto alga",{"$f":"C3-C21","v":0},{"$f":"D3-D21","v":0},0,0,0,0,0,0,0,0,0,0,{"$f":"SUM(C27:N27)","v":0}]
[null,"Novirze - Aprēķinātās DD VSAOI",{"$f":"C4-C22","v":0},{"$f":"D4-D22","v":0},0,0,0,0,0,0,0,0,0,0,0]
[null,"Novirze - Aprēķinātās DŅ VSAOI",{"$f":"C5-C23","v":0},{"$f":"D5-D23","v":0},0,0,0,0,0,0,0,0,0,0,0]
[null,"Novirze - Ieturētais IIN",{"$f":"C12-C24","v":0},{"$f":"D12-D24","v":0},0,0,0,0,0,0,0,0,0,0,0]
[null,"Novirze - Riska nodeva",{"$f":"C15-C25","v":0},{"$f":"D15-D25","v":0},0,0,0,0,0,0,0,0,0,0,0]
[]
[]
[]
[null,"(+ parāds, - pārmaksa)"]
[null,"VSAOI - VG sakuma atlikums",null,{"$f":"SUM(C36:C39)","v":0},0,0,0,0,0,0,0,0,0,0,{"$f":"SUM(N36:N39)","v":0}]
[null,"Aprēķins - Deklarācijas",{"$f":"-SUMIFS('VSAOI transakcijas'!$R:$R,'VSAOI transakcijas'!$D:$D,\"Aprēķins\",'VSAOI transakcijas'!$H:$H,\"Pamatsumma\",'VSAOI transakcijas'!$S:$S,\">=\"&DATE(YEAR(C2),MONTH(C2),1),'VSAOI transakcijas'!$S:$S,\"<=\"&'Sakuma lapa'!$F$16,'VSAOI transakcijas'!$O:$O,YEAR(DATE(YEAR(C2),MONTH(C2)+2,0)),'VSAOI transakcijas'!$P:$P,RIGHT(\"0\"&MONTH(DATE(YEAR(C2),MONTH(C2)+2,0)),2),'VSAOI transakcijas'!$Q:$Q,\"VSAOI\",'VSAOI transakcijas'!$K:$K,\"<>\"&\"FIFO*\",'VSAOI transakcijas'!$K:$K,\"<>\"&\"Iemaksas atbrīvošana\",'VSAOI transakcijas'!$E:$E,\"Deklarācija/pārskats\")","v":0},{"$f":"-SUMIFS('VSAOI transakcijas'!$R:$R,'VSAOI transakcijas'!$D:$D,\"Aprēķins\",'VSAOI transakcijas'!$H:$H,\"Pamatsumma\",'VSAOI transakcijas'!$S:$S,\">=\"&DATE(YEAR(D2),MONTH(D2),1),'VSAOI transakcijas'!$S:$S,\"<=\"&'Sakuma lapa'!$F$16,'VSAOI transakcijas'!$O:$O,YEAR(DATE(YEAR(D2),MONTH(D2)+2,0)),'VSAOI transakcijas'!$P:$P,RIGHT(\"0\"&MONTH(DATE(YEAR(D2),MONTH(D2)+2,0)),2),'VSAOI transakcijas'!$Q:$Q,\"VSAOI\",'VSAOI transakcijas'!$K:$K,\"<>\"&\"FIFO*\",'VSAOI transakcijas'!$K:$K,\"<>\"&\"Iemaksas atbrīvošana\",'VSAOI transakcijas'!$E:$E,\"Deklarācija/pārskats\")","v":0},{"$f":"-SUMIFS('VSAOI transakcijas'!$R:$R,'VSAOI transakcijas'!$D:$D,\"Aprēķins\",'VSAOI transakcijas'!$H:$H,\"Pamatsumma\",'VSAOI transakcijas'!$S:$S,\">=\"&DATE(YEAR(E2),MONTH(E2),1),'VSAOI transakcijas'!$S:$S,\"<=\"&'Sakuma lapa'!$F$16,'VSAOI transakcijas'!$O:$O,YEAR(DATE(YEAR(E2),MONTH(E2)+2,0)),'VSAOI transakcijas'!$P:$P,RIGHT(\"0\"&MONTH(DATE(YEAR(E2),MONTH(E2)+2,0)),2),'VSAOI transakcijas'!$Q:$Q,\"VSAOI\",'VSAOI transakcijas'!$K:$K,\"<>\"&\"FIFO*\",'VSAOI transakcijas'!$K:$K,\"<>\"&\"Iemaksas atbrīvošana\",'VSAOI transakcijas'!$E:$E,\"Deklarācija/pārskats\")","v":0},{"$f":"-SUMIFS('VSAOI transakcijas'!$R:$R,'VSAOI transakcijas'!$D:$D,\"Aprēķins\",'VSAOI transakcijas'!$H:$H,\"Pamatsumma\",'VSAOI transakcijas'!$S:$S,\">=\"&DATE(YEAR(F2),MONTH(F2),1),'VSAOI transakcijas'!$S:$S,\"<=\"&'Sakuma lapa'!$F$16,'VSAOI transakcijas'!$O:$O,YEAR(DATE(YEAR(F2),MONTH(F2)+2,0)),'VSAOI transakcijas'!$P:$P,RIGHT(\"0\"&MONTH(DATE(YEAR(F2),MONTH(F2)+2,0)),2),'VSAOI transakcijas'!$Q:$Q,\"VSAOI\",'VSAOI transakcijas'!$K:$K,\"<>\"&\"FIFO*\",'VSAOI transakcijas'!$K:$K,\"<>\"&\"Iemaksas atbrīvošana\",'VSAOI transakcijas'!$E:$E,\"Deklarācija/pārskats\")","v":0},{"$f":"-SUMIFS('VSAOI transakcijas'!$R:$R,'VSAOI transakcijas'!$D:$D,\"Aprēķins\",'VSAOI transakcijas'!$H:$H,\"Pamatsumma\",'VSAOI transakcijas'!$S:$S,\">=\"&DATE(YEAR(G2),MONTH(G2),1),'VSAOI transakcijas'!$S:$S,\"<=\"&'Sakuma lapa'!$F$16,'VSAOI transakcijas'!$O:$O,YEAR(DATE(YEAR(G2),MONTH(G2)+2,0)),'VSAOI transakcijas'!$P:$P,RIGHT(\"0\"&MONTH(DATE(YEAR(G2),MONTH(G2)+2,0)),2),'VSAOI transakcijas'!$Q:$Q,\"VSAOI\",'VSAOI transakcijas'!$K:$K,\"<>\"&\"FIFO*\",'VSAOI transakcijas'!$K:$K,\"<>\"&\"Iemaksas atbrīvošana\",'VSAOI transakcijas'!$E:$E,\"Deklarācija/pārskats\")","v":0},{"$f":"-SUMIFS('VSAOI transakcijas'!$R:$R,'VSAOI transakcijas'!$D:$D,\"Aprēķins\",'VSAOI transakcijas'!$H:$H,\"Pamatsumma\",'VSAOI transakcijas'!$S:$S,\">=\"&DATE(YEAR(H2),MONTH(H2),1),'VSAOI transakcijas'!$S:$S,\"<=\"&'Sakuma lapa'!$F$16,'VSAOI transakcijas'!$O:$O,YEAR(DATE(YEAR(H2),MONTH(H2)+2,0)),'VSAOI transakcijas'!$P:$P,RIGHT(\"0\"&MONTH(DATE(YEAR(H2),MONTH(H2)+2,0)),2),'VSAOI transakcijas'!$Q:$Q,\"VSAOI\",'VSAOI transakcijas'!$K:$K,\"<>\"&\"FIFO*\",'VSAOI transakcijas'!$K:$K,\"<>\"&\"Iemaksas atbrīvošana\",'VSAOI transakcijas'!$E:$E,\"Deklarācija/pārskats\")","v":0},{"$f":"-SUMIFS('VSAOI transakcijas'!$R:$R,'VSAOI transakcijas'!$D:$D,\"Aprēķins\",'VSAOI transakcijas'!$H:$H,\"Pamatsumma\",'VSAOI transakcijas'!$S:$S,\">=\"&DATE(YEAR(I2),MONTH(I2),1),'VSAOI transakcijas'!$S:$S,\"<=\"&'Sakuma lapa'!$F$16,'VSAOI transakcijas'!$O:$O,YEAR(DATE(YEAR(I2),MONTH(I2)+2,0)),'VSAOI transakcijas'!$P:$P,RIGHT(\"0\"&MONTH(DATE(YEAR(I2),MONTH(I2)+2,0)),2),'VSAOI transakcijas'!$Q:$Q,\"VSAOI\",'VSAOI transakcijas'!$K:$K,\"<>\"&\"FIFO*\",'VSAOI transakcijas'!$K:$K,\"<>\"&\"Iemaksas atbrīvošana\",'VSAOI transakcijas'!$E:$E,\"Deklarācija/pārskats\")","v":0},{"$f":"-SUMIFS('VSAOI transakcijas'!$R:$R,'VSAOI transakcijas'!$D:$D,\"Aprēķins\",'VSAOI transakcijas'!$H:$H,\"Pamatsumma\",'VSAOI transakcijas'!$S:$S,\">=\"&DATE(YEAR(J2),MONTH(J2),1),'VSAOI transakcijas'!$S:$S,\"<=\"&'Sakuma lapa'!$F$16,'VSAOI transakcijas'!$O:$O,YEAR(DATE(YEAR(J2),MONTH(J2)+2,0)),'VSAOI transakcijas'!$P:$P,RIGHT(\"0\"&MONTH(DATE(YEAR(J2),MONTH(J2)+2,0)),2),'VSAOI transakcijas'!$Q:$Q,\"VSAOI\",'VSAOI transakcijas'!$K:$K,\"<>\"&\"FIFO*\",'VSAOI transakcijas'!$K:$K,\"<>\"&\"Iemaksas atbrīvošana\",'VSAOI transakcijas'!$E:$E,\"Deklarācija/pārskats\")","v":0},{"$f":"-SUMIFS('VSAOI transakcijas'!$R:$R,'VSAOI transakcijas'!$D:$D,\"Aprēķins\",'VSAOI transakcijas'!$H:$H,\"Pamatsumma\",'VSAOI transakcijas'!$S:$S,\">=\"&DATE(YEAR(K2),MONTH(K2),1),'VSAOI transakcijas'!$S:$S,\"<=\"&'Sakuma lapa'!$F$16,'VSAOI transakcijas'!$O:$O,YEAR(DATE(YEAR(K2),MONTH(K2)+2,0)),'VSAOI transakcijas'!$P:$P,RIGHT(\"0\"&MONTH(DATE(YEAR(K2),MONTH(K2)+2,0)),2),'VSAOI transakcijas'!$Q:$Q,\"VSAOI\",'VSAOI transakcijas'!$K:$K,\"<>\"&\"FIFO*\",'VSAOI transakcijas'!$K:$K,\"<>\"&\"Iemaksas atbrīvošana\",'VSAOI transakcijas'!$E:$E,\"Deklarācija/pārskats\")","v":0},{"$f":"-SUMIFS('VSAOI transakcijas'!$R:$R,'VSAOI transakcijas'!$D:$D,\"Aprēķins\",'VSAOI transakcijas'!$H:$H,\"Pamatsumma\",'VSAOI transakcijas'!$S:$S,\">=\"&DATE(YEAR(L2),MONTH(L2),1),'VSAOI transakcijas'!$S:$S,\"<=\"&'Sakuma lapa'!$F$16,'VSAOI transakcijas'!$O:$O,YEAR(DATE(YEAR(L2),MONTH(L2)+2,0)),'VSAOI transakcijas'!$P:$P,RIGHT(\"0\"&MONTH(DATE(YEAR(L2),MONTH(L2)+2,0)),2),'VSAOI transakcijas'!$Q:$Q,\"VSAOI\",'VSAOI transakcijas'!$K:$K,\"<>\"&\"FIFO*\",'VSAOI transakcijas'!$K:$K,\"<>\"&\"Iemaksas atbrīvošana\",'VSAOI transakcijas'!$E:$E,\"Deklarācija/pārskats\")","v":0},{"$f":"-SUMIFS('VSAOI transakcijas'!$R:$R,'VSAOI transakcijas'!$D:$D,\"Aprēķins\",'VSAOI transakcijas'!$H:$H,\"Pamatsumma\",'VSAOI transakcijas'!$S:$S,\">=\"&DATE(YEAR(M2),MONTH(M2),1),'VSAOI transakcijas'!$S:$S,\"<=\"&'Sakuma lapa'!$F$16,'VSAOI transakcijas'!$O:$O,YEAR(DATE(YEAR(M2),MONTH(M2)+2,0)),'VSAOI transakcijas'!$P:$P,RIGHT(\"0\"&MONTH(DATE(YEAR(M2),MONTH(M2)+2,0)),2),'VSAOI transakcijas'!$Q:$Q,\"VSAOI\",'VSAOI transakcijas'!$K:$K,\"<>\"&\"FIFO*\",'VSAOI transakcijas'!$K:$K,\"<>\"&\"Iemaksas atbrīvošana\",'VSAOI transakcijas'!$E:$E,\"Deklarācija/pārskats\")","v":0},{"$f":"-SUMIFS('VSAOI transakcijas'!$R:$R,'VSAOI transakcijas'!$D:$D,\"Aprēķins\",'VSAOI transakcijas'!$H:$H,\"Pamatsumma\",'VSAOI transakcijas'!$S:$S,\">=\"&DATE(YEAR(N2),MONTH(N2),1),'VSAOI transakcijas'!$S:$S,\"<=\"&'Sakuma lapa'!$F$16,'VSAOI transakcijas'!$O:$O,YEAR(DATE(YEAR(N2),MONTH(N2)+2,0)),'VSAOI transakcijas'!$P:$P,RIGHT(\"0\"&MONTH(DATE(YEAR(N2),MONTH(N2)+2,0)),2),'VSAOI transakcijas'!$Q:$Q,\"VSAOI\",'VSAOI transakcijas'!$K:$K,\"<>\"&\"FIFO*\",'VSAOI transakcijas'!$K:$K,\"<>\"&\"Iemaksas atbrīvošana\",'VSAOI transakcijas'!$E:$E,\"Deklarācija/pārskats\")","v":0},{"$f":"SUM(C37:N37)","v":0}]
[null,"Aprēķins - Citi",{"$f":"-SUMIFS('VSAOI transakcijas'!$R:$R,'VSAOI transakcijas'!$D:$D,\"Aprēķins\",'VSAOI transakcijas'!$H:$H,\"Pamatsumma\",'VSAOI transakcijas'!$S:$S,\">=\"&DATE(YEAR(C2),MONTH(C2),1),'VSAOI transakcijas'!$S:$S,\"<=\"&'Sakuma lapa'!$F$16,'VSAOI transakcijas'!$O:$O,YEAR(DATE(YEAR(C2),MONTH(C2)+2,0)),'VSAOI transakcijas'!$P:$P,RIGHT(\"0\"&MONTH(DATE(YEAR(C2),MONTH(C2)+2,0)),2),'VSAOI transakcijas'!$Q:$Q,\"VSAOI\",'VSAOI transakcijas'!$K:$K,\"<>\"&\"FIFO*\",'VSAOI transakcijas'!$K:$K,\"<>\"&\"Iemaksas atbrīvošana\",'VSAOI transakcijas'!$E:$E,\"<>\"&\"Deklarācija/pārskats\")","v":0},{"$f":"-SUMIFS('VSAOI transakcijas'!$R:$R,'VSAOI transakcijas'!$D:$D,\"Aprēķins\",'VSAOI transakcijas'!$H:$H,\"Pamatsumma\",'VSAOI transakcijas'!$S:$S,\">=\"&DATE(YEAR(D2),MONTH(D2),1),'VSAOI transakcijas'!$S:$S,\"<=\"&'Sakuma lapa'!$F$16,'VSAOI transakcijas'!$O:$O,YEAR(DATE(YEAR(D2),MONTH(D2)+2,0)),'VSAOI transakcijas'!$P:$P,RIGHT(\"0\"&MONTH(DATE(YEAR(D2),MONTH(D2)+2,0)),2),'VSAOI transakcijas'!$Q:$Q,\"VSAOI\",'VSAOI transakcijas'!$K:$K,\"<>\"&\"FIFO*\",'VSAOI transakcijas'!$K:$K,\"<>\"&\"Iemaksas atbrīvošana\",'VSAOI transakcijas'!$E:$E,\"<>\"&\"Deklarācija/pārskats\")","v":0},{"$f":"-SUMIFS('VSAOI transakcijas'!$R:$R,'VSAOI transakcijas'!$D:$D,\"Aprēķins\",'VSAOI transakcijas'!$H:$H,\"Pamatsumma\",'VSAOI transakcijas'!$S:$S,\">=\"&DATE(YEAR(E2),MONTH(E2),1),'VSAOI transakcijas'!$S:$S,\"<=\"&'Sakuma lapa'!$F$16,'VSAOI transakcijas'!$O:$O,YEAR(DATE(YEAR(E2),MONTH(E2)+2,0)),'VSAOI transakcijas'!$P:$P,RIGHT(\"0\"&MONTH(DATE(YEAR(E2),MONTH(E2)+2,0)),2),'VSAOI transakcijas'!$Q:$Q,\"VSAOI\",'VSAOI transakcijas'!$K:$K,\"<>\"&\"FIFO*\",'VSAOI transakcijas'!$K:$K,\"<>\"&\"Iemaksas atbrīvošana\",'VSAOI transakcijas'!$E:$E,\"<>\"&\"Deklarācija/pārskats\")","v":0},{"$f":"-SUMIFS('VSAOI transakcijas'!$R:$R,'VSAOI transakcijas'!$D:$D,\"Aprēķins\",'VSAOI transakcijas'!$H:$H,\"Pamatsumma\",'VSAOI transakcijas'!$S:$S,\">=\"&DATE(YEAR(F2),MONTH(F2),1),'VSAOI transakcijas'!$S:$S,\"<=\"&'Sakuma lapa'!$F$16,'VSAOI transakcijas'!$O:$O,YEAR(DATE(YEAR(F2),MONTH(F2)+2,0)),'VSAOI transakcijas'!$P:$P,RIGHT(\"0\"&MONTH(DATE(YEAR(F2),MONTH(F2)+2,0)),2),'VSAOI transakcijas'!$Q:$Q,\"VSAOI\",'VSAOI transakcijas'!$K:$K,\"<>\"&\"FIFO*\",'VSAOI transakcijas'!$K:$K,\"<>\"&\"Iemaksas atbrīvošana\",'VSAOI transakcijas'!$E:$E,\"<>\"&\"Deklarācija/pārskats\")","v":0},{"$f":"-SUMIFS('VSAOI transakcijas'!$R:$R,'VSAOI transakcijas'!$D:$D,\"Aprēķins\",'VSAOI transakcijas'!$H:$H,\"Pamatsumma\",'VSAOI transakcijas'!$S:$S,\">=\"&DATE(YEAR(G2),MONTH(G2),1),'VSAOI transakcijas'!$S:$S,\"<=\"&'Sakuma lapa'!$F$16,'VSAOI transakcijas'!$O:$O,YEAR(DATE(YEAR(G2),MONTH(G2)+2,0)),'VSAOI transakcijas'!$P:$P,RIGHT(\"0\"&MONTH(DATE(YEAR(G2),MONTH(G2)+2,0)),2),'VSAOI transakcijas'!$Q:$Q,\"VSAOI\",'VSAOI transakcijas'!$K:$K,\"<>\"&\"FIFO*\",'VSAOI transakcijas'!$K:$K,\"<>\"&\"Iemaksas atbrīvošana\",'VSAOI transakcijas'!$E:$E,\"<>\"&\"Deklarācija/pārskats\")","v":0},{"$f":"-SUMIFS('VSAOI transakcijas'!$R:$R,'VSAOI transakcijas'!$D:$D,\"Aprēķins\",'VSAOI transakcijas'!$H:$H,\"Pamatsumma\",'VSAOI transakcijas'!$S:$S,\">=\"&DATE(YEAR(H2),MONTH(H2),1),'VSAOI transakcijas'!$S:$S,\"<=\"&'Sakuma lapa'!$F$16,'VSAOI transakcijas'!$O:$O,YEAR(DATE(YEAR(H2),MONTH(H2)+2,0)),'VSAOI transakcijas'!$P:$P,RIGHT(\"0\"&MONTH(DATE(YEAR(H2),MONTH(H2)+2,0)),2),'VSAOI transakcijas'!$Q:$Q,\"VSAOI\",'VSAOI transakcijas'!$K:$K,\"<>\"&\"FIFO*\",'VSAOI transakcijas'!$K:$K,\"<>\"&\"Iemaksas atbrīvošana\",'VSAOI transakcijas'!$E:$E,\"<>\"&\"Deklarācija/pārskats\")","v":0},{"$f":"-SUMIFS('VSAOI transakcijas'!$R:$R,'VSAOI transakcijas'!$D:$D,\"Aprēķins\",'VSAOI transakcijas'!$H:$H,\"Pamatsumma\",'VSAOI transakcijas'!$S:$S,\">=\"&DATE(YEAR(I2),MONTH(I2),1),'VSAOI transakcijas'!$S:$S,\"<=\"&'Sakuma lapa'!$F$16,'VSAOI transakcijas'!$O:$O,YEAR(DATE(YEAR(I2),MONTH(I2)+2,0)),'VSAOI transakcijas'!$P:$P,RIGHT(\"0\"&MONTH(DATE(YEAR(I2),MONTH(I2)+2,0)),2),'VSAOI transakcijas'!$Q:$Q,\"VSAOI\",'VSAOI transakcijas'!$K:$K,\"<>\"&\"FIFO*\",'VSAOI transakcijas'!$K:$K,\"<>\"&\"Iemaksas atbrīvošana\",'VSAOI transakcijas'!$E:$E,\"<>\"&\"Deklarācija/pārskats\")","v":0},{"$f":"-SUMIFS('VSAOI transakcijas'!$R:$R,'VSAOI transakcijas'!$D:$D,\"Aprēķins\",'VSAOI transakcijas'!$H:$H,\"Pamatsumma\",'VSAOI transakcijas'!$S:$S,\">=\"&DATE(YEAR(J2),MONTH(J2),1),'VSAOI transakcijas'!$S:$S,\"<=\"&'Sakuma lapa'!$F$16,'VSAOI transakcijas'!$O:$O,YEAR(DATE(YEAR(J2),MONTH(J2)+2,0)),'VSAOI transakcijas'!$P:$P,RIGHT(\"0\"&MONTH(DATE(YEAR(J2),MONTH(J2)+2,0)),2),'VSAOI transakcijas'!$Q:$Q,\"VSAOI\",'VSAOI transakcijas'!$K:$K,\"<>\"&\"FIFO*\",'VSAOI transakcijas'!$K:$K,\"<>\"&\"Iemaksas atbrīvošana\",'VSAOI transakcijas'!$E:$E,\"<>\"&\"Deklarācija/pārskats\")","v":0},{"$f":"-SUMIFS('VSAOI transakcijas'!$R:$R,'VSAOI transakcijas'!$D:$D,\"Aprēķins\",'VSAOI transakcijas'!$H:$H,\"Pamatsumma\",'VSAOI transakcijas'!$S:$S,\">=\"&DATE(YEAR(K2),MONTH(K2),1),'VSAOI transakcijas'!$S:$S,\"<=\"&'Sakuma lapa'!$F$16,'VSAOI transakcijas'!$O:$O,YEAR(DATE(YEAR(K2),MONTH(K2)+2,0)),'VSAOI transakcijas'!$P:$P,RIGHT(\"0\"&MONTH(DATE(YEAR(K2),MONTH(K2)+2,0)),2),'VSAOI transakcijas'!$Q:$Q,\"VSAOI\",'VSAOI transakcijas'!$K:$K,\"<>\"&\"FIFO*\",'VSAOI transakcijas'!$K:$K,\"<>\"&\"Iemaksas atbrīvošana\",'VSAOI transakcijas'!$E:$E,\"<>\"&\"Deklarācija/pārskats\")","v":0},{"$f":"-SUMIFS('VSAOI transakcijas'!$R:$R,'VSAOI transakcijas'!$D:$D,\"Aprēķins\",'VSAOI transakcijas'!$H:$H,\"Pamatsumma\",'VSAOI transakcijas'!$S:$S,\">=\"&DATE(YEAR(L2),MONTH(L2),1),'VSAOI transakcijas'!$S:$S,\"<=\"&'Sakuma lapa'!$F$16,'VSAOI transakcijas'!$O:$O,YEAR(DATE(YEAR(L2),MONTH(L2)+2,0)),'VSAOI transakcijas'!$P:$P,RIGHT(\"0\"&MONTH(DATE(YEAR(L2),MONTH(L2)+2,0)),2),'VSAOI transakcijas'!$Q:$Q,\"VSAOI\",'VSAOI transakcijas'!$K:$K,\"<>\"&\"FIFO*\",'VSAOI transakcijas'!$K:$K,\"<>\"&\"Iemaksas atbrīvošana\",'VSAOI transakcijas'!$E:$E,\"<>\"&\"Deklarācija/pārskats\")","v":0},{"$f":"-SUMIFS('VSAOI transakcijas'!$R:$R,'VSAOI transakcijas'!$D:$D,\"Aprēķins\",'VSAOI transakcijas'!$H:$H,\"Pamatsumma\",'VSAOI transakcijas'!$S:$S,\">=\"&DATE(YEAR(M2),MONTH(M2),1),'VSAOI transakcijas'!$S:$S,\"<=\"&'Sakuma lapa'!$F$16,'VSAOI transakcijas'!$O:$O,YEAR(DATE(YEAR(M2),MONTH(M2)+2,0)),'VSAOI transakcijas'!$P:$P,RIGHT(\"0\"&MONTH(DATE(YEAR(M2),MONTH(M2)+2,0)),2),'VSAOI transakcijas'!$Q:$Q,\"VSAOI\",'VSAOI transakcijas'!$K:$K,\"<>\"&\"FIFO*\",'VSAOI transakcijas'!$K:$K,\"<>\"&\"Iemaksas atbrīvošana\",'VSAOI transakcijas'!$E:$E,\"<>\"&\"Deklarācija/pārskats\")","v":0},{"$f":"-SUMIFS('VSAOI transakcijas'!$R:$R,'VSAOI transakcijas'!$D:$D,\"Aprēķins\",'VSAOI transakcijas'!$H:$H,\"Pamatsumma\",'VSAOI transakcijas'!$S:$S,\">=\"&DATE(YEAR(N2),MONTH(N2),1),'VSAOI transakcijas'!$S:$S,\"<=\"&'Sakuma lapa'!$F$16,'VSAOI transakcijas'!$O:$O,YEAR(DATE(YEAR(N2),MONTH(N2)+2,0)),'VSAOI transakcijas'!$P:$P,RIGHT(\"0\"&MONTH(DATE(YEAR(N2),MONTH(N2)+2,0)),2),'VSAOI transakcijas'!$Q:$Q,\"VSAOI\",'VSAOI transakcijas'!$K:$K,\"<>\"&\"FIFO*\",'VSAOI transakcijas'!$K:$K,\"<>\"&\"Iemaksas atbrīvošana\",'VSAOI transakcijas'!$E:$E,\"<>\"&\"Deklarācija/pārskats\")","v":0},{"$f":"SUM(C38:N38)","v":0}]
[null,"Iemaksa/Atmaksa/Pārvietošana",{"$f":"-SUMIFS('VSAOI transakcijas'!$R:$R,'VSAOI transakcijas'!$D:$D,\"Iemaksa\",'VSAOI transakcijas'!$H:$H,\"Pamatsumma\",'VSAOI transakcijas'!$S:$S,\">=\"&DATE(YEAR(C2),MONTH(C2),1),'VSAOI transakcijas'!$S:$S,\"<=\"&'Sakuma lapa'!$F$16,'VSAOI transakcijas'!$O:$O,YEAR(DATE(YEAR(C2),MONTH(C2)+1,0)),'VSAOI transakcijas'!$P:$P,RIGHT(\"0\"&MONTH(DATE(YEAR(C2),MONTH(C2)+1,0)),2),'VSAOI transakcijas'!$Q:$Q,\"VSAOI\")\n-SUMIFS('VSAOI transakcijas'!$R:$R,'VSAOI transakcijas'!$D:$D,\"Atmaksa\",'VSAOI transakcijas'!$H:$H,\"Pamatsumma\",'VSAOI transakcijas'!$S:$S,\">=\"&DATE(YEAR(C2),MONTH(C2),1),'VSAOI transakcijas'!$S:$S,\"<=\"&'Sakuma lapa'!$F$16,'VSAOI transakcijas'!$O:$O,YEAR(DATE(YEAR(C2),MONTH(C2)+1,0)),'VSAOI transakcijas'!$P:$P,RIGHT(\"0\"&MONTH(DATE(YEAR(C2),MONTH(C2)+1,0)),2),'VSAOI transakcijas'!$Q:$Q,\"VSAOI\")\n-SUMIFS('VSAOI transakcijas'!$R:$R,'VSAOI transakcijas'!$D:$D,\"Aprēķins\",'VSAOI transakcijas'!$H:$H,\"Pamatsumma\",'VSAOI transakcijas'!$S:$S,\">=\"&DATE(YEAR(C2),MONTH(C2),1),'VSAOI transakcijas'!$S:$S,\"<=\"&'Sakuma lapa'!$F$16,'VSAOI transakcijas'!$O:$O,YEAR(DATE(YEAR(C2),MONTH(C2)+1,0)),'VSAOI transakcijas'!$P:$P,RIGHT(\"0\"&MONTH(DATE(YEAR(C2),MONTH(C2)+1,0)),2),'VSAOI transakcijas'!$Q:$Q,\"VSAOI\",'VSAOI transakcijas'!$K:$K,\"FIFO*\")\n-SUMIFS('VSAOI transakcijas'!$R:$R,'VSAOI transakcijas'!$D:$D,\"Aprēķins\",'VSAOI transakcijas'!$H:$H,\"Pamatsumma\",'VSAOI transakcijas'!$S:$S,\">=\"&DATE(YEAR(C2),MONTH(C2),1),'VSAOI transakcijas'!$S:$S,\"<=\"&'Sakuma lapa'!$F$16,'VSAOI transakcijas'!$O:$O,YEAR(DATE(YEAR(C2),MONTH(C2)+1,0)),'VSAOI transakcijas'!$P:$P,RIGHT(\"0\"&MONTH(DATE(YEAR(C2),MONTH(C2)+1,0)),2),'VSAOI transakcijas'!$Q:$Q,\"VSAOI\",'VSAOI transakcijas'!$K:$K,\"Iemaksas atbrīvošana\")\n-SUMIFS('VSAOI transakcijas'!$R:$R,'VSAOI transakcijas'!$H:$H,\"Nokavējuma nauda\",'VSAOI transakcijas'!$S:$S,\">=\"&DATE(YEAR(C2),MONTH(C2),1),'VSAOI transakcijas'!$S:$S,\"<=\"&'Sakuma lapa'!$F$16,'VSAOI transakcijas'!$O:$O,YEAR(DATE(YEAR(C2),MONTH(C2)+1,0)),'VSAOI transakcijas'!$P:$P,RIGHT(\"0\"&MONTH(DATE(YEAR(C2),MONTH(C2)+1,0)),2),'VSAOI transakcijas'!$Q:$Q,\"VSAOI\")","v":0},{"$f":"-SUMIFS('VSAOI transakcijas'!$R:$R,'VSAOI transakcijas'!$D:$D,\"Iemaksa\",'VSAOI transakcijas'!$H:$H,\"Pamatsumma\",'VSAOI transakcijas'!$S:$S,\">=\"&DATE(YEAR(D2),MONTH(D2),1),'VSAOI transakcijas'!$S:$S,\"<=\"&'Sakuma lapa'!$F$16,'VSAOI transakcijas'!$O:$O,YEAR(DATE(YEAR(D2),MONTH(D2)+1,0)),'VSAOI transakcijas'!$P:$P,RIGHT(\"0\"&MONTH(DATE(YEAR(D2),MONTH(D2)+1,0)),2),'VSAOI transakcijas'!$Q:$Q,\"VSAOI\")\n-SUMIFS('VSAOI transakcijas'!$R:$R,'VSAOI transakcijas'!$D:$D,\"Atmaksa\",'VSAOI transakcijas'!$H:$H,\"Pamatsumma\",'VSAOI transakcijas'!$S:$S,\">=\"&DATE(YEAR(D2),MONTH(D2),1),'VSAOI transakcijas'!$S:$S,\"<=\"&'Sakuma lapa'!$F$16,'VSAOI transakcijas'!$O:$O,YEAR(DATE(YEAR(D2),MONTH(D2)+1,0)),'VSAOI transakcijas'!$P:$P,RIGHT(\"0\"&MONTH(DATE(YEAR(D2),MONTH(D2)+1,0)),2),'VSAOI transakcijas'!$Q:$Q,\"VSAOI\")\n-SUMIFS('VSAOI transakcijas'!$R:$R,'VSAOI transakcijas'!$D:$D,\"Aprēķins\",'VSAOI transakcijas'!$H:$H,\"Pamatsumma\",'VSAOI transakcijas'!$S:$S,\">=\"&DATE(YEAR(D2),MONTH(D2),1),'VSAOI transakcijas'!$S:$S,\"<=\"&'Sakuma lapa'!$F$16,'VSAOI transakcijas'!$O:$O,YEAR(DATE(YEAR(D2),MONTH(D2)+1,0)),'VSAOI transakcijas'!$P:$P,RIGHT(\"0\"&MONTH(DATE(YEAR(D2),MONTH(D2)+1,0)),2),'VSAOI transakcijas'!$Q:$Q,\"VSAOI\",'VSAOI transakcijas'!$K:$K,\"FIFO*\")\n-SUMIFS('VSAOI transakcijas'!$R:$R,'VSAOI transakcijas'!$D:$D,\"Aprēķins\",'VSAOI transakcijas'!$H:$H,\"Pamatsumma\",'VSAOI transakcijas'!$S:$S,\">=\"&DATE(YEAR(D2),MONTH(D2),1),'VSAOI transakcijas'!$S:$S,\"<=\"&'Sakuma lapa'!$F$16,'VSAOI transakcijas'!$O:$O,YEAR(DATE(YEAR(D2),MONTH(D2)+1,0)),'VSAOI transakcijas'!$P:$P,RIGHT(\"0\"&MONTH(DATE(YEAR(D2),MONTH(D2)+1,0)),2),'VSAOI transakcijas'!$Q:$Q,\"VSAOI\",'VSAOI transakcijas'!$K:$K,\"Iemaksas atbrīvošana\")\n-SUMIFS('VSAOI transakcijas'!$R:$R,'VSAOI transakcijas'!$H:$H,\"Nokavējuma nauda\",'VSAOI transakcijas'!$S:$S,\">=\"&DATE(YEAR(D2),MONTH(D2),1),'VSAOI transakcijas'!$S:$S,\"<=\"&'Sakuma lapa'!$F$16,'VSAOI transakcijas'!$O:$O,YEAR(DATE(YEAR(D2),MONTH(D2)+1,0)),'VSAOI transakcijas'!$P:$P,RIGHT(\"0\"&MONTH(DATE(YEAR(D2),MONTH(D2)+1,0)),2),'VSAOI transakcijas'!$Q:$Q,\"VSAOI\")","v":0},{"$f":"-SUMIFS('VSAOI transakcijas'!$R:$R,'VSAOI transakcijas'!$D:$D,\"Iemaksa\",'VSAOI transakcijas'!$H:$H,\"Pamatsumma\",'VSAOI transakcijas'!$S:$S,\">=\"&DATE(YEAR(E2),MONTH(E2),1),'VSAOI transakcijas'!$S:$S,\"<=\"&'Sakuma lapa'!$F$16,'VSAOI transakcijas'!$O:$O,YEAR(DATE(YEAR(E2),MONTH(E2)+1,0)),'VSAOI transakcijas'!$P:$P,RIGHT(\"0\"&MONTH(DATE(YEAR(E2),MONTH(E2)+1,0)),2),'VSAOI transakcijas'!$Q:$Q,\"VSAOI\")\n-SUMIFS('VSAOI transakcijas'!$R:$R,'VSAOI transakcijas'!$D:$D,\"Atmaksa\",'VSAOI transakcijas'!$H:$H,\"Pamatsumma\",'VSAOI transakcijas'!$S:$S,\">=\"&DATE(YEAR(E2),MONTH(E2),1),'VSAOI transakcijas'!$S:$S,\"<=\"&'Sakuma lapa'!$F$16,'VSAOI transakcijas'!$O:$O,YEAR(DATE(YEAR(E2),MONTH(E2)+1,0)),'VSAOI transakcijas'!$P:$P,RIGHT(\"0\"&MONTH(DATE(YEAR(E2),MONTH(E2)+1,0)),2),'VSAOI transakcijas'!$Q:$Q,\"VSAOI\")\n-SUMIFS('VSAOI transakcijas'!$R:$R,'VSAOI transakcijas'!$D:$D,\"Aprēķins\",'VSAOI transakcijas'!$H:$H,\"Pamatsumma\",'VSAOI transakcijas'!$S:$S,\">=\"&DATE(YEAR(E2),MONTH(E2),1),'VSAOI transakcijas'!$S:$S,\"<=\"&'Sakuma lapa'!$F$16,'VSAOI transakcijas'!$O:$O,YEAR(DATE(YEAR(E2),MONTH(E2)+1,0)),'VSAOI transakcijas'!$P:$P,RIGHT(\"0\"&MONTH(DATE(YEAR(E2),MONTH(E2)+1,0)),2),'VSAOI transakcijas'!$Q:$Q,\"VSAOI\",'VSAOI transakcijas'!$K:$K,\"FIFO*\")\n-SUMIFS('VSAOI transakcijas'!$R:$R,'VSAOI transakcijas'!$D:$D,\"Aprēķins\",'VSAOI transakcijas'!$H:$H,\"Pamatsumma\",'VSAOI transakcijas'!$S:$S,\">=\"&DATE(YEAR(E2),MONTH(E2),1),'VSAOI transakcijas'!$S:$S,\"<=\"&'Sakuma lapa'!$F$16,'VSAOI transakcijas'!$O:$O,YEAR(DATE(YEAR(E2),MONTH(E2)+1,0)),'VSAOI transakcijas'!$P:$P,RIGHT(\"0\"&MONTH(DATE(YEAR(E2),MONTH(E2)+1,0)),2),'VSAOI transakcijas'!$Q:$Q,\"VSAOI\",'VSAOI transakcijas'!$K:$K,\"Iemaksas atbrīvošana\")\n-SUMIFS('VSAOI transakcijas'!$R:$R,'VSAOI transakcijas'!$H:$H,\"Nokavējuma nauda\",'VSAOI transakcijas'!$S:$S,\">=\"&DATE(YEAR(E2),MONTH(E2),1),'VSAOI transakcijas'!$S:$S,\"<=\"&'Sakuma lapa'!$F$16,'VSAOI transakcijas'!$O:$O,YEAR(DATE(YEAR(E2),MONTH(E2)+1,0)),'VSAOI transakcijas'!$P:$P,RIGHT(\"0\"&MONTH(DATE(YEAR(E2),MONTH(E2)+1,0)),2),'VSAOI transakcijas'!$Q:$Q,\"VSAOI\")","v":0},{"$f":"-SUMIFS('VSAOI transakcijas'!$R:$R,'VSAOI transakcijas'!$D:$D,\"Iemaksa\",'VSAOI transakcijas'!$H:$H,\"Pamatsumma\",'VSAOI transakcijas'!$S:$S,\">=\"&DATE(YEAR(F2),MONTH(F2),1),'VSAOI transakcijas'!$S:$S,\"<=\"&'Sakuma lapa'!$F$16,'VSAOI transakcijas'!$O:$O,YEAR(DATE(YEAR(F2),MONTH(F2)+1,0)),'VSAOI transakcijas'!$P:$P,RIGHT(\"0\"&MONTH(DATE(YEAR(F2),MONTH(F2)+1,0)),2),'VSAOI transakcijas'!$Q:$Q,\"VSAOI\")\n-SUMIFS('VSAOI transakcijas'!$R:$R,'VSAOI transakcijas'!$D:$D,\"Atmaksa\",'VSAOI transakcijas'!$H:$H,\"Pamatsumma\",'VSAOI transakcijas'!$S:$S,\">=\"&DATE(YEAR(F2),MONTH(F2),1),'VSAOI transakcijas'!$S:$S,\"<=\"&'Sakuma lapa'!$F$16,'VSAOI transakcijas'!$O:$O,YEAR(DATE(YEAR(F2),MONTH(F2)+1,0)),'VSAOI transakcijas'!$P:$P,RIGHT(\"0\"&MONTH(DATE(YEAR(F2),MONTH(F2)+1,0)),2),'VSAOI transakcijas'!$Q:$Q,\"VSAOI\")\n-SUMIFS('VSAOI transakcijas'!$R:$R,'VSAOI transakcijas'!$D:$D,\"Aprēķins\",'VSAOI transakcijas'!$H:$H,\"Pamatsumma\",'VSAOI transakcijas'!$S:$S,\">=\"&DATE(YEAR(F2),MONTH(F2),1),'VSAOI transakcijas'!$S:$S,\"<=\"&'Sakuma lapa'!$F$16,'VSAOI transakcijas'!$O:$O,YEAR(DATE(YEAR(F2),MONTH(F2)+1,0)),'VSAOI transakcijas'!$P:$P,RIGHT(\"0\"&MONTH(DATE(YEAR(F2),MONTH(F2)+1,0)),2),'VSAOI transakcijas'!$Q:$Q,\"VSAOI\",'VSAOI transakcijas'!$K:$K,\"FIFO*\")\n-SUMIFS('VSAOI transakcijas'!$R:$R,'VSAOI transakcijas'!$D:$D,\"Aprēķins\",'VSAOI transakcijas'!$H:$H,\"Pamatsumma\",'VSAOI transakcijas'!$S:$S,\">=\"&DATE(YEAR(F2),MONTH(F2),1),'VSAOI transakcijas'!$S:$S,\"<=\"&'Sakuma lapa'!$F$16,'VSAOI transakcijas'!$O:$O,YEAR(DATE(YEAR(F2),MONTH(F2)+1,0)),'VSAOI transakcijas'!$P:$P,RIGHT(\"0\"&MONTH(DATE(YEAR(F2),MONTH(F2)+1,0)),2),'VSAOI transakcijas'!$Q:$Q,\"VSAOI\",'VSAOI transakcijas'!$K:$K,\"Iemaksas atbrīvošana\")\n-SUMIFS('VSAOI transakcijas'!$R:$R,'VSAOI transakcijas'!$H:$H,\"Nokavējuma nauda\",'VSAOI transakcijas'!$S:$S,\">=\"&DATE(YEAR(F2),MONTH(F2),1),'VSAOI transakcijas'!$S:$S,\"<=\"&'Sakuma lapa'!$F$16,'VSAOI transakcijas'!$O:$O,YEAR(DATE(YEAR(F2),MONTH(F2)+1,0)),'VSAOI transakcijas'!$P:$P,RIGHT(\"0\"&MONTH(DATE(YEAR(F2),MONTH(F2)+1,0)),2),'VSAOI transakcijas'!$Q:$Q,\"VSAOI\")","v":0},{"$f":"-SUMIFS('VSAOI transakcijas'!$R:$R,'VSAOI transakcijas'!$D:$D,\"Iemaksa\",'VSAOI transakcijas'!$H:$H,\"Pamatsumma\",'VSAOI transakcijas'!$S:$S,\">=\"&DATE(YEAR(G2),MONTH(G2),1),'VSAOI transakcijas'!$S:$S,\"<=\"&'Sakuma lapa'!$F$16,'VSAOI transakcijas'!$O:$O,YEAR(DATE(YEAR(G2),MONTH(G2)+1,0)),'VSAOI transakcijas'!$P:$P,RIGHT(\"0\"&MONTH(DATE(YEAR(G2),MONTH(G2)+1,0)),2),'VSAOI transakcijas'!$Q:$Q,\"VSAOI\")\n-SUMIFS('VSAOI transakcijas'!$R:$R,'VSAOI transakcijas'!$D:$D,\"Atmaksa\",'VSAOI transakcijas'!$H:$H,\"Pamatsumma\",'VSAOI transakcijas'!$S:$S,\">=\"&DATE(YEAR(G2),MONTH(G2),1),'VSAOI transakcijas'!$S:$S,\"<=\"&'Sakuma lapa'!$F$16,'VSAOI transakcijas'!$O:$O,YEAR(DATE(YEAR(G2),MONTH(G2)+1,0)),'VSAOI transakcijas'!$P:$P,RIGHT(\"0\"&MONTH(DATE(YEAR(G2),MONTH(G2)+1,0)),2),'VSAOI transakcijas'!$Q:$Q,\"VSAOI\")\n-SUMIFS('VSAOI transakcijas'!$R:$R,'VSAOI transakcijas'!$D:$D,\"Aprēķins\",'VSAOI transakcijas'!$H:$H,\"Pamatsumma\",'VSAOI transakcijas'!$S:$S,\">=\"&DATE(YEAR(G2),MONTH(G2),1),'VSAOI transakcijas'!$S:$S,\"<=\"&'Sakuma lapa'!$F$16,'VSAOI transakcijas'!$O:$O,YEAR(DATE(YEAR(G2),MONTH(G2)+1,0)),'VSAOI transakcijas'!$P:$P,RIGHT(\"0\"&MONTH(DATE(YEAR(G2),MONTH(G2)+1,0)),2),'VSAOI transakcijas'!$Q:$Q,\"VSAOI\",'VSAOI transakcijas'!$K:$K,\"FIFO*\")\n-SUMIFS('VSAOI transakcijas'!$R:$R,'VSAOI transakcijas'!$D:$D,\"Aprēķins\",'VSAOI transakcijas'!$H:$H,\"Pamatsumma\",'VSAOI transakcijas'!$S:$S,\">=\"&DATE(YEAR(G2),MONTH(G2),1),'VSAOI transakcijas'!$S:$S,\"<=\"&'Sakuma lapa'!$F$16,'VSAOI transakcijas'!$O:$O,YEAR(DATE(YEAR(G2),MONTH(G2)+1,0)),'VSAOI transakcijas'!$P:$P,RIGHT(\"0\"&MONTH(DATE(YEAR(G2),MONTH(G2)+1,0)),2),'VSAOI transakcijas'!$Q:$Q,\"VSAOI\",'VSAOI transakcijas'!$K:$K,\"Iemaksas atbrīvošana\")\n-SUMIFS('VSAOI transakcijas'!$R:$R,'VSAOI transakcijas'!$H:$H,\"Nokavējuma nauda\",'VSAOI transakcijas'!$S:$S,\">=\"&DATE(YEAR(G2),MONTH(G2),1),'VSAOI transakcijas'!$S:$S,\"<=\"&'Sakuma lapa'!$F$16,'VSAOI transakcijas'!$O:$O,YEAR(DATE(YEAR(G2),MONTH(G2)+1,0)),'VSAOI transakcijas'!$P:$P,RIGHT(\"0\"&MONTH(DATE(YEAR(G2),MONTH(G2)+1,0)),2),'VSAOI transakcijas'!$Q:$Q,\"VSAOI\")","v":0},{"$f":"-SUMIFS('VSAOI transakcijas'!$R:$R,'VSAOI transakcijas'!$D:$D,\"Iemaksa\",'VSAOI transakcijas'!$H:$H,\"Pamatsumma\",'VSAOI transakcijas'!$S:$S,\">=\"&DATE(YEAR(H2),MONTH(H2),1),'VSAOI transakcijas'!$S:$S,\"<=\"&'Sakuma lapa'!$F$16,'VSAOI transakcijas'!$O:$O,YEAR(DATE(YEAR(H2),MONTH(H2)+1,0)),'VSAOI transakcijas'!$P:$P,RIGHT(\"0\"&MONTH(DATE(YEAR(H2),MONTH(H2)+1,0)),2),'VSAOI transakcijas'!$Q:$Q,\"VSAOI\")\n-SUMIFS('VSAOI transakcijas'!$R:$R,'VSAOI transakcijas'!$D:$D,\"Atmaksa\",'VSAOI transakcijas'!$H:$H,\"Pamatsumma\",'VSAOI transakcijas'!$S:$S,\">=\"&DATE(YEAR(H2),MONTH(H2),1),'VSAOI transakcijas'!$S:$S,\"<=\"&'Sakuma lapa'!$F$16,'VSAOI transakcijas'!$O:$O,YEAR(DATE(YEAR(H2),MONTH(H2)+1,0)),'VSAOI transakcijas'!$P:$P,RIGHT(\"0\"&MONTH(DATE(YEAR(H2),MONTH(H2)+1,0)),2),'VSAOI transakcijas'!$Q:$Q,\"VSAOI\")\n-SUMIFS('VSAOI transakcijas'!$R:$R,'VSAOI transakcijas'!$D:$D,\"Aprēķins\",'VSAOI transakcijas'!$H:$H,\"Pamatsumma\",'VSAOI transakcijas'!$S:$S,\">=\"&DATE(YEAR(H2),MONTH(H2),1),'VSAOI transakcijas'!$S:$S,\"<=\"&'Sakuma lapa'!$F$16,'VSAOI transakcijas'!$O:$O,YEAR(DATE(YEAR(H2),MONTH(H2)+1,0)),'VSAOI transakcijas'!$P:$P,RIGHT(\"0\"&MONTH(DATE(YEAR(H2),MONTH(H2)+1,0)),2),'VSAOI transakcijas'!$Q:$Q,\"VSAOI\",'VSAOI transakcijas'!$K:$K,\"FIFO*\")\n-SUMIFS('VSAOI transakcijas'!$R:$R,'VSAOI transakcijas'!$D:$D,\"Aprēķins\",'VSAOI transakcijas'!$H:$H,\"Pamatsumma\",'VSAOI transakcijas'!$S:$S,\">=\"&DATE(YEAR(H2),MONTH(H2),1),'VSAOI transakcijas'!$S:$S,\"<=\"&'Sakuma lapa'!$F$16,'VSAOI transakcijas'!$O:$O,YEAR(DATE(YEAR(H2),MONTH(H2)+1,0)),'VSAOI transakcijas'!$P:$P,RIGHT(\"0\"&MONTH(DATE(YEAR(H2),MONTH(H2)+1,0)),2),'VSAOI transakcijas'!$Q:$Q,\"VSAOI\",'VSAOI transakcijas'!$K:$K,\"Iemaksas atbrīvošana\")\n-SUMIFS('VSAOI transakcijas'!$R:$R,'VSAOI transakcijas'!$H:$H,\"Nokavējuma nauda\",'VSAOI transakcijas'!$S:$S,\">=\"&DATE(YEAR(H2),MONTH(H2),1),'VSAOI transakcijas'!$S:$S,\"<=\"&'Sakuma lapa'!$F$16,'VSAOI transakcijas'!$O:$O,YEAR(DATE(YEAR(H2),MONTH(H2)+1,0)),'VSAOI transakcijas'!$P:$P,RIGHT(\"0\"&MONTH(DATE(YEAR(H2),MONTH(H2)+1,0)),2),'VSAOI transakcijas'!$Q:$Q,\"VSAOI\")","v":0},{"$f":"-SUMIFS('VSAOI transakcijas'!$R:$R,'VSAOI transakcijas'!$D:$D,\"Iemaksa\",'VSAOI transakcijas'!$H:$H,\"Pamatsumma\",'VSAOI transakcijas'!$S:$S,\">=\"&DATE(YEAR(I2),MONTH(I2),1),'VSAOI transakcijas'!$S:$S,\"<=\"&'Sakuma lapa'!$F$16,'VSAOI transakcijas'!$O:$O,YEAR(DATE(YEAR(I2),MONTH(I2)+1,0)),'VSAOI transakcijas'!$P:$P,RIGHT(\"0\"&MONTH(DATE(YEAR(I2),MONTH(I2)+1,0)),2),'VSAOI transakcijas'!$Q:$Q,\"VSAOI\")\n-SUMIFS('VSAOI transakcijas'!$R:$R,'VSAOI transakcijas'!$D:$D,\"Atmaksa\",'VSAOI transakcijas'!$H:$H,\"Pamatsumma\",'VSAOI transakcijas'!$S:$S,\">=\"&DATE(YEAR(I2),MONTH(I2),1),'VSAOI transakcijas'!$S:$S,\"<=\"&'Sakuma lapa'!$F$16,'VSAOI transakcijas'!$O:$O,YEAR(DATE(YEAR(I2),MONTH(I2)+1,0)),'VSAOI transakcijas'!$P:$P,RIGHT(\"0\"&MONTH(DATE(YEAR(I2),MONTH(I2)+1,0)),2),'VSAOI transakcijas'!$Q:$Q,\"VSAOI\")\n-SUMIFS('VSAOI transakcijas'!$R:$R,'VSAOI transakcijas'!$D:$D,\"Aprēķins\",'VSAOI transakcijas'!$H:$H,\"Pamatsumma\",'VSAOI transakcijas'!$S:$S,\">=\"&DATE(YEAR(I2),MONTH(I2),1),'VSAOI transakcijas'!$S:$S,\"<=\"&'Sakuma lapa'!$F$16,'VSAOI transakcijas'!$O:$O,YEAR(DATE(YEAR(I2),MONTH(I2)+1,0)),'VSAOI transakcijas'!$P:$P,RIGHT(\"0\"&MONTH(DATE(YEAR(I2),MONTH(I2)+1,0)),2),'VSAOI transakcijas'!$Q:$Q,\"VSAOI\",'VSAOI transakcijas'!$K:$K,\"FIFO*\")\n-SUMIFS('VSAOI transakcijas'!$R:$R,'VSAOI transakcijas'!$D:$D,\"Aprēķins\",'VSAOI transakcijas'!$H:$H,\"Pamatsumma\",'VSAOI transakcijas'!$S:$S,\">=\"&DATE(YEAR(I2),MONTH(I2),1),'VSAOI transakcijas'!$S:$S,\"<=\"&'Sakuma lapa'!$F$16,'VSAOI transakcijas'!$O:$O,YEAR(DATE(YEAR(I2),MONTH(I2)+1,0)),'VSAOI transakcijas'!$P:$P,RIGHT(\"0\"&MONTH(DATE(YEAR(I2),MONTH(I2)+1,0)),2),'VSAOI transakcijas'!$Q:$Q,\"VSAOI\",'VSAOI transakcijas'!$K:$K,\"Iemaksas atbrīvošana\")\n-SUMIFS('VSAOI transakcijas'!$R:$R,'VSAOI transakcijas'!$H:$H,\"Nokavējuma nauda\",'VSAOI transakcijas'!$S:$S,\">=\"&DATE(YEAR(I2),MONTH(I2),1),'VSAOI transakcijas'!$S:$S,\"<=\"&'Sakuma lapa'!$F$16,'VSAOI transakcijas'!$O:$O,YEAR(DATE(YEAR(I2),MONTH(I2)+1,0)),'VSAOI transakcijas'!$P:$P,RIGHT(\"0\"&MONTH(DATE(YEAR(I2),MONTH(I2)+1,0)),2),'VSAOI transakcijas'!$Q:$Q,\"VSAOI\")","v":0},{"$f":"-SUMIFS('VSAOI transakcijas'!$R:$R,'VSAOI transakcijas'!$D:$D,\"Iemaksa\",'VSAOI transakcijas'!$H:$H,\"Pamatsumma\",'VSAOI transakcijas'!$S:$S,\">=\"&DATE(YEAR(J2),MONTH(J2),1),'VSAOI transakcijas'!$S:$S,\"<=\"&'Sakuma lapa'!$F$16,'VSAOI transakcijas'!$O:$O,YEAR(DATE(YEAR(J2),MONTH(J2)+1,0)),'VSAOI transakcijas'!$P:$P,RIGHT(\"0\"&MONTH(DATE(YEAR(J2),MONTH(J2)+1,0)),2),'VSAOI transakcijas'!$Q:$Q,\"VSAOI\")\n-SUMIFS('VSAOI transakcijas'!$R:$R,'VSAOI transakcijas'!$D:$D,\"Atmaksa\",'VSAOI transakcijas'!$H:$H,\"Pamatsumma\",'VSAOI transakcijas'!$S:$S,\">=\"&DATE(YEAR(J2),MONTH(J2),1),'VSAOI transakcijas'!$S:$S,\"<=\"&'Sakuma lapa'!$F$16,'VSAOI transakcijas'!$O:$O,YEAR(DATE(YEAR(J2),MONTH(J2)+1,0)),'VSAOI transakcijas'!$P:$P,RIGHT(\"0\"&MONTH(DATE(YEAR(J2),MONTH(J2)+1,0)),2),'VSAOI transakcijas'!$Q:$Q,\"VSAOI\")\n-SUMIFS('VSAOI transakcijas'!$R:$R,'VSAOI transakcijas'!$D:$D,\"Aprēķins\",'VSAOI transakcijas'!$H:$H,\"Pamatsumma\",'VSAOI transakcijas'!$S:$S,\">=\"&DATE(YEAR(J2),MONTH(J2),1),'VSAOI transakcijas'!$S:$S,\"<=\"&'Sakuma lapa'!$F$16,'VSAOI transakcijas'!$O:$O,YEAR(DATE(YEAR(J2),MONTH(J2)+1,0)),'VSAOI transakcijas'!$P:$P,RIGHT(\"0\"&MONTH(DATE(YEAR(J2),MONTH(J2)+1,0)),2),'VSAOI transakcijas'!$Q:$Q,\"VSAOI\",'VSAOI transakcijas'!$K:$K,\"FIFO*\")\n-SUMIFS('VSAOI transakcijas'!$R:$R,'VSAOI transakcijas'!$D:$D,\"Aprēķins\",'VSAOI transakcijas'!$H:$H,\"Pamatsumma\",'VSAOI transakcijas'!$S:$S,\">=\"&DATE(YEAR(J2),MONTH(J2),1),'VSAOI transakcijas'!$S:$S,\"<=\"&'Sakuma lapa'!$F$16,'VSAOI transakcijas'!$O:$O,YEAR(DATE(YEAR(J2),MONTH(J2)+1,0)),'VSAOI transakcijas'!$P:$P,RIGHT(\"0\"&MONTH(DATE(YEAR(J2),MONTH(J2)+1,0)),2),'VSAOI transakcijas'!$Q:$Q,\"VSAOI\",'VSAOI transakcijas'!$K:$K,\"Iemaksas atbrīvošana\")\n-SUMIFS('VSAOI transakcijas'!$R:$R,'VSAOI transakcijas'!$H:$H,\"Nokavējuma nauda\",'VSAOI transakcijas'!$S:$S,\">=\"&DATE(YEAR(J2),MONTH(J2),1),'VSAOI transakcijas'!$S:$S,\"<=\"&'Sakuma lapa'!$F$16,'VSAOI transakcijas'!$O:$O,YEAR(DATE(YEAR(J2),MONTH(J2)+1,0)),'VSAOI transakcijas'!$P:$P,RIGHT(\"0\"&MONTH(DATE(YEAR(J2),MONTH(J2)+1,0)),2),'VSAOI transakcijas'!$Q:$Q,\"VSAOI\")","v":0},{"$f":"-SUMIFS('VSAOI transakcijas'!$R:$R,'VSAOI transakcijas'!$D:$D,\"Iemaksa\",'VSAOI transakcijas'!$H:$H,\"Pamatsumma\",'VSAOI transakcijas'!$S:$S,\">=\"&DATE(YEAR(K2),MONTH(K2),1),'VSAOI transakcijas'!$S:$S,\"<=\"&'Sakuma lapa'!$F$16,'VSAOI transakcijas'!$O:$O,YEAR(DATE(YEAR(K2),MONTH(K2)+1,0)),'VSAOI transakcijas'!$P:$P,RIGHT(\"0\"&MONTH(DATE(YEAR(K2),MONTH(K2)+1,0)),2),'VSAOI transakcijas'!$Q:$Q,\"VSAOI\")\n-SUMIFS('VSAOI transakcijas'!$R:$R,'VSAOI transakcijas'!$D:$D,\"Atmaksa\",'VSAOI transakcijas'!$H:$H,\"Pamatsumma\",'VSAOI transakcijas'!$S:$S,\">=\"&DATE(YEAR(K2),MONTH(K2),1),'VSAOI transakcijas'!$S:$S,\"<=\"&'Sakuma lapa'!$F$16,'VSAOI transakcijas'!$O:$O,YEAR(DATE(YEAR(K2),MONTH(K2)+1,0)),'VSAOI transakcijas'!$P:$P,RIGHT(\"0\"&MONTH(DATE(YEAR(K2),MONTH(K2)+1,0)),2),'VSAOI transakcijas'!$Q:$Q,\"VSAOI\")\n-SUMIFS('VSAOI transakcijas'!$R:$R,'VSAOI transakcijas'!$D:$D,\"Aprēķins\",'VSAOI transakcijas'!$H:$H,\"Pamatsumma\",'VSAOI transakcijas'!$S:$S,\">=\"&DATE(YEAR(K2),MONTH(K2),1),'VSAOI transakcijas'!$S:$S,\"<=\"&'Sakuma lapa'!$F$16,'VSAOI transakcijas'!$O:$O,YEAR(DATE(YEAR(K2),MONTH(K2)+1,0)),'VSAOI transakcijas'!$P:$P,RIGHT(\"0\"&MONTH(DATE(YEAR(K2),MONTH(K2)+1,0)),2),'VSAOI transakcijas'!$Q:$Q,\"VSAOI\",'VSAOI transakcijas'!$K:$K,\"FIFO*\")\n-SUMIFS('VSAOI transakcijas'!$R:$R,'VSAOI transakcijas'!$D:$D,\"Aprēķins\",'VSAOI transakcijas'!$H:$H,\"Pamatsumma\",'VSAOI transakcijas'!$S:$S,\">=\"&DATE(YEAR(K2),MONTH(K2),1),'VSAOI transakcijas'!$S:$S,\"<=\"&'Sakuma lapa'!$F$16,'VSAOI transakcijas'!$O:$O,YEAR(DATE(YEAR(K2),MONTH(K2)+1,0)),'VSAOI transakcijas'!$P:$P,RIGHT(\"0\"&MONTH(DATE(YEAR(K2),MONTH(K2)+1,0)),2),'VSAOI transakcijas'!$Q:$Q,\"VSAOI\",'VSAOI transakcijas'!$K:$K,\"Iemaksas atbrīvošana\")\n-SUMIFS('VSAOI transakcijas'!$R:$R,'VSAOI transakcijas'!$H:$H,\"Nokavējuma nauda\",'VSAOI transakcijas'!$S:$S,\">=\"&DATE(YEAR(K2),MONTH(K2),1),'VSAOI transakcijas'!$S:$S,\"<=\"&'Sakuma lapa'!$F$16,'VSAOI transakcijas'!$O:$O,YEAR(DATE(YEAR(K2),MONTH(K2)+1,0)),'VSAOI transakcijas'!$P:$P,RIGHT(\"0\"&MONTH(DATE(YEAR(K2),MONTH(K2)+1,0)),2),'VSAOI transakcijas'!$Q:$Q,\"VSAOI\")","v":0},{"$f":"-SUMIFS('VSAOI transakcijas'!$R:$R,'VSAOI transakcijas'!$D:$D,\"Iemaksa\",'VSAOI transakcijas'!$H:$H,\"Pamatsumma\",'VSAOI transakcijas'!$S:$S,\">=\"&DATE(YEAR(L2),MONTH(L2),1),'VSAOI transakcijas'!$S:$S,\"<=\"&'Sakuma lapa'!$F$16,'VSAOI transakcijas'!$O:$O,YEAR(DATE(YEAR(L2),MONTH(L2)+1,0)),'VSAOI transakcijas'!$P:$P,RIGHT(\"0\"&MONTH(DATE(YEAR(L2),MONTH(L2)+1,0)),2),'VSAOI transakcijas'!$Q:$Q,\"VSAOI\")\n-SUMIFS('VSAOI transakcijas'!$R:$R,'VSAOI transakcijas'!$D:$D,\"Atmaksa\",'VSAOI transakcijas'!$H:$H,\"Pamatsumma\",'VSAOI transakcijas'!$S:$S,\">=\"&DATE(YEAR(L2),MONTH(L2),1),'VSAOI transakcijas'!$S:$S,\"<=\"&'Sakuma lapa'!$F$16,'VSAOI transakcijas'!$O:$O,YEAR(DATE(YEAR(L2),MONTH(L2)+1,0)),'VSAOI transakcijas'!$P:$P,RIGHT(\"0\"&MONTH(DATE(YEAR(L2),MONTH(L2)+1,0)),2),'VSAOI transakcijas'!$Q:$Q,\"VSAOI\")\n-SUMIFS('VSAOI transakcijas'!$R:$R,'VSAOI transakcijas'!$D:$D,\"Aprēķins\",'VSAOI transakcijas'!$H:$H,\"Pamatsumma\",'VSAOI transakcijas'!$S:$S,\">=\"&DATE(YEAR(L2),MONTH(L2),1),'VSAOI transakcijas'!$S:$S,\"<=\"&'Sakuma lapa'!$F$16,'VSAOI transakcijas'!$O:$O,YEAR(DATE(YEAR(L2),MONTH(L2)+1,0)),'VSAOI transakcijas'!$P:$P,RIGHT(\"0\"&MONTH(DATE(YEAR(L2),MONTH(L2)+1,0)),2),'VSAOI transakcijas'!$Q:$Q,\"VSAOI\",'VSAOI transakcijas'!$K:$K,\"FIFO*\")\n-SUMIFS('VSAOI transakcijas'!$R:$R,'VSAOI transakcijas'!$D:$D,\"Aprēķins\",'VSAOI transakcijas'!$H:$H,\"Pamatsumma\",'VSAOI transakcijas'!$S:$S,\">=\"&DATE(YEAR(L2),MONTH(L2),1),'VSAOI transakcijas'!$S:$S,\"<=\"&'Sakuma lapa'!$F$16,'VSAOI transakcijas'!$O:$O,YEAR(DATE(YEAR(L2),MONTH(L2)+1,0)),'VSAOI transakcijas'!$P:$P,RIGHT(\"0\"&MONTH(DATE(YEAR(L2),MONTH(L2)+1,0)),2),'VSAOI transakcijas'!$Q:$Q,\"VSAOI\",'VSAOI transakcijas'!$K:$K,\"Iemaksas atbrīvošana\")\n-SUMIFS('VSAOI transakcijas'!$R:$R,'VSAOI transakcijas'!$H:$H,\"Nokavējuma nauda\",'VSAOI transakcijas'!$S:$S,\">=\"&DATE(YEAR(L2),MONTH(L2),1),'VSAOI transakcijas'!$S:$S,\"<=\"&'Sakuma lapa'!$F$16,'VSAOI transakcijas'!$O:$O,YEAR(DATE(YEAR(L2),MONTH(L2)+1,0)),'VSAOI transakcijas'!$P:$P,RIGHT(\"0\"&MONTH(DATE(YEAR(L2),MONTH(L2)+1,0)),2),'VSAOI transakcijas'!$Q:$Q,\"VSAOI\")","v":0},{"$f":"-SUMIFS('VSAOI transakcijas'!$R:$R,'VSAOI transakcijas'!$D:$D,\"Iemaksa\",'VSAOI transakcijas'!$H:$H,\"Pamatsumma\",'VSAOI transakcijas'!$S:$S,\">=\"&DATE(YEAR(M2),MONTH(M2),1),'VSAOI transakcijas'!$S:$S,\"<=\"&'Sakuma lapa'!$F$16,'VSAOI transakcijas'!$O:$O,YEAR(DATE(YEAR(M2),MONTH(M2)+1,0)),'VSAOI transakcijas'!$P:$P,RIGHT(\"0\"&MONTH(DATE(YEAR(M2),MONTH(M2)+1,0)),2),'VSAOI transakcijas'!$Q:$Q,\"VSAOI\")\n-SUMIFS('VSAOI transakcijas'!$R:$R,'VSAOI transakcijas'!$D:$D,\"Atmaksa\",'VSAOI transakcijas'!$H:$H,\"Pamatsumma\",'VSAOI transakcijas'!$S:$S,\">=\"&DATE(YEAR(M2),MONTH(M2),1),'VSAOI transakcijas'!$S:$S,\"<=\"&'Sakuma lapa'!$F$16,'VSAOI transakcijas'!$O:$O,YEAR(DATE(YEAR(M2),MONTH(M2)+1,0)),'VSAOI transakcijas'!$P:$P,RIGHT(\"0\"&MONTH(DATE(YEAR(M2),MONTH(M2)+1,0)),2),'VSAOI transakcijas'!$Q:$Q,\"VSAOI\")\n-SUMIFS('VSAOI transakcijas'!$R:$R,'VSAOI transakcijas'!$D:$D,\"Aprēķins\",'VSAOI transakcijas'!$H:$H,\"Pamatsumma\",'VSAOI transakcijas'!$S:$S,\">=\"&DATE(YEAR(M2),MONTH(M2),1),'VSAOI transakcijas'!$S:$S,\"<=\"&'Sakuma lapa'!$F$16,'VSAOI transakcijas'!$O:$O,YEAR(DATE(YEAR(M2),MONTH(M2)+1,0)),'VSAOI transakcijas'!$P:$P,RIGHT(\"0\"&MONTH(DATE(YEAR(M2),MONTH(M2)+1,0)),2),'VSAOI transakcijas'!$Q:$Q,\"VSAOI\",'VSAOI transakcijas'!$K:$K,\"FIFO*\")\n-SUMIFS('VSAOI transakcijas'!$R:$R,'VSAOI transakcijas'!$D:$D,\"Aprēķins\",'VSAOI transakcijas'!$H:$H,\"Pamatsumma\",'VSAOI transakcijas'!$S:$S,\">=\"&DATE(YEAR(M2),MONTH(M2),1),'VSAOI transakcijas'!$S:$S,\"<=\"&'Sakuma lapa'!$F$16,'VSAOI transakcijas'!$O:$O,YEAR(DATE(YEAR(M2),MONTH(M2)+1,0)),'VSAOI transakcijas'!$P:$P,RIGHT(\"0\"&MONTH(DATE(YEAR(M2),MONTH(M2)+1,0)),2),'VSAOI transakcijas'!$Q:$Q,\"VSAOI\",'VSAOI transakcijas'!$K:$K,\"Iemaksas atbrīvošana\")\n-SUMIFS('VSAOI transakcijas'!$R:$R,'VSAOI transakcijas'!$H:$H,\"Nokavējuma nauda\",'VSAOI transakcijas'!$S:$S,\">=\"&DATE(YEAR(M2),MONTH(M2),1),'VSAOI transakcijas'!$S:$S,\"<=\"&'Sakuma lapa'!$F$16,'VSAOI transakcijas'!$O:$O,YEAR(DATE(YEAR(M2),MONTH(M2)+1,0)),'VSAOI transakcijas'!$P:$P,RIGHT(\"0\"&MONTH(DATE(YEAR(M2),MONTH(M2)+1,0)),2),'VSAOI transakcijas'!$Q:$Q,\"VSAOI\")","v":0},{"$f":"-SUMIFS('VSAOI transakcijas'!$R:$R,'VSAOI transakcijas'!$D:$D,\"Iemaksa\",'VSAOI transakcijas'!$H:$H,\"Pamatsumma\",'VSAOI transakcijas'!$S:$S,\">=\"&DATE(YEAR(N2),MONTH(N2),1),'VSAOI transakcijas'!$S:$S,\"<=\"&'Sakuma lapa'!$F$16,'VSAOI transakcijas'!$O:$O,YEAR(DATE(YEAR(N2),MONTH(N2)+1,0)),'VSAOI transakcijas'!$P:$P,RIGHT(\"0\"&MONTH(DATE(YEAR(N2),MONTH(N2)+1,0)),2),'VSAOI transakcijas'!$Q:$Q,\"VSAOI\")\n-SUMIFS('VSAOI transakcijas'!$R:$R,'VSAOI transakcijas'!$D:$D,\"Atmaksa\",'VSAOI transakcijas'!$H:$H,\"Pamatsumma\",'VSAOI transakcijas'!$S:$S,\">=\"&DATE(YEAR(N2),MONTH(N2),1),'VSAOI transakcijas'!$S:$S,\"<=\"&'Sakuma lapa'!$F$16,'VSAOI transakcijas'!$O:$O,YEAR(DATE(YEAR(N2),MONTH(N2)+1,0)),'VSAOI transakcijas'!$P:$P,RIGHT(\"0\"&MONTH(DATE(YEAR(N2),MONTH(N2)+1,0)),2),'VSAOI transakcijas'!$Q:$Q,\"VSAOI\")\n-SUMIFS('VSAOI transakcijas'!$R:$R,'VSAOI transakcijas'!$D:$D,\"Aprēķins\",'VSAOI transakcijas'!$H:$H,\"Pamatsumma\",'VSAOI transakcijas'!$S:$S,\">=\"&DATE(YEAR(N2),MONTH(N2),1),'VSAOI transakcijas'!$S:$S,\"<=\"&'Sakuma lapa'!$F$16,'VSAOI transakcijas'!$O:$O,YEAR(DATE(YEAR(N2),MONTH(N2)+1,0)),'VSAOI transakcijas'!$P:$P,RIGHT(\"0\"&MONTH(DATE(YEAR(N2),MONTH(N2)+1,0)),2),'VSAOI transakcijas'!$Q:$Q,\"VSAOI\",'VSAOI transakcijas'!$K:$K,\"FIFO*\")\n-SUMIFS('VSAOI transakcijas'!$R:$R,'VSAOI transakcijas'!$D:$D,\"Aprēķins\",'VSAOI transakcijas'!$H:$H,\"Pamatsumma\",'VSAOI transakcijas'!$S:$S,\">=\"&DATE(YEAR(N2),MONTH(N2),1),'VSAOI transakcijas'!$S:$S,\"<=\"&'Sakuma lapa'!$F$16,'VSAOI transakcijas'!$O:$O,YEAR(DATE(YEAR(N2),MONTH(N2)+1,0)),'VSAOI transakcijas'!$P:$P,RIGHT(\"0\"&MONTH(DATE(YEAR(N2),MONTH(N2)+1,0)),2),'VSAOI transakcijas'!$Q:$Q,\"VSAOI\",'VSAOI transakcijas'!$K:$K,\"Iemaksas atbrīvošana\")\n-SUMIFS('VSAOI transakcijas'!$R:$R,'VSAOI transakcijas'!$H:$H,\"Nokavējuma nauda\",'VSAOI transakcijas'!$S:$S,\">=\"&DATE(YEAR(N2),MONTH(N2),1),'VSAOI transakcijas'!$S:$S,\"<=\"&'Sakuma lapa'!$F$16,'VSAOI transakcijas'!$O:$O,YEAR(DATE(YEAR(N2),MONTH(N2)+1,0)),'VSAOI transakcijas'!$P:$P,RIGHT(\"0\"&MONTH(DATE(YEAR(N2),MONTH(N2)+1,0)),2),'VSAOI transakcijas'!$Q:$Q,\"VSAOI\")","v":0},{"$f":"SUM(C39:N39)","v":0}]
[null,"VG  beigu atlikums"]
[null,"VG beigu atlikuma starpība",{"$f":"IF(C40=\"\",\"-\",C40-D36)","v":"-"},"-","-","-","-","-","-","-","-","-","-","-"]
[null,"Starpība starp deklarācijām un TransParsk",{"$f":"C7-C37","v":0},0,0,0,0,0,0,0,0,0,0,0,{"$f":"SUM(C42:N42)","v":0}]
[]
[null,"IIN - VG sakuma atlikums",null,{"$f":"SUM(C44:C47)","v":0},0,0,0,0,0,0,0,0,0,0,{"$f":"SUM(N44:N47)","v":0}]
[null,"Aprēķins - Deklarācijas",{"$f":"-SUMIFS('VSAOI transakcijas'!$R:$R,'VSAOI transakcijas'!$D:$D,\"Aprēķins\",'VSAOI transakcijas'!$H:$H,\"Pamatsumma\",'VSAOI transakcijas'!$S:$S,\">=\"&DATE(YEAR(C2),MONTH(C2),1),'VSAOI transakcijas'!$S:$S,\"<=\"&'Sakuma lapa'!$F$16,'VSAOI transakcijas'!$O:$O,YEAR(DATE(YEAR(C2),MONTH(C2)+2,0)),'VSAOI transakcijas'!$P:$P,RIGHT(\"0\"&MONTH(DATE(YEAR(C2),MONTH(C2)+2,0)),2),'VSAOI transakcijas'!$Q:$Q,\"IIN\",'VSAOI transakcijas'!$K:$K,\"<>\"&\"FIFO*\",'VSAOI transakcijas'!$K:$K,\"<>\"&\"Iemaksas atbrīvošana\",'VSAOI transakcijas'!$E:$E,\"Deklarācija/pārskats\")","v":0},{"$f":"-SUMIFS('VSAOI transakcijas'!$R:$R,'VSAOI transakcijas'!$D:$D,\"Aprēķins\",'VSAOI transakcijas'!$H:$H,\"Pamatsumma\",'VSAOI transakcijas'!$S:$S,\">=\"&DATE(YEAR(D2),MONTH(D2),1),'VSAOI transakcijas'!$S:$S,\"<=\"&'Sakuma lapa'!$F$16,'VSAOI transakcijas'!$O:$O,YEAR(DATE(YEAR(D2),MONTH(D2)+2,0)),'VSAOI transakcijas'!$P:$P,RIGHT(\"0\"&MONTH(DATE(YEAR(D2),MONTH(D2)+2,0)),2),'VSAOI transakcijas'!$Q:$Q,\"IIN\",'VSAOI transakcijas'!$K:$K,\"<>\"&\"FIFO*\",'VSAOI transakcijas'!$K:$K,\"<>\"&\"Iemaksas atbrīvošana\")","v":0},{"$f":"-SUMIFS('VSAOI transakcijas'!$R:$R,'VSAOI transakcijas'!$D:$D,\"Aprēķins\",'VSAOI transakcijas'!$H:$H,\"Pamatsumma\",'VSAOI transakcijas'!$S:$S,\">=\"&DATE(YEAR(E2),MONTH(E2),1),'VSAOI transakcijas'!$S:$S,\"<=\"&'Sakuma lapa'!$F$16,'VSAOI transakcijas'!$O:$O,YEAR(DATE(YEAR(E2),MONTH(E2)+2,0)),'VSAOI transakcijas'!$P:$P,RIGHT(\"0\"&MONTH(DATE(YEAR(E2),MONTH(E2)+2,0)),2),'VSAOI transakcijas'!$Q:$Q,\"IIN\",'VSAOI transakcijas'!$K:$K,\"<>\"&\"FIFO*\",'VSAOI transakcijas'!$K:$K,\"<>\"&\"Iemaksas atbrīvošana\")","v":0},{"$f":"-SUMIFS('VSAOI transakcijas'!$R:$R,'VSAOI transakcijas'!$D:$D,\"Aprēķins\",'VSAOI transakcijas'!$H:$H,\"Pamatsumma\",'VSAOI transakcijas'!$S:$S,\">=\"&DATE(YEAR(F2),MONTH(F2),1),'VSAOI transakcijas'!$S:$S,\"<=\"&'Sakuma lapa'!$F$16,'VSAOI transakcijas'!$O:$O,YEAR(DATE(YEAR(F2),MONTH(F2)+2,0)),'VSAOI transakcijas'!$P:$P,RIGHT(\"0\"&MONTH(DATE(YEAR(F2),MONTH(F2)+2,0)),2),'VSAOI transakcijas'!$Q:$Q,\"IIN\",'VSAOI transakcijas'!$K:$K,\"<>\"&\"FIFO*\",'VSAOI transakcijas'!$K:$K,\"<>\"&\"Iemaksas atbrīvošana\")","v":0},{"$f":"-SUMIFS('VSAOI transakcijas'!$R:$R,'VSAOI transakcijas'!$D:$D,\"Aprēķins\",'VSAOI transakcijas'!$H:$H,\"Pamatsumma\",'VSAOI transakcijas'!$S:$S,\">=\"&DATE(YEAR(G2),MONTH(G2),1),'VSAOI transakcijas'!$S:$S,\"<=\"&'Sakuma lapa'!$F$16,'VSAOI transakcijas'!$O:$O,YEAR(DATE(YEAR(G2),MONTH(G2)+2,0)),'VSAOI transakcijas'!$P:$P,RIGHT(\"0\"&MONTH(DATE(YEAR(G2),MONTH(G2)+2,0)),2),'VSAOI transakcijas'!$Q:$Q,\"IIN\",'VSAOI transakcijas'!$K:$K,\"<>\"&\"FIFO*\",'VSAOI transakcijas'!$K:$K,\"<>\"&\"Iemaksas atbrīvošana\")","v":0},{"$f":"-SUMIFS('VSAOI transakcijas'!$R:$R,'VSAOI transakcijas'!$D:$D,\"Aprēķins\",'VSAOI transakcijas'!$H:$H,\"Pamatsumma\",'VSAOI transakcijas'!$S:$S,\">=\"&DATE(YEAR(H2),MONTH(H2),1),'VSAOI transakcijas'!$S:$S,\"<=\"&'Sakuma lapa'!$F$16,'VSAOI transakcijas'!$O:$O,YEAR(DATE(YEAR(H2),MONTH(H2)+2,0)),'VSAOI transakcijas'!$P:$P,RIGHT(\"0\"&MONTH(DATE(YEAR(H2),MONTH(H2)+2,0)),2),'VSAOI transakcijas'!$Q:$Q,\"IIN\",'VSAOI transakcijas'!$K:$K,\"<>\"&\"FIFO*\",'VSAOI transakcijas'!$K:$K,\"<>\"&\"Iemaksas atbrīvošana\")","v":0},{"$f":"-SUMIFS('VSAOI transakcijas'!$R:$R,'VSAOI transakcijas'!$D:$D,\"Aprēķins\",'VSAOI transakcijas'!$H:$H,\"Pamatsumma\",'VSAOI transakcijas'!$S:$S,\">=\"&DATE(YEAR(I2),MONTH(I2),1),'VSAOI transakcijas'!$S:$S,\"<=\"&'Sakuma lapa'!$F$16,'VSAOI transakcijas'!$O:$O,YEAR(DATE(YEAR(I2),MONTH(I2)+2,0)),'VSAOI transakcijas'!$P:$P,RIGHT(\"0\"&MONTH(DATE(YEAR(I2),MONTH(I2)+2,0)),2),'VSAOI transakcijas'!$Q:$Q,\"IIN\",'VSAOI transakcijas'!$K:$K,\"<>\"&\"FIFO*\",'VSAOI transakcijas'!$K:$K,\"<>\"&\"Iemaksas atbrīvošana\")","v":0},{"$f":"-SUMIFS('VSAOI transakcijas'!$R:$R,'VSAOI transakcijas'!$D:$D,\"Aprēķins\",'VSAOI transakcijas'!$H:$H,\"Pamatsumma\",'VSAOI transakcijas'!$S:$S,\">=\"&DATE(YEAR(J2),MONTH(J2),1),'VSAOI transakcijas'!$S:$S,\"<=\"&'Sakuma lapa'!$F$16,'VSAOI transakcijas'!$O:$O,YEAR(DATE(YEAR(J2),MONTH(J2)+2,0)),'VSAOI transakcijas'!$P:$P,RIGHT(\"0\"&MONTH(DATE(YEAR(J2),MONTH(J2)+2,0)),2),'VSAOI transakcijas'!$Q:$Q,\"IIN\",'VSAOI transakcijas'!$K:$K,\"<>\"&\"FIFO*\",'VSAOI transakcijas'!$K:$K,\"<>\"&\"Iemaksas atbrīvošana\")","v":0},{"$f":"-SUMIFS('VSAOI transakcijas'!$R:$R,'VSAOI transakcijas'!$D:$D,\"Aprēķins\",'VSAOI transakcijas'!$H:$H,\"Pamatsumma\",'VSAOI transakcijas'!$S:$S,\">=\"&DATE(YEAR(K2),MONTH(K2),1),'VSAOI transakcijas'!$S:$S,\"<=\"&'Sakuma lapa'!$F$16,'VSAOI transakcijas'!$O:$O,YEAR(DATE(YEAR(K2),MONTH(K2)+2,0)),'VSAOI transakcijas'!$P:$P,RIGHT(\"0\"&MONTH(DATE(YEAR(K2),MONTH(K2)+2,0)),2),'VSAOI transakcijas'!$Q:$Q,\"IIN\",'VSAOI transakcijas'!$K:$K,\"<>\"&\"FIFO*\",'VSAOI transakcijas'!$K:$K,\"<>\"&\"Iemaksas atbrīvošana\")","v":0},{"$f":"-SUMIFS('VSAOI transakcijas'!$R:$R,'VSAOI transakcijas'!$D:$D,\"Aprēķins\",'VSAOI transakcijas'!$H:$H,\"Pamatsumma\",'VSAOI transakcijas'!$S:$S,\">=\"&DATE(YEAR(L2),MONTH(L2),1),'VSAOI transakcijas'!$S:$S,\"<=\"&'Sakuma lapa'!$F$16,'VSAOI transakcijas'!$O:$O,YEAR(DATE(YEAR(L2),MONTH(L2)+2,0)),'VSAOI transakcijas'!$P:$P,RIGHT(\"0\"&MONTH(DATE(YEAR(L2),MONTH(L2)+2,0)),2),'VSAOI transakcijas'!$Q:$Q,\"IIN\",'VSAOI transakcijas'!$K:$K,\"<>\"&\"FIFO*\",'VSAOI transakcijas'!$K:$K,\"<>\"&\"Iemaksas atbrīvošana\")","v":0},{"$f":"-SUMIFS('VSAOI transakcijas'!$R:$R,'VSAOI transakcijas'!$D:$D,\"Aprēķins\",'VSAOI transakcijas'!$H:$H,\"Pamatsumma\",'VSAOI transakcijas'!$S:$S,\">=\"&DATE(YEAR(M2),MONTH(M2),1),'VSAOI transakcijas'!$S:$S,\"<=\"&'Sakuma lapa'!$F$16,'VSAOI transakcijas'!$O:$O,YEAR(DATE(YEAR(M2),MONTH(M2)+2,0)),'VSAOI transakcijas'!$P:$P,RIGHT(\"0\"&MONTH(DATE(YEAR(M2),MONTH(M2)+2,0)),2),'VSAOI transakcijas'!$Q:$Q,\"IIN\",'VSAOI transakcijas'!$K:$K,\"<>\"&\"FIFO*\",'VSAOI transakcijas'!$K:$K,\"<>\"&\"Iemaksas atbrīvošana\")","v":0},{"$f":"-SUMIFS('VSAOI transakcijas'!$R:$R,'VSAOI transakcijas'!$D:$D,\"Aprēķins\",'VSAOI transakcijas'!$H:$H,\"Pamatsumma\",'VSAOI transakcijas'!$S:$S,\">=\"&DATE(YEAR(N2),MONTH(N2),1),'VSAOI transakcijas'!$S:$S,\"<=\"&'Sakuma lapa'!$F$16,'VSAOI transakcijas'!$O:$O,YEAR(DATE(YEAR(N2),MONTH(N2)+2,0)),'VSAOI transakcijas'!$P:$P,RIGHT(\"0\"&MONTH(DATE(YEAR(N2),MONTH(N2)+2,0)),2),'VSAOI transakcijas'!$Q:$Q,\"IIN\",'VSAOI transakcijas'!$K:$K,\"<>\"&\"FIFO*\",'VSAOI transakcijas'!$K:$K,\"<>\"&\"Iemaksas atbrīvošana\")","v":0},{"$f":"SUM(C45:N45)","v":0}]
[null,"Aprēķins - Citi",{"$f":"-SUMIFS('VSAOI transakcijas'!$R:$R,'VSAOI transakcijas'!$D:$D,\"Aprēķins\",'VSAOI transakcijas'!$H:$H,\"Pamatsumma\",'VSAOI transakcijas'!$S:$S,\">=\"&DATE(YEAR(C2),MONTH(C2),1),'VSAOI transakcijas'!$S:$S,\"<=\"&'Sakuma lapa'!$F$16,'VSAOI transakcijas'!$O:$O,YEAR(DATE(YEAR(C2),MONTH(C2)+2,0)),'VSAOI transakcijas'!$P:$P,RIGHT(\"0\"&MONTH(DATE(YEAR(C2),MONTH(C2)+2,0)),2),'VSAOI transakcijas'!$Q:$Q,\"IIN\",'VSAOI transakcijas'!$K:$K,\"<>\"&\"FIFO*\",'VSAOI transakcijas'!$K:$K,\"<>\"&\"Iemaksas atbrīvošana\",'VSAOI transakcijas'!$E:$E,\"<>\"&\"Deklarācija/pārskats\")","v":0},{"$f":"-SUMIFS('VSAOI transakcijas'!$R:$R,'VSAOI transakcijas'!$D:$D,\"Aprēķins\",'VSAOI transakcijas'!$H:$H,\"Pamatsumma\",'VSAOI transakcijas'!$S:$S,\">=\"&DATE(YEAR(D2),MONTH(D2),1),'VSAOI transakcijas'!$S:$S,\"<=\"&'Sakuma lapa'!$F$16,'VSAOI transakcijas'!$O:$O,YEAR(DATE(YEAR(D2),MONTH(D2)+2,0)),'VSAOI transakcijas'!$P:$P,RIGHT(\"0\"&MONTH(DATE(YEAR(D2),MONTH(D2)+2,0)),2),'VSAOI transakcijas'!$Q:$Q,\"IIN\",'VSAOI transakcijas'!$K:$K,\"<>\"&\"FIFO*\",'VSAOI transakcijas'!$K:$K,\"<>\"&\"Iemaksas atbrīvošana\",'VSAOI transakcijas'!$E:$E,\"<>\"&\"Deklarācija/pārskats\")","v":0},{"$f":"-SUMIFS('VSAOI transakcijas'!$R:$R,'VSAOI transakcijas'!$D:$D,\"Aprēķins\",'VSAOI transakcijas'!$H:$H,\"Pamatsumma\",'VSAOI transakcijas'!$S:$S,\">=\"&DATE(YEAR(E2),MONTH(E2),1),'VSAOI transakcijas'!$S:$S,\"<=\"&'Sakuma lapa'!$F$16,'VSAOI transakcijas'!$O:$O,YEAR(DATE(YEAR(E2),MONTH(E2)+2,0)),'VSAOI transakcijas'!$P:$P,RIGHT(\"0\"&MONTH(DATE(YEAR(E2),MONTH(E2)+2,0)),2),'VSAOI transakcijas'!$Q:$Q,\"IIN\",'VSAOI transakcijas'!$K:$K,\"<>\"&\"FIFO*\",'VSAOI transakcijas'!$K:$K,\"<>\"&\"Iemaksas atbrīvošana\",'VSAOI transakcijas'!$E:$E,\"<>\"&\"Deklarācija/pārskats\")","v":0},{"$f":"-SUMIFS('VSAOI transakcijas'!$R:$R,'VSAOI transakcijas'!$D:$D,\"Aprēķins\",'VSAOI transakcijas'!$H:$H,\"Pamatsumma\",'VSAOI transakcijas'!$S:$S,\">=\"&DATE(YEAR(F2),MONTH(F2),1),'VSAOI transakcijas'!$S:$S,\"<=\"&'Sakuma lapa'!$F$16,'VSAOI transakcijas'!$O:$O,YEAR(DATE(YEAR(F2),MONTH(F2)+2,0)),'VSAOI transakcijas'!$P:$P,RIGHT(\"0\"&MONTH(DATE(YEAR(F2),MONTH(F2)+2,0)),2),'VSAOI transakcijas'!$Q:$Q,\"IIN\",'VSAOI transakcijas'!$K:$K,\"<>\"&\"FIFO*\",'VSAOI transakcijas'!$K:$K,\"<>\"&\"Iemaksas atbrīvošana\",'VSAOI transakcijas'!$E:$E,\"<>\"&\"Deklarācija/pārskats\")","v":0},{"$f":"-SUMIFS('VSAOI transakcijas'!$R:$R,'VSAOI transakcijas'!$D:$D,\"Aprēķins\",'VSAOI transakcijas'!$H:$H,\"Pamatsumma\",'VSAOI transakcijas'!$S:$S,\">=\"&DATE(YEAR(G2),MONTH(G2),1),'VSAOI transakcijas'!$S:$S,\"<=\"&'Sakuma lapa'!$F$16,'VSAOI transakcijas'!$O:$O,YEAR(DATE(YEAR(G2),MONTH(G2)+2,0)),'VSAOI transakcijas'!$P:$P,RIGHT(\"0\"&MONTH(DATE(YEAR(G2),MONTH(G2)+2,0)),2),'VSAOI transakcijas'!$Q:$Q,\"IIN\",'VSAOI transakcijas'!$K:$K,\"<>\"&\"FIFO*\",'VSAOI transakcijas'!$K:$K,\"<>\"&\"Iemaksas atbrīvošana\",'VSAOI transakcijas'!$E:$E,\"<>\"&\"Deklarācija/pārskats\")","v":0},{"$f":"-SUMIFS('VSAOI transakcijas'!$R:$R,'VSAOI transakcijas'!$D:$D,\"Aprēķins\",'VSAOI transakcijas'!$H:$H,\"Pamatsumma\",'VSAOI transakcijas'!$S:$S,\">=\"&DATE(YEAR(H2),MONTH(H2),1),'VSAOI transakcijas'!$S:$S,\"<=\"&'Sakuma lapa'!$F$16,'VSAOI transakcijas'!$O:$O,YEAR(DATE(YEAR(H2),MONTH(H2)+2,0)),'VSAOI transakcijas'!$P:$P,RIGHT(\"0\"&MONTH(DATE(YEAR(H2),MONTH(H2)+2,0)),2),'VSAOI transakcijas'!$Q:$Q,\"IIN\",'VSAOI transakcijas'!$K:$K,\"<>\"&\"FIFO*\",'VSAOI transakcijas'!$K:$K,\"<>\"&\"Iemaksas atbrīvošana\",'VSAOI transakcijas'!$E:$E,\"<>\"&\"Deklarācija/pārskats\")","v":0},{"$f":"-SUMIFS('VSAOI transakcijas'!$R:$R,'VSAOI transakcijas'!$D:$D,\"Aprēķins\",'VSAOI transakcijas'!$H:$H,\"Pamatsumma\",'VSAOI transakcijas'!$S:$S,\">=\"&DATE(YEAR(I2),MONTH(I2),1),'VSAOI transakcijas'!$S:$S,\"<=\"&'Sakuma lapa'!$F$16,'VSAOI transakcijas'!$O:$O,YEAR(DATE(YEAR(I2),MONTH(I2)+2,0)),'VSAOI transakcijas'!$P:$P,RIGHT(\"0\"&MONTH(DATE(YEAR(I2),MONTH(I2)+2,0)),2),'VSAOI transakcijas'!$Q:$Q,\"IIN\",'VSAOI transakcijas'!$K:$K,\"<>\"&\"FIFO*\",'VSAOI transakcijas'!$K:$K,\"<>\"&\"Iemaksas atbrīvošana\",'VSAOI transakcijas'!$E:$E,\"<>\"&\"Deklarācija/pārskats\")","v":0},{"$f":"-SUMIFS('VSAOI transakcijas'!$R:$R,'VSAOI transakcijas'!$D:$D,\"Aprēķins\",'VSAOI transakcijas'!$H:$H,\"Pamatsumma\",'VSAOI transakcijas'!$S:$S,\">=\"&DATE(YEAR(J2),MONTH(J2),1),'VSAOI transakcijas'!$S:$S,\"<=\"&'Sakuma lapa'!$F$16,'VSAOI transakcijas'!$O:$O,YEAR(DATE(YEAR(J2),MONTH(J2)+2,0)),'VSAOI transakcijas'!$P:$P,RIGHT(\"0\"&MONTH(DATE(YEAR(J2),MONTH(J2)+2,0)),2),'VSAOI transakcijas'!$Q:$Q,\"IIN\",'VSAOI transakcijas'!$K:$K,\"<>\"&\"FIFO*\",'VSAOI transakcijas'!$K:$K,\"<>\"&\"Iemaksas atbrīvošana\",'VSAOI transakcijas'!$E:$E,\"<>\"&\"Deklarācija/pārskats\")","v":0},{"$f":"-SUMIFS('VSAOI transakcijas'!$R:$R,'VSAOI transakcijas'!$D:$D,\"Aprēķins\",'VSAOI transakcijas'!$H:$H,\"Pamatsumma\",'VSAOI transakcijas'!$S:$S,\">=\"&DATE(YEAR(K2),MONTH(K2),1),'VSAOI transakcijas'!$S:$S,\"<=\"&'Sakuma lapa'!$F$16,'VSAOI transakcijas'!$O:$O,YEAR(DATE(YEAR(K2),MONTH(K2)+2,0)),'VSAOI transakcijas'!$P:$P,RIGHT(\"0\"&MONTH(DATE(YEAR(K2),MONTH(K2)+2,0)),2),'VSAOI transakcijas'!$Q:$Q,\"IIN\",'VSAOI transakcijas'!$K:$K,\"<>\"&\"FIFO*\",'VSAOI transakcijas'!$K:$K,\"<>\"&\"Iemaksas atbrīvošana\",'VSAOI transakcijas'!$E:$E,\"<>\"&\"Deklarācija/pārskats\")","v":0},{"$f":"-SUMIFS('VSAOI transakcijas'!$R:$R,'VSAOI transakcijas'!$D:$D,\"Aprēķins\",'VSAOI transakcijas'!$H:$H,\"Pamatsumma\",'VSAOI transakcijas'!$S:$S,\">=\"&DATE(YEAR(L2),MONTH(L2),1),'VSAOI transakcijas'!$S:$S,\"<=\"&'Sakuma lapa'!$F$16,'VSAOI transakcijas'!$O:$O,YEAR(DATE(YEAR(L2),MONTH(L2)+2,0)),'VSAOI transakcijas'!$P:$P,RIGHT(\"0\"&MONTH(DATE(YEAR(L2),MONTH(L2)+2,0)),2),'VSAOI transakcijas'!$Q:$Q,\"IIN\",'VSAOI transakcijas'!$K:$K,\"<>\"&\"FIFO*\",'VSAOI transakcijas'!$K:$K,\"<>\"&\"Iemaksas atbrīvošana\",'VSAOI transakcijas'!$E:$E,\"<>\"&\"Deklarācija/pārskats\")","v":0},{"$f":"-SUMIFS('VSAOI transakcijas'!$R:$R,'VSAOI transakcijas'!$D:$D,\"Aprēķins\",'VSAOI transakcijas'!$H:$H,\"Pamatsumma\",'VSAOI transakcijas'!$S:$S,\">=\"&DATE(YEAR(M2),MONTH(M2),1),'VSAOI transakcijas'!$S:$S,\"<=\"&'Sakuma lapa'!$F$16,'VSAOI transakcijas'!$O:$O,YEAR(DATE(YEAR(M2),MONTH(M2)+2,0)),'VSAOI transakcijas'!$P:$P,RIGHT(\"0\"&MONTH(DATE(YEAR(M2),MONTH(M2)+2,0)),2),'VSAOI transakcijas'!$Q:$Q,\"IIN\",'VSAOI transakcijas'!$K:$K,\"<>\"&\"FIFO*\",'VSAOI transakcijas'!$K:$K,\"<>\"&\"Iemaksas atbrīvošana\",'VSAOI transakcijas'!$E:$E,\"<>\"&\"Deklarācija/pārskats\")","v":0},{"$f":"-SUMIFS('VSAOI transakcijas'!$R:$R,'VSAOI transakcijas'!$D:$D,\"Aprēķins\",'VSAOI transakcijas'!$H:$H,\"Pamatsumma\",'VSAOI transakcijas'!$S:$S,\">=\"&DATE(YEAR(N2),MONTH(N2),1),'VSAOI transakcijas'!$S:$S,\"<=\"&'Sakuma lapa'!$F$16,'VSAOI transakcijas'!$O:$O,YEAR(DATE(YEAR(N2),MONTH(N2)+2,0)),'VSAOI transakcijas'!$P:$P,RIGHT(\"0\"&MONTH(DATE(YEAR(N2),MONTH(N2)+2,0)),2),'VSAOI transakcijas'!$Q:$Q,\"IIN\",'VSAOI transakcijas'!$K:$K,\"<>\"&\"FIFO*\",'VSAOI transakcijas'!$K:$K,\"<>\"&\"Iemaksas atbrīvošana\",'VSAOI transakcijas'!$E:$E,\"<>\"&\"Deklarācija/pārskats\")","v":0},{"$f":"SUM(C46:N46)","v":0}]
[null,"Iemaksa/Atmaksa/Pārvietošana",{"$f":"-SUMIFS('VSAOI transakcijas'!$R:$R,'VSAOI transakcijas'!$D:$D,\"Iemaksa\",'VSAOI transakcijas'!$H:$H,\"Pamatsumma\",'VSAOI transakcijas'!$S:$S,\">=\"&DATE(YEAR(C2),MONTH(C2),1),'VSAOI transakcijas'!$S:$S,\"<=\"&'Sakuma lapa'!$F$16,'VSAOI transakcijas'!$O:$O,YEAR(DATE(YEAR(C2),MONTH(C2)+1,0)),'VSAOI transakcijas'!$P:$P,RIGHT(\"0\"&MONTH(DATE(YEAR(C2),MONTH(C2)+1,0)),2),'VSAOI transakcijas'!$Q:$Q,\"IIN\")\n-SUMIFS('VSAOI transakcijas'!$R:$R,'VSAOI transakcijas'!$D:$D,\"Atmaksa\",'VSAOI transakcijas'!$H:$H,\"Pamatsumma\",'VSAOI transakcijas'!$S:$S,\">=\"&DATE(YEAR(C2),MONTH(C2),1),'VSAOI transakcijas'!$S:$S,\"<=\"&'Sakuma lapa'!$F$16,'VSAOI transakcijas'!$O:$O,YEAR(DATE(YEAR(C2),MONTH(C2)+1,0)),'VSAOI transakcijas'!$P:$P,RIGHT(\"0\"&MONTH(DATE(YEAR(C2),MONTH(C2)+1,0)),2),'VSAOI transakcijas'!$Q:$Q,\"IIN\")\n-SUMIFS('VSAOI transakcijas'!$R:$R,'VSAOI transakcijas'!$D:$D,\"Aprēķins\",'VSAOI transakcijas'!$H:$H,\"Pamatsumma\",'VSAOI transakcijas'!$S:$S,\">=\"&DATE(YEAR(C2),MONTH(C2),1),'VSAOI transakcijas'!$S:$S,\"<=\"&'Sakuma lapa'!$F$16,'VSAOI transakcijas'!$O:$O,YEAR(DATE(YEAR(C2),MONTH(C2)+1,0)),'VSAOI transakcijas'!$P:$P,RIGHT(\"0\"&MONTH(DATE(YEAR(C2),MONTH(C2)+1,0)),2),'VSAOI transakcijas'!$Q:$Q,\"IIN\",'VSAOI transakcijas'!$K:$K,\"FIFO*\")\n-SUMIFS('VSAOI transakcijas'!$R:$R,'VSAOI transakcijas'!$D:$D,\"Aprēķins\",'VSAOI transakcijas'!$H:$H,\"Pamatsumma\",'VSAOI transakcijas'!$S:$S,\">=\"&DATE(YEAR(C2),MONTH(C2),1),'VSAOI transakcijas'!$S:$S,\"<=\"&'Sakuma lapa'!$F$16,'VSAOI transakcijas'!$O:$O,YEAR(DATE(YEAR(C2),MONTH(C2)+1,0)),'VSAOI transakcijas'!$P:$P,RIGHT(\"0\"&MONTH(DATE(YEAR(C2),MONTH(C2)+1,0)),2),'VSAOI transakcijas'!$Q:$Q,\"IIN\",'VSAOI transakcijas'!$K:$K,\"Iemaksas atbrīvošana\")\n-SUMIFS('VSAOI transakcijas'!$R:$R,'VSAOI transakcijas'!$H:$H,\"Nokavējuma nauda\",'VSAOI transakcijas'!$S:$S,\">=\"&DATE(YEAR(C2),MONTH(C2),1),'VSAOI transakcijas'!$S:$S,\"<=\"&'Sakuma lapa'!$F$16,'VSAOI transakcijas'!$O:$O,YEAR(DATE(YEAR(C2),MONTH(C2)+1,0)),'VSAOI transakcijas'!$P:$P,RIGHT(\"0\"&MONTH(DATE(YEAR(C2),MONTH(C2)+1,0)),2),'VSAOI transakcijas'!$Q:$Q,\"IIN\")","v":0},{"$f":"-SUMIFS('VSAOI transakcijas'!$R:$R,'VSAOI transakcijas'!$D:$D,\"Iemaksa\",'VSAOI transakcijas'!$H:$H,\"Pamatsumma\",'VSAOI transakcijas'!$S:$S,\">=\"&DATE(YEAR(D2),MONTH(D2),1),'VSAOI transakcijas'!$S:$S,\"<=\"&'Sakuma lapa'!$F$16,'VSAOI transakcijas'!$O:$O,YEAR(DATE(YEAR(D2),MONTH(D2)+1,0)),'VSAOI transakcijas'!$P:$P,RIGHT(\"0\"&MONTH(DATE(YEAR(D2),MONTH(D2)+1,0)),2),'VSAOI transakcijas'!$Q:$Q,\"IIN\")\n-SUMIFS('VSAOI transakcijas'!$R:$R,'VSAOI transakcijas'!$D:$D,\"Atmaksa\",'VSAOI transakcijas'!$H:$H,\"Pamatsumma\",'VSAOI transakcijas'!$S:$S,\">=\"&DATE(YEAR(D2),MONTH(D2),1),'VSAOI transakcijas'!$S:$S,\"<=\"&'Sakuma lapa'!$F$16,'VSAOI transakcijas'!$O:$O,YEAR(DATE(YEAR(D2),MONTH(D2)+1,0)),'VSAOI transakcijas'!$P:$P,RIGHT(\"0\"&MONTH(DATE(YEAR(D2),MONTH(D2)+1,0)),2),'VSAOI transakcijas'!$Q:$Q,\"IIN\")\n-SUMIFS('VSAOI transakcijas'!$R:$R,'VSAOI transakcijas'!$D:$D,\"Aprēķins\",'VSAOI transakcijas'!$H:$H,\"Pamatsumma\",'VSAOI transakcijas'!$S:$S,\">=\"&DATE(YEAR(D2),MONTH(D2),1),'VSAOI transakcijas'!$S:$S,\"<=\"&'Sakuma lapa'!$F$16,'VSAOI transakcijas'!$O:$O,YEAR(DATE(YEAR(D2),MONTH(D2)+1,0)),'VSAOI transakcijas'!$P:$P,RIGHT(\"0\"&MONTH(DATE(YEAR(D2),MONTH(D2)+1,0)),2),'VSAOI transakcijas'!$Q:$Q,\"IIN\",'VSAOI transakcijas'!$K:$K,\"FIFO*\")\n-SUMIFS('VSAOI transakcijas'!$R:$R,'VSAOI transakcijas'!$D:$D,\"Aprēķins\",'VSAOI transakcijas'!$H:$H,\"Pamatsumma\",'VSAOI transakcijas'!$S:$S,\">=\"&DATE(YEAR(D2),MONTH(D2),1),'VSAOI transakcijas'!$S:$S,\"<=\"&'Sakuma lapa'!$F$16,'VSAOI transakcijas'!$O:$O,YEAR(DATE(YEAR(D2),MONTH(D2)+1,0)),'VSAOI transakcijas'!$P:$P,RIGHT(\"0\"&MONTH(DATE(YEAR(D2),MONTH(D2)+1,0)),2),'VSAOI transakcijas'!$Q:$Q,\"IIN\",'VSAOI transakcijas'!$K:$K,\"Iemaksas atbrīvošana\")\n-SUMIFS('VSAOI transakcijas'!$R:$R,'VSAOI transakcijas'!$H:$H,\"Nokavējuma nauda\",'VSAOI transakcijas'!$S:$S,\">=\"&DATE(YEAR(D2),MONTH(D2),1),'VSAOI transakcijas'!$S:$S,\"<=\"&'Sakuma lapa'!$F$16,'VSAOI transakcijas'!$O:$O,YEAR(DATE(YEAR(D2),MONTH(D2)+1,0)),'VSAOI transakcijas'!$P:$P,RIGHT(\"0\"&MONTH(DATE(YEAR(D2),MONTH(D2)+1,0)),2),'VSAOI transakcijas'!$Q:$Q,\"IIN\")","v":0},{"$f":"-SUMIFS('VSAOI transakcijas'!$R:$R,'VSAOI transakcijas'!$D:$D,\"Iemaksa\",'VSAOI transakcijas'!$H:$H,\"Pamatsumma\",'VSAOI transakcijas'!$S:$S,\">=\"&DATE(YEAR(E2),MONTH(E2),1),'VSAOI transakcijas'!$S:$S,\"<=\"&'Sakuma lapa'!$F$16,'VSAOI transakcijas'!$O:$O,YEAR(DATE(YEAR(E2),MONTH(E2)+1,0)),'VSAOI transakcijas'!$P:$P,RIGHT(\"0\"&MONTH(DATE(YEAR(E2),MONTH(E2)+1,0)),2),'VSAOI transakcijas'!$Q:$Q,\"IIN\")\n-SUMIFS('VSAOI transakcijas'!$R:$R,'VSAOI transakcijas'!$D:$D,\"Atmaksa\",'VSAOI transakcijas'!$H:$H,\"Pamatsumma\",'VSAOI transakcijas'!$S:$S,\">=\"&DATE(YEAR(E2),MONTH(E2),1),'VSAOI transakcijas'!$S:$S,\"<=\"&'Sakuma lapa'!$F$16,'VSAOI transakcijas'!$O:$O,YEAR(DATE(YEAR(E2),MONTH(E2)+1,0)),'VSAOI transakcijas'!$P:$P,RIGHT(\"0\"&MONTH(DATE(YEAR(E2),MONTH(E2)+1,0)),2),'VSAOI transakcijas'!$Q:$Q,\"IIN\")\n-SUMIFS('VSAOI transakcijas'!$R:$R,'VSAOI transakcijas'!$D:$D,\"Aprēķins\",'VSAOI transakcijas'!$H:$H,\"Pamatsumma\",'VSAOI transakcijas'!$S:$S,\">=\"&DATE(YEAR(E2),MONTH(E2),1),'VSAOI transakcijas'!$S:$S,\"<=\"&'Sakuma lapa'!$F$16,'VSAOI transakcijas'!$O:$O,YEAR(DATE(YEAR(E2),MONTH(E2)+1,0)),'VSAOI transakcijas'!$P:$P,RIGHT(\"0\"&MONTH(DATE(YEAR(E2),MONTH(E2)+1,0)),2),'VSAOI transakcijas'!$Q:$Q,\"IIN\",'VSAOI transakcijas'!$K:$K,\"FIFO*\")\n-SUMIFS('VSAOI transakcijas'!$R:$R,'VSAOI transakcijas'!$D:$D,\"Aprēķins\",'VSAOI transakcijas'!$H:$H,\"Pamatsumma\",'VSAOI transakcijas'!$S:$S,\">=\"&DATE(YEAR(E2),MONTH(E2),1),'VSAOI transakcijas'!$S:$S,\"<=\"&'Sakuma lapa'!$F$16,'VSAOI transakcijas'!$O:$O,YEAR(DATE(YEAR(E2),MONTH(E2)+1,0)),'VSAOI transakcijas'!$P:$P,RIGHT(\"0\"&MONTH(DATE(YEAR(E2),MONTH(E2)+1,0)),2),'VSAOI transakcijas'!$Q:$Q,\"IIN\",'VSAOI transakcijas'!$K:$K,\"Iemaksas atbrīvošana\")\n-SUMIFS('VSAOI transakcijas'!$R:$R,'VSAOI transakcijas'!$H:$H,\"Nokavējuma nauda\",'VSAOI transakcijas'!$S:$S,\">=\"&DATE(YEAR(E2),MONTH(E2),1),'VSAOI transakcijas'!$S:$S,\"<=\"&'Sakuma lapa'!$F$16,'VSAOI transakcijas'!$O:$O,YEAR(DATE(YEAR(E2),MONTH(E2)+1,0)),'VSAOI transakcijas'!$P:$P,RIGHT(\"0\"&MONTH(DATE(YEAR(E2),MONTH(E2)+1,0)),2),'VSAOI transakcijas'!$Q:$Q,\"IIN\")","v":0},{"$f":"-SUMIFS('VSAOI transakcijas'!$R:$R,'VSAOI transakcijas'!$D:$D,\"Iemaksa\",'VSAOI transakcijas'!$H:$H,\"Pamatsumma\",'VSAOI transakcijas'!$S:$S,\">=\"&DATE(YEAR(F2),MONTH(F2),1),'VSAOI transakcijas'!$S:$S,\"<=\"&'Sakuma lapa'!$F$16,'VSAOI transakcijas'!$O:$O,YEAR(DATE(YEAR(F2),MONTH(F2)+1,0)),'VSAOI transakcijas'!$P:$P,RIGHT(\"0\"&MONTH(DATE(YEAR(F2),MONTH(F2)+1,0)),2),'VSAOI transakcijas'!$Q:$Q,\"IIN\")\n-SUMIFS('VSAOI transakcijas'!$R:$R,'VSAOI transakcijas'!$D:$D,\"Atmaksa\",'VSAOI transakcijas'!$H:$H,\"Pamatsumma\",'VSAOI transakcijas'!$S:$S,\">=\"&DATE(YEAR(F2),MONTH(F2),1),'VSAOI transakcijas'!$S:$S,\"<=\"&'Sakuma lapa'!$F$16,'VSAOI transakcijas'!$O:$O,YEAR(DATE(YEAR(F2),MONTH(F2)+1,0)),'VSAOI transakcijas'!$P:$P,RIGHT(\"0\"&MONTH(DATE(YEAR(F2),MONTH(F2)+1,0)),2),'VSAOI transakcijas'!$Q:$Q,\"IIN\")\n-SUMIFS('VSAOI transakcijas'!$R:$R,'VSAOI transakcijas'!$D:$D,\"Aprēķins\",'VSAOI transakcijas'!$H:$H,\"Pamatsumma\",'VSAOI transakcijas'!$S:$S,\">=\"&DATE(YEAR(F2),MONTH(F2),1),'VSAOI transakcijas'!$S:$S,\"<=\"&'Sakuma lapa'!$F$16,'VSAOI transakcijas'!$O:$O,YEAR(DATE(YEAR(F2),MONTH(F2)+1,0)),'VSAOI transakcijas'!$P:$P,RIGHT(\"0\"&MONTH(DATE(YEAR(F2),MONTH(F2)+1,0)),2),'VSAOI transakcijas'!$Q:$Q,\"IIN\",'VSAOI transakcijas'!$K:$K,\"FIFO*\")\n-SUMIFS('VSAOI transakcijas'!$R:$R,'VSAOI transakcijas'!$D:$D,\"Aprēķins\",'VSAOI transakcijas'!$H:$H,\"Pamatsumma\",'VSAOI transakcijas'!$S:$S,\">=\"&DATE(YEAR(F2),MONTH(F2),1),'VSAOI transakcijas'!$S:$S,\"<=\"&'Sakuma lapa'!$F$16,'VSAOI transakcijas'!$O:$O,YEAR(DATE(YEAR(F2),MONTH(F2)+1,0)),'VSAOI transakcijas'!$P:$P,RIGHT(\"0\"&MONTH(DATE(YEAR(F2),MONTH(F2)+1,0)),2),'VSAOI transakcijas'!$Q:$Q,\"IIN\",'VSAOI transakcijas'!$K:$K,\"Iemaksas atbrīvošana\")\n-SUMIFS('VSAOI transakcijas'!$R:$R,'VSAOI transakcijas'!$H:$H,\"Nokavējuma nauda\",'VSAOI transakcijas'!$S:$S,\">=\"&DATE(YEAR(F2),MONTH(F2),1),'VSAOI transakcijas'!$S:$S,\"<=\"&'Sakuma lapa'!$F$16,'VSAOI transakcijas'!$O:$O,YEAR(DATE(YEAR(F2),MONTH(F2)+1,0)),'VSAOI transakcijas'!$P:$P,RIGHT(\"0\"&MONTH(DATE(YEAR(F2),MONTH(F2)+1,0)),2),'VSAOI transakcijas'!$Q:$Q,\"IIN\")","v":0},{"$f":"-SUMIFS('VSAOI transakcijas'!$R:$R,'VSAOI transakcijas'!$D:$D,\"Iemaksa\",'VSAOI transakcijas'!$H:$H,\"Pamatsumma\",'VSAOI transakcijas'!$S:$S,\">=\"&DATE(YEAR(G2),MONTH(G2),1),'VSAOI transakcijas'!$S:$S,\"<=\"&'Sakuma lapa'!$F$16,'VSAOI transakcijas'!$O:$O,YEAR(DATE(YEAR(G2),MONTH(G2)+1,0)),'VSAOI transakcijas'!$P:$P,RIGHT(\"0\"&MONTH(DATE(YEAR(G2),MONTH(G2)+1,0)),2),'VSAOI transakcijas'!$Q:$Q,\"IIN\")\n-SUMIFS('VSAOI transakcijas'!$R:$R,'VSAOI transakcijas'!$D:$D,\"Atmaksa\",'VSAOI transakcijas'!$H:$H,\"Pamatsumma\",'VSAOI transakcijas'!$S:$S,\">=\"&DATE(YEAR(G2),MONTH(G2),1),'VSAOI transakcijas'!$S:$S,\"<=\"&'Sakuma lapa'!$F$16,'VSAOI transakcijas'!$O:$O,YEAR(DATE(YEAR(G2),MONTH(G2)+1,0)),'VSAOI transakcijas'!$P:$P,RIGHT(\"0\"&MONTH(DATE(YEAR(G2),MONTH(G2)+1,0)),2),'VSAOI transakcijas'!$Q:$Q,\"IIN\")\n-SUMIFS('VSAOI transakcijas'!$R:$R,'VSAOI transakcijas'!$D:$D,\"Aprēķins\",'VSAOI transakcijas'!$H:$H,\"Pamatsumma\",'VSAOI transakcijas'!$S:$S,\">=\"&DATE(YEAR(G2),MONTH(G2),1),'VSAOI transakcijas'!$S:$S,\"<=\"&'Sakuma lapa'!$F$16,'VSAOI transakcijas'!$O:$O,YEAR(DATE(YEAR(G2),MONTH(G2)+1,0)),'VSAOI transakcijas'!$P:$P,RIGHT(\"0\"&MONTH(DATE(YEAR(G2),MONTH(G2)+1,0)),2),'VSAOI transakcijas'!$Q:$Q,\"IIN\",'VSAOI transakcijas'!$K:$K,\"FIFO*\")\n-SUMIFS('VSAOI transakcijas'!$R:$R,'VSAOI transakcijas'!$D:$D,\"Aprēķins\",'VSAOI transakcijas'!$H:$H,\"Pamatsumma\",'VSAOI transakcijas'!$S:$S,\">=\"&DATE(YEAR(G2),MONTH(G2),1),'VSAOI transakcijas'!$S:$S,\"<=\"&'Sakuma lapa'!$F$16,'VSAOI transakcijas'!$O:$O,YEAR(DATE(YEAR(G2),MONTH(G2)+1,0)),'VSAOI transakcijas'!$P:$P,RIGHT(\"0\"&MONTH(DATE(YEAR(G2),MONTH(G2)+1,0)),2),'VSAOI transakcijas'!$Q:$Q,\"IIN\",'VSAOI transakcijas'!$K:$K,\"Iemaksas atbrīvošana\")\n-SUMIFS('VSAOI transakcijas'!$R:$R,'VSAOI transakcijas'!$H:$H,\"Nokavējuma nauda\",'VSAOI transakcijas'!$S:$S,\">=\"&DATE(YEAR(G2),MONTH(G2),1),'VSAOI transakcijas'!$S:$S,\"<=\"&'Sakuma lapa'!$F$16,'VSAOI transakcijas'!$O:$O,YEAR(DATE(YEAR(G2),MONTH(G2)+1,0)),'VSAOI transakcijas'!$P:$P,RIGHT(\"0\"&MONTH(DATE(YEAR(G2),MONTH(G2)+1,0)),2),'VSAOI transakcijas'!$Q:$Q,\"IIN\")","v":0},{"$f":"-SUMIFS('VSAOI transakcijas'!$R:$R,'VSAOI transakcijas'!$D:$D,\"Iemaksa\",'VSAOI transakcijas'!$H:$H,\"Pamatsumma\",'VSAOI transakcijas'!$S:$S,\">=\"&DATE(YEAR(H2),MONTH(H2),1),'VSAOI transakcijas'!$S:$S,\"<=\"&'Sakuma lapa'!$F$16,'VSAOI transakcijas'!$O:$O,YEAR(DATE(YEAR(H2),MONTH(H2)+1,0)),'VSAOI transakcijas'!$P:$P,RIGHT(\"0\"&MONTH(DATE(YEAR(H2),MONTH(H2)+1,0)),2),'VSAOI transakcijas'!$Q:$Q,\"IIN\")\n-SUMIFS('VSAOI transakcijas'!$R:$R,'VSAOI transakcijas'!$D:$D,\"Atmaksa\",'VSAOI transakcijas'!$H:$H,\"Pamatsumma\",'VSAOI transakcijas'!$S:$S,\">=\"&DATE(YEAR(H2),MONTH(H2),1),'VSAOI transakcijas'!$S:$S,\"<=\"&'Sakuma lapa'!$F$16,'VSAOI transakcijas'!$O:$O,YEAR(DATE(YEAR(H2),MONTH(H2)+1,0)),'VSAOI transakcijas'!$P:$P,RIGHT(\"0\"&MONTH(DATE(YEAR(H2),MONTH(H2)+1,0)),2),'VSAOI transakcijas'!$Q:$Q,\"IIN\")\n-SUMIFS('VSAOI transakcijas'!$R:$R,'VSAOI transakcijas'!$D:$D,\"Aprēķins\",'VSAOI transakcijas'!$H:$H,\"Pamatsumma\",'VSAOI transakcijas'!$S:$S,\">=\"&DATE(YEAR(H2),MONTH(H2),1),'VSAOI transakcijas'!$S:$S,\"<=\"&'Sakuma lapa'!$F$16,'VSAOI transakcijas'!$O:$O,YEAR(DATE(YEAR(H2),MONTH(H2)+1,0)),'VSAOI transakcijas'!$P:$P,RIGHT(\"0\"&MONTH(DATE(YEAR(H2),MONTH(H2)+1,0)),2),'VSAOI transakcijas'!$Q:$Q,\"IIN\",'VSAOI transakcijas'!$K:$K,\"FIFO*\")\n-SUMIFS('VSAOI transakcijas'!$R:$R,'VSAOI transakcijas'!$D:$D,\"Aprēķins\",'VSAOI transakcijas'!$H:$H,\"Pamatsumma\",'VSAOI transakcijas'!$S:$S,\">=\"&DATE(YEAR(H2),MONTH(H2),1),'VSAOI transakcijas'!$S:$S,\"<=\"&'Sakuma lapa'!$F$16,'VSAOI transakcijas'!$O:$O,YEAR(DATE(YEAR(H2),MONTH(H2)+1,0)),'VSAOI transakcijas'!$P:$P,RIGHT(\"0\"&MONTH(DATE(YEAR(H2),MONTH(H2)+1,0)),2),'VSAOI transakcijas'!$Q:$Q,\"IIN\",'VSAOI transakcijas'!$K:$K,\"Iemaksas atbrīvošana\")\n-SUMIFS('VSAOI transakcijas'!$R:$R,'VSAOI transakcijas'!$H:$H,\"Nokavējuma nauda\",'VSAOI transakcijas'!$S:$S,\">=\"&DATE(YEAR(H2),MONTH(H2),1),'VSAOI transakcijas'!$S:$S,\"<=\"&'Sakuma lapa'!$F$16,'VSAOI transakcijas'!$O:$O,YEAR(DATE(YEAR(H2),MONTH(H2)+1,0)),'VSAOI transakcijas'!$P:$P,RIGHT(\"0\"&MONTH(DATE(YEAR(H2),MONTH(H2)+1,0)),2),'VSAOI transakcijas'!$Q:$Q,\"IIN\")","v":0},{"$f":"-SUMIFS('VSAOI transakcijas'!$R:$R,'VSAOI transakcijas'!$D:$D,\"Iemaksa\",'VSAOI transakcijas'!$H:$H,\"Pamatsumma\",'VSAOI transakcijas'!$S:$S,\">=\"&DATE(YEAR(I2),MONTH(I2),1),'VSAOI transakcijas'!$S:$S,\"<=\"&'Sakuma lapa'!$F$16,'VSAOI transakcijas'!$O:$O,YEAR(DATE(YEAR(I2),MONTH(I2)+1,0)),'VSAOI transakcijas'!$P:$P,RIGHT(\"0\"&MONTH(DATE(YEAR(I2),MONTH(I2)+1,0)),2),'VSAOI transakcijas'!$Q:$Q,\"IIN\")\n-SUMIFS('VSAOI transakcijas'!$R:$R,'VSAOI transakcijas'!$D:$D,\"Atmaksa\",'VSAOI transakcijas'!$H:$H,\"Pamatsumma\",'VSAOI transakcijas'!$S:$S,\">=\"&DATE(YEAR(I2),MONTH(I2),1),'VSAOI transakcijas'!$S:$S,\"<=\"&'Sakuma lapa'!$F$16,'VSAOI transakcijas'!$O:$O,YEAR(DATE(YEAR(I2),MONTH(I2)+1,0)),'VSAOI transakcijas'!$P:$P,RIGHT(\"0\"&MONTH(DATE(YEAR(I2),MONTH(I2)+1,0)),2),'VSAOI transakcijas'!$Q:$Q,\"IIN\")\n-SUMIFS('VSAOI transakcijas'!$R:$R,'VSAOI transakcijas'!$D:$D,\"Aprēķins\",'VSAOI transakcijas'!$H:$H,\"Pamatsumma\",'VSAOI transakcijas'!$S:$S,\">=\"&DATE(YEAR(I2),MONTH(I2),1),'VSAOI transakcijas'!$S:$S,\"<=\"&'Sakuma lapa'!$F$16,'VSAOI transakcijas'!$O:$O,YEAR(DATE(YEAR(I2),MONTH(I2)+1,0)),'VSAOI transakcijas'!$P:$P,RIGHT(\"0\"&MONTH(DATE(YEAR(I2),MONTH(I2)+1,0)),2),'VSAOI transakcijas'!$Q:$Q,\"IIN\",'VSAOI transakcijas'!$K:$K,\"FIFO*\")\n-SUMIFS('VSAOI transakcijas'!$R:$R,'VSAOI transakcijas'!$D:$D,\"Aprēķins\",'VSAOI transakcijas'!$H:$H,\"Pamatsumma\",'VSAOI transakcijas'!$S:$S,\">=\"&DATE(YEAR(I2),MONTH(I2),1),'VSAOI transakcijas'!$S:$S,\"<=\"&'Sakuma lapa'!$F$16,'VSAOI transakcijas'!$O:$O,YEAR(DATE(YEAR(I2),MONTH(I2)+1,0)),'VSAOI transakcijas'!$P:$P,RIGHT(\"0\"&MONTH(DATE(YEAR(I2),MONTH(I2)+1,0)),2),'VSAOI transakcijas'!$Q:$Q,\"IIN\",'VSAOI transakcijas'!$K:$K,\"Iemaksas atbrīvošana\")\n-SUMIFS('VSAOI transakcijas'!$R:$R,'VSAOI transakcijas'!$H:$H,\"Nokavējuma nauda\",'VSAOI transakcijas'!$S:$S,\">=\"&DATE(YEAR(I2),MONTH(I2),1),'VSAOI transakcijas'!$S:$S,\"<=\"&'Sakuma lapa'!$F$16,'VSAOI transakcijas'!$O:$O,YEAR(DATE(YEAR(I2),MONTH(I2)+1,0)),'VSAOI transakcijas'!$P:$P,RIGHT(\"0\"&MONTH(DATE(YEAR(I2),MONTH(I2)+1,0)),2),'VSAOI transakcijas'!$Q:$Q,\"IIN\")","v":0},{"$f":"-SUMIFS('VSAOI transakcijas'!$R:$R,'VSAOI transakcijas'!$D:$D,\"Iemaksa\",'VSAOI transakcijas'!$H:$H,\"Pamatsumma\",'VSAOI transakcijas'!$S:$S,\">=\"&DATE(YEAR(J2),MONTH(J2),1),'VSAOI transakcijas'!$S:$S,\"<=\"&'Sakuma lapa'!$F$16,'VSAOI transakcijas'!$O:$O,YEAR(DATE(YEAR(J2),MONTH(J2)+1,0)),'VSAOI transakcijas'!$P:$P,RIGHT(\"0\"&MONTH(DATE(YEAR(J2),MONTH(J2)+1,0)),2),'VSAOI transakcijas'!$Q:$Q,\"IIN\")\n-SUMIFS('VSAOI transakcijas'!$R:$R,'VSAOI transakcijas'!$D:$D,\"Atmaksa\",'VSAOI transakcijas'!$H:$H,\"Pamatsumma\",'VSAOI transakcijas'!$S:$S,\">=\"&DATE(YEAR(J2),MONTH(J2),1),'VSAOI transakcijas'!$S:$S,\"<=\"&'Sakuma lapa'!$F$16,'VSAOI transakcijas'!$O:$O,YEAR(DATE(YEAR(J2),MONTH(J2)+1,0)),'VSAOI transakcijas'!$P:$P,RIGHT(\"0\"&MONTH(DATE(YEAR(J2),MONTH(J2)+1,0)),2),'VSAOI transakcijas'!$Q:$Q,\"IIN\")\n-SUMIFS('VSAOI transakcijas'!$R:$R,'VSAOI transakcijas'!$D:$D,\"Aprēķins\",'VSAOI transakcijas'!$H:$H,\"Pamatsumma\",'VSAOI transakcijas'!$S:$S,\">=\"&DATE(YEAR(J2),MONTH(J2),1),'VSAOI transakcijas'!$S:$S,\"<=\"&'Sakuma lapa'!$F$16,'VSAOI transakcijas'!$O:$O,YEAR(DATE(YEAR(J2),MONTH(J2)+1,0)),'VSAOI transakcijas'!$P:$P,RIGHT(\"0\"&MONTH(DATE(YEAR(J2),MONTH(J2)+1,0)),2),'VSAOI transakcijas'!$Q:$Q,\"IIN\",'VSAOI transakcijas'!$K:$K,\"FIFO*\")\n-SUMIFS('VSAOI transakcijas'!$R:$R,'VSAOI transakcijas'!$D:$D,\"Aprēķins\",'VSAOI transakcijas'!$H:$H,\"Pamatsumma\",'VSAOI transakcijas'!$S:$S,\">=\"&DATE(YEAR(J2),MONTH(J2),1),'VSAOI transakcijas'!$S:$S,\"<=\"&'Sakuma lapa'!$F$16,'VSAOI transakcijas'!$O:$O,YEAR(DATE(YEAR(J2),MONTH(J2)+1,0)),'VSAOI transakcijas'!$P:$P,RIGHT(\"0\"&MONTH(DATE(YEAR(J2),MONTH(J2)+1,0)),2),'VSAOI transakcijas'!$Q:$Q,\"IIN\",'VSAOI transakcijas'!$K:$K,\"Iemaksas atbrīvošana\")\n-SUMIFS('VSAOI transakcijas'!$R:$R,'VSAOI transakcijas'!$H:$H,\"Nokavējuma nauda\",'VSAOI transakcijas'!$S:$S,\">=\"&DATE(YEAR(J2),MONTH(J2),1),'VSAOI transakcijas'!$S:$S,\"<=\"&'Sakuma lapa'!$F$16,'VSAOI transakcijas'!$O:$O,YEAR(DATE(YEAR(J2),MONTH(J2)+1,0)),'VSAOI transakcijas'!$P:$P,RIGHT(\"0\"&MONTH(DATE(YEAR(J2),MONTH(J2)+1,0)),2),'VSAOI transakcijas'!$Q:$Q,\"IIN\")","v":0},{"$f":"-SUMIFS('VSAOI transakcijas'!$R:$R,'VSAOI transakcijas'!$D:$D,\"Iemaksa\",'VSAOI transakcijas'!$H:$H,\"Pamatsumma\",'VSAOI transakcijas'!$S:$S,\">=\"&DATE(YEAR(K2),MONTH(K2),1),'VSAOI transakcijas'!$S:$S,\"<=\"&'Sakuma lapa'!$F$16,'VSAOI transakcijas'!$O:$O,YEAR(DATE(YEAR(K2),MONTH(K2)+1,0)),'VSAOI transakcijas'!$P:$P,RIGHT(\"0\"&MONTH(DATE(YEAR(K2),MONTH(K2)+1,0)),2),'VSAOI transakcijas'!$Q:$Q,\"IIN\")\n-SUMIFS('VSAOI transakcijas'!$R:$R,'VSAOI transakcijas'!$D:$D,\"Atmaksa\",'VSAOI transakcijas'!$H:$H,\"Pamatsumma\",'VSAOI transakcijas'!$S:$S,\">=\"&DATE(YEAR(K2),MONTH(K2),1),'VSAOI transakcijas'!$S:$S,\"<=\"&'Sakuma lapa'!$F$16,'VSAOI transakcijas'!$O:$O,YEAR(DATE(YEAR(K2),MONTH(K2)+1,0)),'VSAOI transakcijas'!$P:$P,RIGHT(\"0\"&MONTH(DATE(YEAR(K2),MONTH(K2)+1,0)),2),'VSAOI transakcijas'!$Q:$Q,\"IIN\")\n-SUMIFS('VSAOI transakcijas'!$R:$R,'VSAOI transakcijas'!$D:$D,\"Aprēķins\",'VSAOI transakcijas'!$H:$H,\"Pamatsumma\",'VSAOI transakcijas'!$S:$S,\">=\"&DATE(YEAR(K2),MONTH(K2),1),'VSAOI transakcijas'!$S:$S,\"<=\"&'Sakuma lapa'!$F$16,'VSAOI transakcijas'!$O:$O,YEAR(DATE(YEAR(K2),MONTH(K2)+1,0)),'VSAOI transakcijas'!$P:$P,RIGHT(\"0\"&MONTH(DATE(YEAR(K2),MONTH(K2)+1,0)),2),'VSAOI transakcijas'!$Q:$Q,\"IIN\",'VSAOI transakcijas'!$K:$K,\"FIFO*\")\n-SUMIFS('VSAOI transakcijas'!$R:$R,'VSAOI transakcijas'!$D:$D,\"Aprēķins\",'VSAOI transakcijas'!$H:$H,\"Pamatsumma\",'VSAOI transakcijas'!$S:$S,\">=\"&DATE(YEAR(K2),MONTH(K2),1),'VSAOI transakcijas'!$S:$S,\"<=\"&'Sakuma lapa'!$F$16,'VSAOI transakcijas'!$O:$O,YEAR(DATE(YEAR(K2),MONTH(K2)+1,0)),'VSAOI transakcijas'!$P:$P,RIGHT(\"0\"&MONTH(DATE(YEAR(K2),MONTH(K2)+1,0)),2),'VSAOI transakcijas'!$Q:$Q,\"IIN\",'VSAOI transakcijas'!$K:$K,\"Iemaksas atbrīvošana\")\n-SUMIFS('VSAOI transakcijas'!$R:$R,'VSAOI transakcijas'!$H:$H,\"Nokavējuma nauda\",'VSAOI transakcijas'!$S:$S,\">=\"&DATE(YEAR(K2),MONTH(K2),1),'VSAOI transakcijas'!$S:$S,\"<=\"&'Sakuma lapa'!$F$16,'VSAOI transakcijas'!$O:$O,YEAR(DATE(YEAR(K2),MONTH(K2)+1,0)),'VSAOI transakcijas'!$P:$P,RIGHT(\"0\"&MONTH(DATE(YEAR(K2),MONTH(K2)+1,0)),2),'VSAOI transakcijas'!$Q:$Q,\"IIN\")","v":0},{"$f":"-SUMIFS('VSAOI transakcijas'!$R:$R,'VSAOI transakcijas'!$D:$D,\"Iemaksa\",'VSAOI transakcijas'!$H:$H,\"Pamatsumma\",'VSAOI transakcijas'!$S:$S,\">=\"&DATE(YEAR(L2),MONTH(L2),1),'VSAOI transakcijas'!$S:$S,\"<=\"&'Sakuma lapa'!$F$16,'VSAOI transakcijas'!$O:$O,YEAR(DATE(YEAR(L2),MONTH(L2)+1,0)),'VSAOI transakcijas'!$P:$P,RIGHT(\"0\"&MONTH(DATE(YEAR(L2),MONTH(L2)+1,0)),2),'VSAOI transakcijas'!$Q:$Q,\"IIN\")\n-SUMIFS('VSAOI transakcijas'!$R:$R,'VSAOI transakcijas'!$D:$D,\"Atmaksa\",'VSAOI transakcijas'!$H:$H,\"Pamatsumma\",'VSAOI transakcijas'!$S:$S,\">=\"&DATE(YEAR(L2),MONTH(L2),1),'VSAOI transakcijas'!$S:$S,\"<=\"&'Sakuma lapa'!$F$16,'VSAOI transakcijas'!$O:$O,YEAR(DATE(YEAR(L2),MONTH(L2)+1,0)),'VSAOI transakcijas'!$P:$P,RIGHT(\"0\"&MONTH(DATE(YEAR(L2),MONTH(L2)+1,0)),2),'VSAOI transakcijas'!$Q:$Q,\"IIN\")\n-SUMIFS('VSAOI transakcijas'!$R:$R,'VSAOI transakcijas'!$D:$D,\"Aprēķins\",'VSAOI transakcijas'!$H:$H,\"Pamatsumma\",'VSAOI transakcijas'!$S:$S,\">=\"&DATE(YEAR(L2),MONTH(L2),1),'VSAOI transakcijas'!$S:$S,\"<=\"&'Sakuma lapa'!$F$16,'VSAOI transakcijas'!$O:$O,YEAR(DATE(YEAR(L2),MONTH(L2)+1,0)),'VSAOI transakcijas'!$P:$P,RIGHT(\"0\"&MONTH(DATE(YEAR(L2),MONTH(L2)+1,0)),2),'VSAOI transakcijas'!$Q:$Q,\"IIN\",'VSAOI transakcijas'!$K:$K,\"FIFO*\")\n-SUMIFS('VSAOI transakcijas'!$R:$R,'VSAOI transakcijas'!$D:$D,\"Aprēķins\",'VSAOI transakcijas'!$H:$H,\"Pamatsumma\",'VSAOI transakcijas'!$S:$S,\">=\"&DATE(YEAR(L2),MONTH(L2),1),'VSAOI transakcijas'!$S:$S,\"<=\"&'Sakuma lapa'!$F$16,'VSAOI transakcijas'!$O:$O,YEAR(DATE(YEAR(L2),MONTH(L2)+1,0)),'VSAOI transakcijas'!$P:$P,RIGHT(\"0\"&MONTH(DATE(YEAR(L2),MONTH(L2)+1,0)),2),'VSAOI transakcijas'!$Q:$Q,\"IIN\",'VSAOI transakcijas'!$K:$K,\"Iemaksas atbrīvošana\")\n-SUMIFS('VSAOI transakcijas'!$R:$R,'VSAOI transakcijas'!$H:$H,\"Nokavējuma nauda\",'VSAOI transakcijas'!$S:$S,\">=\"&DATE(YEAR(L2),MONTH(L2),1),'VSAOI transakcijas'!$S:$S,\"<=\"&'Sakuma lapa'!$F$16,'VSAOI transakcijas'!$O:$O,YEAR(DATE(YEAR(L2),MONTH(L2)+1,0)),'VSAOI transakcijas'!$P:$P,RIGHT(\"0\"&MONTH(DATE(YEAR(L2),MONTH(L2)+1,0)),2),'VSAOI transakcijas'!$Q:$Q,\"IIN\")","v":0},{"$f":"-SUMIFS('VSAOI transakcijas'!$R:$R,'VSAOI transakcijas'!$D:$D,\"Iemaksa\",'VSAOI transakcijas'!$H:$H,\"Pamatsumma\",'VSAOI transakcijas'!$S:$S,\">=\"&DATE(YEAR(M2),MONTH(M2),1),'VSAOI transakcijas'!$S:$S,\"<=\"&'Sakuma lapa'!$F$16,'VSAOI transakcijas'!$O:$O,YEAR(DATE(YEAR(M2),MONTH(M2)+1,0)),'VSAOI transakcijas'!$P:$P,RIGHT(\"0\"&MONTH(DATE(YEAR(M2),MONTH(M2)+1,0)),2),'VSAOI transakcijas'!$Q:$Q,\"IIN\")\n-SUMIFS('VSAOI transakcijas'!$R:$R,'VSAOI transakcijas'!$D:$D,\"Atmaksa\",'VSAOI transakcijas'!$H:$H,\"Pamatsumma\",'VSAOI transakcijas'!$S:$S,\">=\"&DATE(YEAR(M2),MONTH(M2),1),'VSAOI transakcijas'!$S:$S,\"<=\"&'Sakuma lapa'!$F$16,'VSAOI transakcijas'!$O:$O,YEAR(DATE(YEAR(M2),MONTH(M2)+1,0)),'VSAOI transakcijas'!$P:$P,RIGHT(\"0\"&MONTH(DATE(YEAR(M2),MONTH(M2)+1,0)),2),'VSAOI transakcijas'!$Q:$Q,\"IIN\")\n-SUMIFS('VSAOI transakcijas'!$R:$R,'VSAOI transakcijas'!$D:$D,\"Aprēķins\",'VSAOI transakcijas'!$H:$H,\"Pamatsumma\",'VSAOI transakcijas'!$S:$S,\">=\"&DATE(YEAR(M2),MONTH(M2),1),'VSAOI transakcijas'!$S:$S,\"<=\"&'Sakuma lapa'!$F$16,'VSAOI transakcijas'!$O:$O,YEAR(DATE(YEAR(M2),MONTH(M2)+1,0)),'VSAOI transakcijas'!$P:$P,RIGHT(\"0\"&MONTH(DATE(YEAR(M2),MONTH(M2)+1,0)),2),'VSAOI transakcijas'!$Q:$Q,\"IIN\",'VSAOI transakcijas'!$K:$K,\"FIFO*\")\n-SUMIFS('VSAOI transakcijas'!$R:$R,'VSAOI transakcijas'!$D:$D,\"Aprēķins\",'VSAOI transakcijas'!$H:$H,\"Pamatsumma\",'VSAOI transakcijas'!$S:$S,\">=\"&DATE(YEAR(M2),MONTH(M2),1),'VSAOI transakcijas'!$S:$S,\"<=\"&'Sakuma lapa'!$F$16,'VSAOI transakcijas'!$O:$O,YEAR(DATE(YEAR(M2),MONTH(M2)+1,0)),'VSAOI transakcijas'!$P:$P,RIGHT(\"0\"&MONTH(DATE(YEAR(M2),MONTH(M2)+1,0)),2),'VSAOI transakcijas'!$Q:$Q,\"IIN\",'VSAOI transakcijas'!$K:$K,\"Iemaksas atbrīvošana\")\n-SUMIFS('VSAOI transakcijas'!$R:$R,'VSAOI transakcijas'!$H:$H,\"Nokavējuma nauda\",'VSAOI transakcijas'!$S:$S,\">=\"&DATE(YEAR(M2),MONTH(M2),1),'VSAOI transakcijas'!$S:$S,\"<=\"&'Sakuma lapa'!$F$16,'VSAOI transakcijas'!$O:$O,YEAR(DATE(YEAR(M2),MONTH(M2)+1,0)),'VSAOI transakcijas'!$P:$P,RIGHT(\"0\"&MONTH(DATE(YEAR(M2),MONTH(M2)+1,0)),2),'VSAOI transakcijas'!$Q:$Q,\"IIN\")","v":0},{"$f":"-SUMIFS('VSAOI transakcijas'!$R:$R,'VSAOI transakcijas'!$D:$D,\"Iemaksa\",'VSAOI transakcijas'!$H:$H,\"Pamatsumma\",'VSAOI transakcijas'!$S:$S,\">=\"&DATE(YEAR(N2),MONTH(N2),1),'VSAOI transakcijas'!$S:$S,\"<=\"&'Sakuma lapa'!$F$16,'VSAOI transakcijas'!$O:$O,YEAR(DATE(YEAR(N2),MONTH(N2)+1,0)),'VSAOI transakcijas'!$P:$P,RIGHT(\"0\"&MONTH(DATE(YEAR(N2),MONTH(N2)+1,0)),2),'VSAOI transakcijas'!$Q:$Q,\"IIN\")\n-SUMIFS('VSAOI transakcijas'!$R:$R,'VSAOI transakcijas'!$D:$D,\"Atmaksa\",'VSAOI transakcijas'!$H:$H,\"Pamatsumma\",'VSAOI transakcijas'!$S:$S,\">=\"&DATE(YEAR(N2),MONTH(N2),1),'VSAOI transakcijas'!$S:$S,\"<=\"&'Sakuma lapa'!$F$16,'VSAOI transakcijas'!$O:$O,YEAR(DATE(YEAR(N2),MONTH(N2)+1,0)),'VSAOI transakcijas'!$P:$P,RIGHT(\"0\"&MONTH(DATE(YEAR(N2),MONTH(N2)+1,0)),2),'VSAOI transakcijas'!$Q:$Q,\"IIN\")\n-SUMIFS('VSAOI transakcijas'!$R:$R,'VSAOI transakcijas'!$D:$D,\"Aprēķins\",'VSAOI transakcijas'!$H:$H,\"Pamatsumma\",'VSAOI transakcijas'!$S:$S,\">=\"&DATE(YEAR(N2),MONTH(N2),1),'VSAOI transakcijas'!$S:$S,\"<=\"&'Sakuma lapa'!$F$16,'VSAOI transakcijas'!$O:$O,YEAR(DATE(YEAR(N2),MONTH(N2)+1,0)),'VSAOI transakcijas'!$P:$P,RIGHT(\"0\"&MONTH(DATE(YEAR(N2),MONTH(N2)+1,0)),2),'VSAOI transakcijas'!$Q:$Q,\"IIN\",'VSAOI transakcijas'!$K:$K,\"FIFO*\")\n-SUMIFS('VSAOI transakcijas'!$R:$R,'VSAOI transakcijas'!$D:$D,\"Aprēķins\",'VSAOI transakcijas'!$H:$H,\"Pamatsumma\",'VSAOI transakcijas'!$S:$S,\">=\"&DATE(YEAR(N2),MONTH(N2),1),'VSAOI transakcijas'!$S:$S,\"<=\"&'Sakuma lapa'!$F$16,'VSAOI transakcijas'!$O:$O,YEAR(DATE(YEAR(N2),MONTH(N2)+1,0)),'VSAOI transakcijas'!$P:$P,RIGHT(\"0\"&MONTH(DATE(YEAR(N2),MONTH(N2)+1,0)),2),'VSAOI transakcijas'!$Q:$Q,\"IIN\",'VSAOI transakcijas'!$K:$K,\"Iemaksas atbrīvošana\")\n-SUMIFS('VSAOI transakcijas'!$R:$R,'VSAOI transakcijas'!$H:$H,\"Nokavējuma nauda\",'VSAOI transakcijas'!$S:$S,\">=\"&DATE(YEAR(N2),MONTH(N2),1),'VSAOI transakcijas'!$S:$S,\"<=\"&'Sakuma lapa'!$F$16,'VSAOI transakcijas'!$O:$O,YEAR(DATE(YEAR(N2),MONTH(N2)+1,0)),'VSAOI transakcijas'!$P:$P,RIGHT(\"0\"&MONTH(DATE(YEAR(N2),MONTH(N2)+1,0)),2),'VSAOI transakcijas'!$Q:$Q,\"IIN\")","v":0},{"$f":"SUM(C47:N47)","v":0}]
[null,"VG  beigu atlikums"]
[null,"VG beigu atlikuma starpība",{"$f":"IF(C48=\"\",\"-\",C48-D44)","v":"-"},"-","-","-","-","-","-","-","-","-","-","-"]
[null,"Starpība starp deklarācijām un TransParsk",{"$f":"C12-C45","v":0},0,0,0,0,0,0,0,0,0,0,0,{"$f":"SUM(C50:N50)","v":0}]
[]
[null,"RN - VG sakuma atlikums",null,{"$f":"SUM(C52:C55)","v":0},{"$f":"SUM(D52:D55)","v":0},0,0,0,0,0,0,0,0,0,{"$f":"SUM(N52:N55)","v":0}]
[null,"Aprēķins - Deklarācijas",{"$f":"-SUMIFS('VSAOI transakcijas'!$R:$R,'VSAOI transakcijas'!$D:$D,\"Aprēķins\",'VSAOI transakcijas'!$H:$H,\"Pamatsumma\",'VSAOI transakcijas'!$S:$S,\">=\"&DATE(YEAR(C2),MONTH(C2),1),'VSAOI transakcijas'!$S:$S,\"<=\"&'Sakuma lapa'!$F$16,'VSAOI transakcijas'!$O:$O,YEAR(DATE(YEAR(C2),MONTH(C2)+2,0)),'VSAOI transakcijas'!$P:$P,RIGHT(\"0\"&MONTH(DATE(YEAR(C2),MONTH(C2)+2,0)),2),'VSAOI transakcijas'!$Q:$Q,\"Riska nodeva\",'VSAOI transakcijas'!$K:$K,\"<>\"&\"FIFO*\",'VSAOI transakcijas'!$K:$K,\"<>\"&\"Iemaksas atbrīvošana\",'VSAOI transakcijas'!$E:$E,\"Deklarācija/pārskats\")","v":0},{"$f":"-SUMIFS('VSAOI transakcijas'!$R:$R,'VSAOI transakcijas'!$D:$D,\"Aprēķins\",'VSAOI transakcijas'!$H:$H,\"Pamatsumma\",'VSAOI transakcijas'!$S:$S,\">=\"&DATE(YEAR(D2),MONTH(D2),1),'VSAOI transakcijas'!$S:$S,\"<=\"&'Sakuma lapa'!$F$16,'VSAOI transakcijas'!$O:$O,YEAR(DATE(YEAR(D2),MONTH(D2)+2,0)),'VSAOI transakcijas'!$P:$P,RIGHT(\"0\"&MONTH(DATE(YEAR(D2),MONTH(D2)+2,0)),2),'VSAOI transakcijas'!$Q:$Q,\"Riska nodeva\",'VSAOI transakcijas'!$K:$K,\"<>\"&\"FIFO*\",'VSAOI transakcijas'!$K:$K,\"<>\"&\"Iemaksas atbrīvošana\",'VSAOI transakcijas'!$E:$E,\"Deklarācija/pārskats\")","v":0},{"$f":"-SUMIFS('VSAOI transakcijas'!$R:$R,'VSAOI transakcijas'!$D:$D,\"Aprēķins\",'VSAOI transakcijas'!$H:$H,\"Pamatsumma\",'VSAOI transakcijas'!$S:$S,\">=\"&DATE(YEAR(E2),MONTH(E2),1),'VSAOI transakcijas'!$S:$S,\"<=\"&'Sakuma lapa'!$F$16,'VSAOI transakcijas'!$O:$O,YEAR(DATE(YEAR(E2),MONTH(E2)+2,0)),'VSAOI transakcijas'!$P:$P,RIGHT(\"0\"&MONTH(DATE(YEAR(E2),MONTH(E2)+2,0)),2),'VSAOI transakcijas'!$Q:$Q,\"Riska nodeva\",'VSAOI transakcijas'!$K:$K,\"<>\"&\"FIFO*\",'VSAOI transakcijas'!$K:$K,\"<>\"&\"Iemaksas atbrīvošana\",'VSAOI transakcijas'!$E:$E,\"Deklarācija/pārskats\")","v":0},{"$f":"-SUMIFS('VSAOI transakcijas'!$R:$R,'VSAOI transakcijas'!$D:$D,\"Aprēķins\",'VSAOI transakcijas'!$H:$H,\"Pamatsumma\",'VSAOI transakcijas'!$S:$S,\">=\"&DATE(YEAR(F2),MONTH(F2),1),'VSAOI transakcijas'!$S:$S,\"<=\"&'Sakuma lapa'!$F$16,'VSAOI transakcijas'!$O:$O,YEAR(DATE(YEAR(F2),MONTH(F2)+2,0)),'VSAOI transakcijas'!$P:$P,RIGHT(\"0\"&MONTH(DATE(YEAR(F2),MONTH(F2)+2,0)),2),'VSAOI transakcijas'!$Q:$Q,\"Riska nodeva\",'VSAOI transakcijas'!$K:$K,\"<>\"&\"FIFO*\",'VSAOI transakcijas'!$K:$K,\"<>\"&\"Iemaksas atbrīvošana\",'VSAOI transakcijas'!$E:$E,\"Deklarācija/pārskats\")","v":0},{"$f":"-SUMIFS('VSAOI transakcijas'!$R:$R,'VSAOI transakcijas'!$D:$D,\"Aprēķins\",'VSAOI transakcijas'!$H:$H,\"Pamatsumma\",'VSAOI transakcijas'!$S:$S,\">=\"&DATE(YEAR(G2),MONTH(G2),1),'VSAOI transakcijas'!$S:$S,\"<=\"&'Sakuma lapa'!$F$16,'VSAOI transakcijas'!$O:$O,YEAR(DATE(YEAR(G2),MONTH(G2)+2,0)),'VSAOI transakcijas'!$P:$P,RIGHT(\"0\"&MONTH(DATE(YEAR(G2),MONTH(G2)+2,0)),2),'VSAOI transakcijas'!$Q:$Q,\"Riska nodeva\",'VSAOI transakcijas'!$K:$K,\"<>\"&\"FIFO*\",'VSAOI transakcijas'!$K:$K,\"<>\"&\"Iemaksas atbrīvošana\",'VSAOI transakcijas'!$E:$E,\"Deklarācija/pārskats\")","v":0},{"$f":"-SUMIFS('VSAOI transakcijas'!$R:$R,'VSAOI transakcijas'!$D:$D,\"Aprēķins\",'VSAOI transakcijas'!$H:$H,\"Pamatsumma\",'VSAOI transakcijas'!$S:$S,\">=\"&DATE(YEAR(H2),MONTH(H2),1),'VSAOI transakcijas'!$S:$S,\"<=\"&'Sakuma lapa'!$F$16,'VSAOI transakcijas'!$O:$O,YEAR(DATE(YEAR(H2),MONTH(H2)+2,0)),'VSAOI transakcijas'!$P:$P,RIGHT(\"0\"&MONTH(DATE(YEAR(H2),MONTH(H2)+2,0)),2),'VSAOI transakcijas'!$Q:$Q,\"Riska nodeva\",'VSAOI transakcijas'!$K:$K,\"<>\"&\"FIFO*\",'VSAOI transakcijas'!$K:$K,\"<>\"&\"Iemaksas atbrīvošana\",'VSAOI transakcijas'!$E:$E,\"Deklarācija/pārskats\")","v":0},{"$f":"-SUMIFS('VSAOI transakcijas'!$R:$R,'VSAOI transakcijas'!$D:$D,\"Aprēķins\",'VSAOI transakcijas'!$H:$H,\"Pamatsumma\",'VSAOI transakcijas'!$S:$S,\">=\"&DATE(YEAR(I2),MONTH(I2),1),'VSAOI transakcijas'!$S:$S,\"<=\"&'Sakuma lapa'!$F$16,'VSAOI transakcijas'!$O:$O,YEAR(DATE(YEAR(I2),MONTH(I2)+2,0)),'VSAOI transakcijas'!$P:$P,RIGHT(\"0\"&MONTH(DATE(YEAR(I2),MONTH(I2)+2,0)),2),'VSAOI transakcijas'!$Q:$Q,\"Riska nodeva\",'VSAOI transakcijas'!$K:$K,\"<>\"&\"FIFO*\",'VSAOI transakcijas'!$K:$K,\"<>\"&\"Iemaksas atbrīvošana\",'VSAOI transakcijas'!$E:$E,\"Deklarācija/pārskats\")","v":0},{"$f":"-SUMIFS('VSAOI transakcijas'!$R:$R,'VSAOI transakcijas'!$D:$D,\"Aprēķins\",'VSAOI transakcijas'!$H:$H,\"Pamatsumma\",'VSAOI transakcijas'!$S:$S,\">=\"&DATE(YEAR(J2),MONTH(J2),1),'VSAOI transakcijas'!$S:$S,\"<=\"&'Sakuma lapa'!$F$16,'VSAOI transakcijas'!$O:$O,YEAR(DATE(YEAR(J2),MONTH(J2)+2,0)),'VSAOI transakcijas'!$P:$P,RIGHT(\"0\"&MONTH(DATE(YEAR(J2),MONTH(J2)+2,0)),2),'VSAOI transakcijas'!$Q:$Q,\"Riska nodeva\",'VSAOI transakcijas'!$K:$K,\"<>\"&\"FIFO*\",'VSAOI transakcijas'!$K:$K,\"<>\"&\"Iemaksas atbrīvošana\",'VSAOI transakcijas'!$E:$E,\"Deklarācija/pārskats\")","v":0},{"$f":"-SUMIFS('VSAOI transakcijas'!$R:$R,'VSAOI transakcijas'!$D:$D,\"Aprēķins\",'VSAOI transakcijas'!$H:$H,\"Pamatsumma\",'VSAOI transakcijas'!$S:$S,\">=\"&DATE(YEAR(K2),MONTH(K2),1),'VSAOI transakcijas'!$S:$S,\"<=\"&'Sakuma lapa'!$F$16,'VSAOI transakcijas'!$O:$O,YEAR(DATE(YEAR(K2),MONTH(K2)+2,0)),'VSAOI transakcijas'!$P:$P,RIGHT(\"0\"&MONTH(DATE(YEAR(K2),MONTH(K2)+2,0)),2),'VSAOI transakcijas'!$Q:$Q,\"Riska nodeva\",'VSAOI transakcijas'!$K:$K,\"<>\"&\"FIFO*\",'VSAOI transakcijas'!$K:$K,\"<>\"&\"Iemaksas atbrīvošana\",'VSAOI transakcijas'!$E:$E,\"Deklarācija/pārskats\")","v":0},{"$f":"-SUMIFS('VSAOI transakcijas'!$R:$R,'VSAOI transakcijas'!$D:$D,\"Aprēķins\",'VSAOI transakcijas'!$H:$H,\"Pamatsumma\",'VSAOI transakcijas'!$S:$S,\">=\"&DATE(YEAR(L2),MONTH(L2),1),'VSAOI transakcijas'!$S:$S,\"<=\"&'Sakuma lapa'!$F$16,'VSAOI transakcijas'!$O:$O,YEAR(DATE(YEAR(L2),MONTH(L2)+2,0)),'VSAOI transakcijas'!$P:$P,RIGHT(\"0\"&MONTH(DATE(YEAR(L2),MONTH(L2)+2,0)),2),'VSAOI transakcijas'!$Q:$Q,\"Riska nodeva\",'VSAOI transakcijas'!$K:$K,\"<>\"&\"FIFO*\",'VSAOI transakcijas'!$K:$K,\"<>\"&\"Iemaksas atbrīvošana\",'VSAOI transakcijas'!$E:$E,\"Deklarācija/pārskats\")","v":0},{"$f":"-SUMIFS('VSAOI transakcijas'!$R:$R,'VSAOI transakcijas'!$D:$D,\"Aprēķins\",'VSAOI transakcijas'!$H:$H,\"Pamatsumma\",'VSAOI transakcijas'!$S:$S,\">=\"&DATE(YEAR(M2),MONTH(M2),1),'VSAOI transakcijas'!$S:$S,\"<=\"&'Sakuma lapa'!$F$16,'VSAOI transakcijas'!$O:$O,YEAR(DATE(YEAR(M2),MONTH(M2)+2,0)),'VSAOI transakcijas'!$P:$P,RIGHT(\"0\"&MONTH(DATE(YEAR(M2),MONTH(M2)+2,0)),2),'VSAOI transakcijas'!$Q:$Q,\"Riska nodeva\",'VSAOI transakcijas'!$K:$K,\"<>\"&\"FIFO*\",'VSAOI transakcijas'!$K:$K,\"<>\"&\"Iemaksas atbrīvošana\",'VSAOI transakcijas'!$E:$E,\"Deklarācija/pārskats\")","v":0},{"$f":"-SUMIFS('VSAOI transakcijas'!$R:$R,'VSAOI transakcijas'!$D:$D,\"Aprēķins\",'VSAOI transakcijas'!$H:$H,\"Pamatsumma\",'VSAOI transakcijas'!$S:$S,\">=\"&DATE(YEAR(N2),MONTH(N2),1),'VSAOI transakcijas'!$S:$S,\"<=\"&'Sakuma lapa'!$F$16,'VSAOI transakcijas'!$O:$O,YEAR(DATE(YEAR(N2),MONTH(N2)+2,0)),'VSAOI transakcijas'!$P:$P,RIGHT(\"0\"&MONTH(DATE(YEAR(N2),MONTH(N2)+2,0)),2),'VSAOI transakcijas'!$Q:$Q,\"Riska nodeva\",'VSAOI transakcijas'!$K:$K,\"<>\"&\"FIFO*\",'VSAOI transakcijas'!$K:$K,\"<>\"&\"Iemaksas atbrīvošana\",'VSAOI transakcijas'!$E:$E,\"Deklarācija/pārskats\")","v":0},{"$f":"SUM(C53:N53)","v":0}]
[null,"Aprēķins - Citi",{"$f":"-SUMIFS('VSAOI transakcijas'!$R:$R,'VSAOI transakcijas'!$D:$D,\"Aprēķins\",'VSAOI transakcijas'!$H:$H,\"Pamatsumma\",'VSAOI transakcijas'!$S:$S,\">=\"&DATE(YEAR(C2),MONTH(C2),1),'VSAOI transakcijas'!$S:$S,\"<=\"&'Sakuma lapa'!$F$16,'VSAOI transakcijas'!$O:$O,YEAR(DATE(YEAR(C2),MONTH(C2)+2,0)),'VSAOI transakcijas'!$P:$P,RIGHT(\"0\"&MONTH(DATE(YEAR(C2),MONTH(C2)+2,0)),2),'VSAOI transakcijas'!$Q:$Q,\"Riska nodeva\",'VSAOI transakcijas'!$K:$K,\"<>\"&\"FIFO*\",'VSAOI transakcijas'!$K:$K,\"<>\"&\"Iemaksas atbrīvošana\",'VSAOI transakcijas'!$E:$E,\"<>\"&\"Deklarācija/pārskats\")","v":0},{"$f":"-SUMIFS('VSAOI transakcijas'!$R:$R,'VSAOI transakcijas'!$D:$D,\"Aprēķins\",'VSAOI transakcijas'!$H:$H,\"Pamatsumma\",'VSAOI transakcijas'!$S:$S,\">=\"&DATE(YEAR(D2),MONTH(D2),1),'VSAOI transakcijas'!$S:$S,\"<=\"&'Sakuma lapa'!$F$16,'VSAOI transakcijas'!$O:$O,YEAR(DATE(YEAR(D2),MONTH(D2)+2,0)),'VSAOI transakcijas'!$P:$P,RIGHT(\"0\"&MONTH(DATE(YEAR(D2),MONTH(D2)+2,0)),2),'VSAOI transakcijas'!$Q:$Q,\"Riska nodeva\",'VSAOI transakcijas'!$K:$K,\"<>\"&\"FIFO*\",'VSAOI transakcijas'!$K:$K,\"<>\"&\"Iemaksas atbrīvošana\",'VSAOI transakcijas'!$E:$E,\"<>\"&\"Deklarācija/pārskats\")","v":0},{"$f":"-SUMIFS('VSAOI transakcijas'!$R:$R,'VSAOI transakcijas'!$D:$D,\"Aprēķins\",'VSAOI transakcijas'!$H:$H,\"Pamatsumma\",'VSAOI transakcijas'!$S:$S,\">=\"&DATE(YEAR(E2),MONTH(E2),1),'VSAOI transakcijas'!$S:$S,\"<=\"&'Sakuma lapa'!$F$16,'VSAOI transakcijas'!$O:$O,YEAR(DATE(YEAR(E2),MONTH(E2)+2,0)),'VSAOI transakcijas'!$P:$P,RIGHT(\"0\"&MONTH(DATE(YEAR(E2),MONTH(E2)+2,0)),2),'VSAOI transakcijas'!$Q:$Q,\"Riska nodeva\",'VSAOI transakcijas'!$K:$K,\"<>\"&\"FIFO*\",'VSAOI transakcijas'!$K:$K,\"<>\"&\"Iemaksas atbrīvošana\",'VSAOI transakcijas'!$E:$E,\"<>\"&\"Deklarācija/pārskats\")","v":0},{"$f":"-SUMIFS('VSAOI transakcijas'!$R:$R,'VSAOI transakcijas'!$D:$D,\"Aprēķins\",'VSAOI transakcijas'!$H:$H,\"Pamatsumma\",'VSAOI transakcijas'!$S:$S,\">=\"&DATE(YEAR(F2),MONTH(F2),1),'VSAOI transakcijas'!$S:$S,\"<=\"&'Sakuma lapa'!$F$16,'VSAOI transakcijas'!$O:$O,YEAR(DATE(YEAR(F2),MONTH(F2)+2,0)),'VSAOI transakcijas'!$P:$P,RIGHT(\"0\"&MONTH(DATE(YEAR(F2),MONTH(F2)+2,0)),2),'VSAOI transakcijas'!$Q:$Q,\"Riska nodeva\",'VSAOI transakcijas'!$K:$K,\"<>\"&\"FIFO*\",'VSAOI transakcijas'!$K:$K,\"<>\"&\"Iemaksas atbrīvošana\",'VSAOI transakcijas'!$E:$E,\"<>\"&\"Deklarācija/pārskats\")","v":0},{"$f":"-SUMIFS('VSAOI transakcijas'!$R:$R,'VSAOI transakcijas'!$D:$D,\"Aprēķins\",'VSAOI transakcijas'!$H:$H,\"Pamatsumma\",'VSAOI transakcijas'!$S:$S,\">=\"&DATE(YEAR(G2),MONTH(G2),1),'VSAOI transakcijas'!$S:$S,\"<=\"&'Sakuma lapa'!$F$16,'VSAOI transakcijas'!$O:$O,YEAR(DATE(YEAR(G2),MONTH(G2)+2,0)),'VSAOI transakcijas'!$P:$P,RIGHT(\"0\"&MONTH(DATE(YEAR(G2),MONTH(G2)+2,0)),2),'VSAOI transakcijas'!$Q:$Q,\"Riska nodeva\",'VSAOI transakcijas'!$K:$K,\"<>\"&\"FIFO*\",'VSAOI transakcijas'!$K:$K,\"<>\"&\"Iemaksas atbrīvošana\",'VSAOI transakcijas'!$E:$E,\"<>\"&\"Deklarācija/pārskats\")","v":0},{"$f":"-SUMIFS('VSAOI transakcijas'!$R:$R,'VSAOI transakcijas'!$D:$D,\"Aprēķins\",'VSAOI transakcijas'!$H:$H,\"Pamatsumma\",'VSAOI transakcijas'!$S:$S,\">=\"&DATE(YEAR(H2),MONTH(H2),1),'VSAOI transakcijas'!$S:$S,\"<=\"&'Sakuma lapa'!$F$16,'VSAOI transakcijas'!$O:$O,YEAR(DATE(YEAR(H2),MONTH(H2)+2,0)),'VSAOI transakcijas'!$P:$P,RIGHT(\"0\"&MONTH(DATE(YEAR(H2),MONTH(H2)+2,0)),2),'VSAOI transakcijas'!$Q:$Q,\"Riska nodeva\",'VSAOI transakcijas'!$K:$K,\"<>\"&\"FIFO*\",'VSAOI transakcijas'!$K:$K,\"<>\"&\"Iemaksas atbrīvošana\",'VSAOI transakcijas'!$E:$E,\"<>\"&\"Deklarācija/pārskats\")","v":0},{"$f":"-SUMIFS('VSAOI transakcijas'!$R:$R,'VSAOI transakcijas'!$D:$D,\"Aprēķins\",'VSAOI transakcijas'!$H:$H,\"Pamatsumma\",'VSAOI transakcijas'!$S:$S,\">=\"&DATE(YEAR(I2),MONTH(I2),1),'VSAOI transakcijas'!$S:$S,\"<=\"&'Sakuma lapa'!$F$16,'VSAOI transakcijas'!$O:$O,YEAR(DATE(YEAR(I2),MONTH(I2)+2,0)),'VSAOI transakcijas'!$P:$P,RIGHT(\"0\"&MONTH(DATE(YEAR(I2),MONTH(I2)+2,0)),2),'VSAOI transakcijas'!$Q:$Q,\"Riska nodeva\",'VSAOI transakcijas'!$K:$K,\"<>\"&\"FIFO*\",'VSAOI transakcijas'!$K:$K,\"<>\"&\"Iemaksas atbrīvošana\",'VSAOI transakcijas'!$E:$E,\"<>\"&\"Deklarācija/pārskats\")","v":0},{"$f":"-SUMIFS('VSAOI transakcijas'!$R:$R,'VSAOI transakcijas'!$D:$D,\"Aprēķins\",'VSAOI transakcijas'!$H:$H,\"Pamatsumma\",'VSAOI transakcijas'!$S:$S,\">=\"&DATE(YEAR(J2),MONTH(J2),1),'VSAOI transakcijas'!$S:$S,\"<=\"&'Sakuma lapa'!$F$16,'VSAOI transakcijas'!$O:$O,YEAR(DATE(YEAR(J2),MONTH(J2)+2,0)),'VSAOI transakcijas'!$P:$P,RIGHT(\"0\"&MONTH(DATE(YEAR(J2),MONTH(J2)+2,0)),2),'VSAOI transakcijas'!$Q:$Q,\"Riska nodeva\",'VSAOI transakcijas'!$K:$K,\"<>\"&\"FIFO*\",'VSAOI transakcijas'!$K:$K,\"<>\"&\"Iemaksas atbrīvošana\",'VSAOI transakcijas'!$E:$E,\"<>\"&\"Deklarācija/pārskats\")","v":0},{"$f":"-SUMIFS('VSAOI transakcijas'!$R:$R,'VSAOI transakcijas'!$D:$D,\"Aprēķins\",'VSAOI transakcijas'!$H:$H,\"Pamatsumma\",'VSAOI transakcijas'!$S:$S,\">=\"&DATE(YEAR(K2),MONTH(K2),1),'VSAOI transakcijas'!$S:$S,\"<=\"&'Sakuma lapa'!$F$16,'VSAOI transakcijas'!$O:$O,YEAR(DATE(YEAR(K2),MONTH(K2)+2,0)),'VSAOI transakcijas'!$P:$P,RIGHT(\"0\"&MONTH(DATE(YEAR(K2),MONTH(K2)+2,0)),2),'VSAOI transakcijas'!$Q:$Q,\"Riska nodeva\",'VSAOI transakcijas'!$K:$K,\"<>\"&\"FIFO*\",'VSAOI transakcijas'!$K:$K,\"<>\"&\"Iemaksas atbrīvošana\",'VSAOI transakcijas'!$E:$E,\"<>\"&\"Deklarācija/pārskats\")","v":0},{"$f":"-SUMIFS('VSAOI transakcijas'!$R:$R,'VSAOI transakcijas'!$D:$D,\"Aprēķins\",'VSAOI transakcijas'!$H:$H,\"Pamatsumma\",'VSAOI transakcijas'!$S:$S,\">=\"&DATE(YEAR(L2),MONTH(L2),1),'VSAOI transakcijas'!$S:$S,\"<=\"&'Sakuma lapa'!$F$16,'VSAOI transakcijas'!$O:$O,YEAR(DATE(YEAR(L2),MONTH(L2)+2,0)),'VSAOI transakcijas'!$P:$P,RIGHT(\"0\"&MONTH(DATE(YEAR(L2),MONTH(L2)+2,0)),2),'VSAOI transakcijas'!$Q:$Q,\"Riska nodeva\",'VSAOI transakcijas'!$K:$K,\"<>\"&\"FIFO*\",'VSAOI transakcijas'!$K:$K,\"<>\"&\"Iemaksas atbrīvošana\",'VSAOI transakcijas'!$E:$E,\"<>\"&\"Deklarācija/pārskats\")","v":0},{"$f":"-SUMIFS('VSAOI transakcijas'!$R:$R,'VSAOI transakcijas'!$D:$D,\"Aprēķins\",'VSAOI transakcijas'!$H:$H,\"Pamatsumma\",'VSAOI transakcijas'!$S:$S,\">=\"&DATE(YEAR(M2),MONTH(M2),1),'VSAOI transakcijas'!$S:$S,\"<=\"&'Sakuma lapa'!$F$16,'VSAOI transakcijas'!$O:$O,YEAR(DATE(YEAR(M2),MONTH(M2)+2,0)),'VSAOI transakcijas'!$P:$P,RIGHT(\"0\"&MONTH(DATE(YEAR(M2),MONTH(M2)+2,0)),2),'VSAOI transakcijas'!$Q:$Q,\"Riska nodeva\",'VSAOI transakcijas'!$K:$K,\"<>\"&\"FIFO*\",'VSAOI transakcijas'!$K:$K,\"<>\"&\"Iemaksas atbrīvošana\",'VSAOI transakcijas'!$E:$E,\"<>\"&\"Deklarācija/pārskats\")","v":0},{"$f":"-SUMIFS('VSAOI transakcijas'!$R:$R,'VSAOI transakcijas'!$D:$D,\"Aprēķins\",'VSAOI transakcijas'!$H:$H,\"Pamatsumma\",'VSAOI transakcijas'!$S:$S,\">=\"&DATE(YEAR(N2),MONTH(N2),1),'VSAOI transakcijas'!$S:$S,\"<=\"&'Sakuma lapa'!$F$16,'VSAOI transakcijas'!$O:$O,YEAR(DATE(YEAR(N2),MONTH(N2)+2,0)),'VSAOI transakcijas'!$P:$P,RIGHT(\"0\"&MONTH(DATE(YEAR(N2),MONTH(N2)+2,0)),2),'VSAOI transakcijas'!$Q:$Q,\"Riska nodeva\",'VSAOI transakcijas'!$K:$K,\"<>\"&\"FIFO*\",'VSAOI transakcijas'!$K:$K,\"<>\"&\"Iemaksas atbrīvošana\",'VSAOI transakcijas'!$E:$E,\"<>\"&\"Deklarācija/pārskats\")","v":0},{"$f":"SUM(C54:N54)","v":0}]
[null,"Iemaksa/Atmaksa/Pārvietošana",{"$f":"-SUMIFS('VSAOI transakcijas'!$R:$R,'VSAOI transakcijas'!$D:$D,\"Iemaksa\",'VSAOI transakcijas'!$H:$H,\"Pamatsumma\",'VSAOI transakcijas'!$S:$S,\">=\"&DATE(YEAR(C2),MONTH(C2),1),'VSAOI transakcijas'!$S:$S,\"<=\"&'Sakuma lapa'!$F$16,'VSAOI transakcijas'!$O:$O,YEAR(DATE(YEAR(C2),MONTH(C2)+1,0)),'VSAOI transakcijas'!$P:$P,RIGHT(\"0\"&MONTH(DATE(YEAR(C2),MONTH(C2)+1,0)),2),'VSAOI transakcijas'!$Q:$Q,\"Riska nodeva\")\n-SUMIFS('VSAOI transakcijas'!$R:$R,'VSAOI transakcijas'!$D:$D,\"Atmaksa\",'VSAOI transakcijas'!$H:$H,\"Pamatsumma\",'VSAOI transakcijas'!$S:$S,\">=\"&DATE(YEAR(C2),MONTH(C2),1),'VSAOI transakcijas'!$S:$S,\"<=\"&'Sakuma lapa'!$F$16,'VSAOI transakcijas'!$O:$O,YEAR(DATE(YEAR(C2),MONTH(C2)+1,0)),'VSAOI transakcijas'!$P:$P,RIGHT(\"0\"&MONTH(DATE(YEAR(C2),MONTH(C2)+1,0)),2),'VSAOI transakcijas'!$Q:$Q,\"Riska nodeva\")\n-SUMIFS('VSAOI transakcijas'!$R:$R,'VSAOI transakcijas'!$D:$D,\"Aprēķins\",'VSAOI transakcijas'!$H:$H,\"Pamatsumma\",'VSAOI transakcijas'!$S:$S,\">=\"&DATE(YEAR(C2),MONTH(C2),1),'VSAOI transakcijas'!$S:$S,\"<=\"&'Sakuma lapa'!$F$16,'VSAOI transakcijas'!$O:$O,YEAR(DATE(YEAR(C2),MONTH(C2)+1,0)),'VSAOI transakcijas'!$P:$P,RIGHT(\"0\"&MONTH(DATE(YEAR(C2),MONTH(C2)+1,0)),2),'VSAOI transakcijas'!$Q:$Q,\"Riska nodeva\",'VSAOI transakcijas'!$K:$K,\"FIFO*\")\n-SUMIFS('VSAOI transakcijas'!$R:$R,'VSAOI transakcijas'!$D:$D,\"Aprēķins\",'VSAOI transakcijas'!$H:$H,\"Pamatsumma\",'VSAOI transakcijas'!$S:$S,\">=\"&DATE(YEAR(C2),MONTH(C2),1),'VSAOI transakcijas'!$S:$S,\"<=\"&'Sakuma lapa'!$F$16,'VSAOI transakcijas'!$O:$O,YEAR(DATE(YEAR(C2),MONTH(C2)+1,0)),'VSAOI transakcijas'!$P:$P,RIGHT(\"0\"&MONTH(DATE(YEAR(C2),MONTH(C2)+1,0)),2),'VSAOI transakcijas'!$Q:$Q,\"Riska nodeva\",'VSAOI transakcijas'!$K:$K,\"Iemaksas atbrīvošana\")\n-SUMIFS('VSAOI transakcijas'!$R:$R,'VSAOI transakcijas'!$H:$H,\"Nokavējuma nauda\",'VSAOI transakcijas'!$S:$S,\">=\"&DATE(YEAR(C2),MONTH(C2),1),'VSAOI transakcijas'!$S:$S,\"<=\"&'Sakuma lapa'!$F$16,'VSAOI transakcijas'!$O:$O,YEAR(DATE(YEAR(C2),MONTH(C2)+1,0)),'VSAOI transakcijas'!$P:$P,RIGHT(\"0\"&MONTH(DATE(YEAR(C2),MONTH(C2)+1,0)),2),'VSAOI transakcijas'!$Q:$Q,\"Riska nodeva\")","v":0},{"$f":"-SUMIFS('VSAOI transakcijas'!$R:$R,'VSAOI transakcijas'!$D:$D,\"Iemaksa\",'VSAOI transakcijas'!$H:$H,\"Pamatsumma\",'VSAOI transakcijas'!$S:$S,\">=\"&DATE(YEAR(D2),MONTH(D2),1),'VSAOI transakcijas'!$S:$S,\"<=\"&'Sakuma lapa'!$F$16,'VSAOI transakcijas'!$O:$O,YEAR(DATE(YEAR(D2),MONTH(D2)+1,0)),'VSAOI transakcijas'!$P:$P,RIGHT(\"0\"&MONTH(DATE(YEAR(D2),MONTH(D2)+1,0)),2),'VSAOI transakcijas'!$Q:$Q,\"Riska nodeva\")\n-SUMIFS('VSAOI transakcijas'!$R:$R,'VSAOI transakcijas'!$D:$D,\"Atmaksa\",'VSAOI transakcijas'!$H:$H,\"Pamatsumma\",'VSAOI transakcijas'!$S:$S,\">=\"&DATE(YEAR(D2),MONTH(D2),1),'VSAOI transakcijas'!$S:$S,\"<=\"&'Sakuma lapa'!$F$16,'VSAOI transakcijas'!$O:$O,YEAR(DATE(YEAR(D2),MONTH(D2)+1,0)),'VSAOI transakcijas'!$P:$P,RIGHT(\"0\"&MONTH(DATE(YEAR(D2),MONTH(D2)+1,0)),2),'VSAOI transakcijas'!$Q:$Q,\"Riska nodeva\")\n-SUMIFS('VSAOI transakcijas'!$R:$R,'VSAOI transakcijas'!$D:$D,\"Aprēķins\",'VSAOI transakcijas'!$H:$H,\"Pamatsumma\",'VSAOI transakcijas'!$S:$S,\">=\"&DATE(YEAR(D2),MONTH(D2),1),'VSAOI transakcijas'!$S:$S,\"<=\"&'Sakuma lapa'!$F$16,'VSAOI transakcijas'!$O:$O,YEAR(DATE(YEAR(D2),MONTH(D2)+1,0)),'VSAOI transakcijas'!$P:$P,RIGHT(\"0\"&MONTH(DATE(YEAR(D2),MONTH(D2)+1,0)),2),'VSAOI transakcijas'!$Q:$Q,\"Riska nodeva\",'VSAOI transakcijas'!$K:$K,\"FIFO*\")\n-SUMIFS('VSAOI transakcijas'!$R:$R,'VSAOI transakcijas'!$D:$D,\"Aprēķins\",'VSAOI transakcijas'!$H:$H,\"Pamatsumma\",'VSAOI transakcijas'!$S:$S,\">=\"&DATE(YEAR(D2),MONTH(D2),1),'VSAOI transakcijas'!$S:$S,\"<=\"&'Sakuma lapa'!$F$16,'VSAOI transakcijas'!$O:$O,YEAR(DATE(YEAR(D2),MONTH(D2)+1,0)),'VSAOI transakcijas'!$P:$P,RIGHT(\"0\"&MONTH(DATE(YEAR(D2),MONTH(D2)+1,0)),2),'VSAOI transakcijas'!$Q:$Q,\"Riska nodeva\",'VSAOI transakcijas'!$K:$K,\"Iemaksas atbrīvošana\")\n-SUMIFS('VSAOI transakcijas'!$R:$R,'VSAOI transakcijas'!$H:$H,\"Nokavējuma nauda\",'VSAOI transakcijas'!$S:$S,\">=\"&DATE(YEAR(D2),MONTH(D2),1),'VSAOI transakcijas'!$S:$S,\"<=\"&'Sakuma lapa'!$F$16,'VSAOI transakcijas'!$O:$O,YEAR(DATE(YEAR(D2),MONTH(D2)+1,0)),'VSAOI transakcijas'!$P:$P,RIGHT(\"0\"&MONTH(DATE(YEAR(D2),MONTH(D2)+1,0)),2),'VSAOI transakcijas'!$Q:$Q,\"Riska nodeva\")","v":0},{"$f":"-SUMIFS('VSAOI transakcijas'!$R:$R,'VSAOI transakcijas'!$D:$D,\"Iemaksa\",'VSAOI transakcijas'!$H:$H,\"Pamatsumma\",'VSAOI transakcijas'!$S:$S,\">=\"&DATE(YEAR(E2),MONTH(E2),1),'VSAOI transakcijas'!$S:$S,\"<=\"&'Sakuma lapa'!$F$16,'VSAOI transakcijas'!$O:$O,YEAR(DATE(YEAR(E2),MONTH(E2)+1,0)),'VSAOI transakcijas'!$P:$P,RIGHT(\"0\"&MONTH(DATE(YEAR(E2),MONTH(E2)+1,0)),2),'VSAOI transakcijas'!$Q:$Q,\"Riska nodeva\")\n-SUMIFS('VSAOI transakcijas'!$R:$R,'VSAOI transakcijas'!$D:$D,\"Atmaksa\",'VSAOI transakcijas'!$H:$H,\"Pamatsumma\",'VSAOI transakcijas'!$S:$S,\">=\"&DATE(YEAR(E2),MONTH(E2),1),'VSAOI transakcijas'!$S:$S,\"<=\"&'Sakuma lapa'!$F$16,'VSAOI transakcijas'!$O:$O,YEAR(DATE(YEAR(E2),MONTH(E2)+1,0)),'VSAOI transakcijas'!$P:$P,RIGHT(\"0\"&MONTH(DATE(YEAR(E2),MONTH(E2)+1,0)),2),'VSAOI transakcijas'!$Q:$Q,\"Riska nodeva\")\n-SUMIFS('VSAOI transakcijas'!$R:$R,'VSAOI transakcijas'!$D:$D,\"Aprēķins\",'VSAOI transakcijas'!$H:$H,\"Pamatsumma\",'VSAOI transakcijas'!$S:$S,\">=\"&DATE(YEAR(E2),MONTH(E2),1),'VSAOI transakcijas'!$S:$S,\"<=\"&'Sakuma lapa'!$F$16,'VSAOI transakcijas'!$O:$O,YEAR(DATE(YEAR(E2),MONTH(E2)+1,0)),'VSAOI transakcijas'!$P:$P,RIGHT(\"0\"&MONTH(DATE(YEAR(E2),MONTH(E2)+1,0)),2),'VSAOI transakcijas'!$Q:$Q,\"Riska nodeva\",'VSAOI transakcijas'!$K:$K,\"FIFO*\")\n-SUMIFS('VSAOI transakcijas'!$R:$R,'VSAOI transakcijas'!$D:$D,\"Aprēķins\",'VSAOI transakcijas'!$H:$H,\"Pamatsumma\",'VSAOI transakcijas'!$S:$S,\">=\"&DATE(YEAR(E2),MONTH(E2),1),'VSAOI transakcijas'!$S:$S,\"<=\"&'Sakuma lapa'!$F$16,'VSAOI transakcijas'!$O:$O,YEAR(DATE(YEAR(E2),MONTH(E2)+1,0)),'VSAOI transakcijas'!$P:$P,RIGHT(\"0\"&MONTH(DATE(YEAR(E2),MONTH(E2)+1,0)),2),'VSAOI transakcijas'!$Q:$Q,\"Riska nodeva\",'VSAOI transakcijas'!$K:$K,\"Iemaksas atbrīvošana\")\n-SUMIFS('VSAOI transakcijas'!$R:$R,'VSAOI transakcijas'!$H:$H,\"Nokavējuma nauda\",'VSAOI transakcijas'!$S:$S,\">=\"&DATE(YEAR(E2),MONTH(E2),1),'VSAOI transakcijas'!$S:$S,\"<=\"&'Sakuma lapa'!$F$16,'VSAOI transakcijas'!$O:$O,YEAR(DATE(YEAR(E2),MONTH(E2)+1,0)),'VSAOI transakcijas'!$P:$P,RIGHT(\"0\"&MONTH(DATE(YEAR(E2),MONTH(E2)+1,0)),2),'VSAOI transakcijas'!$Q:$Q,\"Riska nodeva\")","v":0},{"$f":"-SUMIFS('VSAOI transakcijas'!$R:$R,'VSAOI transakcijas'!$D:$D,\"Iemaksa\",'VSAOI transakcijas'!$H:$H,\"Pamatsumma\",'VSAOI transakcijas'!$S:$S,\">=\"&DATE(YEAR(F2),MONTH(F2),1),'VSAOI transakcijas'!$S:$S,\"<=\"&'Sakuma lapa'!$F$16,'VSAOI transakcijas'!$O:$O,YEAR(DATE(YEAR(F2),MONTH(F2)+1,0)),'VSAOI transakcijas'!$P:$P,RIGHT(\"0\"&MONTH(DATE(YEAR(F2),MONTH(F2)+1,0)),2),'VSAOI transakcijas'!$Q:$Q,\"Riska nodeva\")\n-SUMIFS('VSAOI transakcijas'!$R:$R,'VSAOI transakcijas'!$D:$D,\"Atmaksa\",'VSAOI transakcijas'!$H:$H,\"Pamatsumma\",'VSAOI transakcijas'!$S:$S,\">=\"&DATE(YEAR(F2),MONTH(F2),1),'VSAOI transakcijas'!$S:$S,\"<=\"&'Sakuma lapa'!$F$16,'VSAOI transakcijas'!$O:$O,YEAR(DATE(YEAR(F2),MONTH(F2)+1,0)),'VSAOI transakcijas'!$P:$P,RIGHT(\"0\"&MONTH(DATE(YEAR(F2),MONTH(F2)+1,0)),2),'VSAOI transakcijas'!$Q:$Q,\"Riska nodeva\")\n-SUMIFS('VSAOI transakcijas'!$R:$R,'VSAOI transakcijas'!$D:$D,\"Aprēķins\",'VSAOI transakcijas'!$H:$H,\"Pamatsumma\",'VSAOI transakcijas'!$S:$S,\">=\"&DATE(YEAR(F2),MONTH(F2),1),'VSAOI transakcijas'!$S:$S,\"<=\"&'Sakuma lapa'!$F$16,'VSAOI transakcijas'!$O:$O,YEAR(DATE(YEAR(F2),MONTH(F2)+1,0)),'VSAOI transakcijas'!$P:$P,RIGHT(\"0\"&MONTH(DATE(YEAR(F2),MONTH(F2)+1,0)),2),'VSAOI transakcijas'!$Q:$Q,\"Riska nodeva\",'VSAOI transakcijas'!$K:$K,\"FIFO*\")\n-SUMIFS('VSAOI transakcijas'!$R:$R,'VSAOI transakcijas'!$D:$D,\"Aprēķins\",'VSAOI transakcijas'!$H:$H,\"Pamatsumma\",'VSAOI transakcijas'!$S:$S,\">=\"&DATE(YEAR(F2),MONTH(F2),1),'VSAOI transakcijas'!$S:$S,\"<=\"&'Sakuma lapa'!$F$16,'VSAOI transakcijas'!$O:$O,YEAR(DATE(YEAR(F2),MONTH(F2)+1,0)),'VSAOI transakcijas'!$P:$P,RIGHT(\"0\"&MONTH(DATE(YEAR(F2),MONTH(F2)+1,0)),2),'VSAOI transakcijas'!$Q:$Q,\"Riska nodeva\",'VSAOI transakcijas'!$K:$K,\"Iemaksas atbrīvošana\")\n-SUMIFS('VSAOI transakcijas'!$R:$R,'VSAOI transakcijas'!$H:$H,\"Nokavējuma nauda\",'VSAOI transakcijas'!$S:$S,\">=\"&DATE(YEAR(F2),MONTH(F2),1),'VSAOI transakcijas'!$S:$S,\"<=\"&'Sakuma lapa'!$F$16,'VSAOI transakcijas'!$O:$O,YEAR(DATE(YEAR(F2),MONTH(F2)+1,0)),'VSAOI transakcijas'!$P:$P,RIGHT(\"0\"&MONTH(DATE(YEAR(F2),MONTH(F2)+1,0)),2),'VSAOI transakcijas'!$Q:$Q,\"Riska nodeva\")","v":0},{"$f":"-SUMIFS('VSAOI transakcijas'!$R:$R,'VSAOI transakcijas'!$D:$D,\"Iemaksa\",'VSAOI transakcijas'!$H:$H,\"Pamatsumma\",'VSAOI transakcijas'!$S:$S,\">=\"&DATE(YEAR(G2),MONTH(G2),1),'VSAOI transakcijas'!$S:$S,\"<=\"&'Sakuma lapa'!$F$16,'VSAOI transakcijas'!$O:$O,YEAR(DATE(YEAR(G2),MONTH(G2)+1,0)),'VSAOI transakcijas'!$P:$P,RIGHT(\"0\"&MONTH(DATE(YEAR(G2),MONTH(G2)+1,0)),2),'VSAOI transakcijas'!$Q:$Q,\"Riska nodeva\")\n-SUMIFS('VSAOI transakcijas'!$R:$R,'VSAOI transakcijas'!$D:$D,\"Atmaksa\",'VSAOI transakcijas'!$H:$H,\"Pamatsumma\",'VSAOI transakcijas'!$S:$S,\">=\"&DATE(YEAR(G2),MONTH(G2),1),'VSAOI transakcijas'!$S:$S,\"<=\"&'Sakuma lapa'!$F$16,'VSAOI transakcijas'!$O:$O,YEAR(DATE(YEAR(G2),MONTH(G2)+1,0)),'VSAOI transakcijas'!$P:$P,RIGHT(\"0\"&MONTH(DATE(YEAR(G2),MONTH(G2)+1,0)),2),'VSAOI transakcijas'!$Q:$Q,\"Riska nodeva\")\n-SUMIFS('VSAOI transakcijas'!$R:$R,'VSAOI transakcijas'!$D:$D,\"Aprēķins\",'VSAOI transakcijas'!$H:$H,\"Pamatsumma\",'VSAOI transakcijas'!$S:$S,\">=\"&DATE(YEAR(G2),MONTH(G2),1),'VSAOI transakcijas'!$S:$S,\"<=\"&'Sakuma lapa'!$F$16,'VSAOI transakcijas'!$O:$O,YEAR(DATE(YEAR(G2),MONTH(G2)+1,0)),'VSAOI transakcijas'!$P:$P,RIGHT(\"0\"&MONTH(DATE(YEAR(G2),MONTH(G2)+1,0)),2),'VSAOI transakcijas'!$Q:$Q,\"Riska nodeva\",'VSAOI transakcijas'!$K:$K,\"FIFO*\")\n-SUMIFS('VSAOI transakcijas'!$R:$R,'VSAOI transakcijas'!$D:$D,\"Aprēķins\",'VSAOI transakcijas'!$H:$H,\"Pamatsumma\",'VSAOI transakcijas'!$S:$S,\">=\"&DATE(YEAR(G2),MONTH(G2),1),'VSAOI transakcijas'!$S:$S,\"<=\"&'Sakuma lapa'!$F$16,'VSAOI transakcijas'!$O:$O,YEAR(DATE(YEAR(G2),MONTH(G2)+1,0)),'VSAOI transakcijas'!$P:$P,RIGHT(\"0\"&MONTH(DATE(YEAR(G2),MONTH(G2)+1,0)),2),'VSAOI transakcijas'!$Q:$Q,\"Riska nodeva\",'VSAOI transakcijas'!$K:$K,\"Iemaksas atbrīvošana\")\n-SUMIFS('VSAOI transakcijas'!$R:$R,'VSAOI transakcijas'!$H:$H,\"Nokavējuma nauda\",'VSAOI transakcijas'!$S:$S,\">=\"&DATE(YEAR(G2),MONTH(G2),1),'VSAOI transakcijas'!$S:$S,\"<=\"&'Sakuma lapa'!$F$16,'VSAOI transakcijas'!$O:$O,YEAR(DATE(YEAR(G2),MONTH(G2)+1,0)),'VSAOI transakcijas'!$P:$P,RIGHT(\"0\"&MONTH(DATE(YEAR(G2),MONTH(G2)+1,0)),2),'VSAOI transakcijas'!$Q:$Q,\"Riska nodeva\")","v":0},{"$f":"-SUMIFS('VSAOI transakcijas'!$R:$R,'VSAOI transakcijas'!$D:$D,\"Iemaksa\",'VSAOI transakcijas'!$H:$H,\"Pamatsumma\",'VSAOI transakcijas'!$S:$S,\">=\"&DATE(YEAR(H2),MONTH(H2),1),'VSAOI transakcijas'!$S:$S,\"<=\"&'Sakuma lapa'!$F$16,'VSAOI transakcijas'!$O:$O,YEAR(DATE(YEAR(H2),MONTH(H2)+1,0)),'VSAOI transakcijas'!$P:$P,RIGHT(\"0\"&MONTH(DATE(YEAR(H2),MONTH(H2)+1,0)),2),'VSAOI transakcijas'!$Q:$Q,\"Riska nodeva\")\n-SUMIFS('VSAOI transakcijas'!$R:$R,'VSAOI transakcijas'!$D:$D,\"Atmaksa\",'VSAOI transakcijas'!$H:$H,\"Pamatsumma\",'VSAOI transakcijas'!$S:$S,\">=\"&DATE(YEAR(H2),MONTH(H2),1),'VSAOI transakcijas'!$S:$S,\"<=\"&'Sakuma lapa'!$F$16,'VSAOI transakcijas'!$O:$O,YEAR(DATE(YEAR(H2),MONTH(H2)+1,0)),'VSAOI transakcijas'!$P:$P,RIGHT(\"0\"&MONTH(DATE(YEAR(H2),MONTH(H2)+1,0)),2),'VSAOI transakcijas'!$Q:$Q,\"Riska nodeva\")\n-SUMIFS('VSAOI transakcijas'!$R:$R,'VSAOI transakcijas'!$D:$D,\"Aprēķins\",'VSAOI transakcijas'!$H:$H,\"Pamatsumma\",'VSAOI transakcijas'!$S:$S,\">=\"&DATE(YEAR(H2),MONTH(H2),1),'VSAOI transakcijas'!$S:$S,\"<=\"&'Sakuma lapa'!$F$16,'VSAOI transakcijas'!$O:$O,YEAR(DATE(YEAR(H2),MONTH(H2)+1,0)),'VSAOI transakcijas'!$P:$P,RIGHT(\"0\"&MONTH(DATE(YEAR(H2),MONTH(H2)+1,0)),2),'VSAOI transakcijas'!$Q:$Q,\"Riska nodeva\",'VSAOI transakcijas'!$K:$K,\"FIFO*\")\n-SUMIFS('VSAOI transakcijas'!$R:$R,'VSAOI transakcijas'!$D:$D,\"Aprēķins\",'VSAOI transakcijas'!$H:$H,\"Pamatsumma\",'VSAOI transakcijas'!$S:$S,\">=\"&DATE(YEAR(H2),MONTH(H2),1),'VSAOI transakcijas'!$S:$S,\"<=\"&'Sakuma lapa'!$F$16,'VSAOI transakcijas'!$O:$O,YEAR(DATE(YEAR(H2),MONTH(H2)+1,0)),'VSAOI transakcijas'!$P:$P,RIGHT(\"0\"&MONTH(DATE(YEAR(H2),MONTH(H2)+1,0)),2),'VSAOI transakcijas'!$Q:$Q,\"Riska nodeva\",'VSAOI transakcijas'!$K:$K,\"Iemaksas atbrīvošana\")\n-SUMIFS('VSAOI transakcijas'!$R:$R,'VSAOI transakcijas'!$H:$H,\"Nokavējuma nauda\",'VSAOI transakcijas'!$S:$S,\">=\"&DATE(YEAR(H2),MONTH(H2),1),'VSAOI transakcijas'!$S:$S,\"<=\"&'Sakuma lapa'!$F$16,'VSAOI transakcijas'!$O:$O,YEAR(DATE(YEAR(H2),MONTH(H2)+1,0)),'VSAOI transakcijas'!$P:$P,RIGHT(\"0\"&MONTH(DATE(YEAR(H2),MONTH(H2)+1,0)),2),'VSAOI transakcijas'!$Q:$Q,\"Riska nodeva\")","v":0},{"$f":"-SUMIFS('VSAOI transakcijas'!$R:$R,'VSAOI transakcijas'!$D:$D,\"Iemaksa\",'VSAOI transakcijas'!$H:$H,\"Pamatsumma\",'VSAOI transakcijas'!$S:$S,\">=\"&DATE(YEAR(I2),MONTH(I2),1),'VSAOI transakcijas'!$S:$S,\"<=\"&'Sakuma lapa'!$F$16,'VSAOI transakcijas'!$O:$O,YEAR(DATE(YEAR(I2),MONTH(I2)+1,0)),'VSAOI transakcijas'!$P:$P,RIGHT(\"0\"&MONTH(DATE(YEAR(I2),MONTH(I2)+1,0)),2),'VSAOI transakcijas'!$Q:$Q,\"Riska nodeva\")\n-SUMIFS('VSAOI transakcijas'!$R:$R,'VSAOI transakcijas'!$D:$D,\"Atmaksa\",'VSAOI transakcijas'!$H:$H,\"Pamatsumma\",'VSAOI transakcijas'!$S:$S,\">=\"&DATE(YEAR(I2),MONTH(I2),1),'VSAOI transakcijas'!$S:$S,\"<=\"&'Sakuma lapa'!$F$16,'VSAOI transakcijas'!$O:$O,YEAR(DATE(YEAR(I2),MONTH(I2)+1,0)),'VSAOI transakcijas'!$P:$P,RIGHT(\"0\"&MONTH(DATE(YEAR(I2),MONTH(I2)+1,0)),2),'VSAOI transakcijas'!$Q:$Q,\"Riska nodeva\")\n-SUMIFS('VSAOI transakcijas'!$R:$R,'VSAOI transakcijas'!$D:$D,\"Aprēķins\",'VSAOI transakcijas'!$H:$H,\"Pamatsumma\",'VSAOI transakcijas'!$S:$S,\">=\"&DATE(YEAR(I2),MONTH(I2),1),'VSAOI transakcijas'!$S:$S,\"<=\"&'Sakuma lapa'!$F$16,'VSAOI transakcijas'!$O:$O,YEAR(DATE(YEAR(I2),MONTH(I2)+1,0)),'VSAOI transakcijas'!$P:$P,RIGHT(\"0\"&MONTH(DATE(YEAR(I2),MONTH(I2)+1,0)),2),'VSAOI transakcijas'!$Q:$Q,\"Riska nodeva\",'VSAOI transakcijas'!$K:$K,\"FIFO*\")\n-SUMIFS('VSAOI transakcijas'!$R:$R,'VSAOI transakcijas'!$D:$D,\"Aprēķins\",'VSAOI transakcijas'!$H:$H,\"Pamatsumma\",'VSAOI transakcijas'!$S:$S,\">=\"&DATE(YEAR(I2),MONTH(I2),1),'VSAOI transakcijas'!$S:$S,\"<=\"&'Sakuma lapa'!$F$16,'VSAOI transakcijas'!$O:$O,YEAR(DATE(YEAR(I2),MONTH(I2)+1,0)),'VSAOI transakcijas'!$P:$P,RIGHT(\"0\"&MONTH(DATE(YEAR(I2),MONTH(I2)+1,0)),2),'VSAOI transakcijas'!$Q:$Q,\"Riska nodeva\",'VSAOI transakcijas'!$K:$K,\"Iemaksas atbrīvošana\")\n-SUMIFS('VSAOI transakcijas'!$R:$R,'VSAOI transakcijas'!$H:$H,\"Nokavējuma nauda\",'VSAOI transakcijas'!$S:$S,\">=\"&DATE(YEAR(I2),MONTH(I2),1),'VSAOI transakcijas'!$S:$S,\"<=\"&'Sakuma lapa'!$F$16,'VSAOI transakcijas'!$O:$O,YEAR(DATE(YEAR(I2),MONTH(I2)+1,0)),'VSAOI transakcijas'!$P:$P,RIGHT(\"0\"&MONTH(DATE(YEAR(I2),MONTH(I2)+1,0)),2),'VSAOI transakcijas'!$Q:$Q,\"Riska nodeva\")","v":0},{"$f":"-SUMIFS('VSAOI transakcijas'!$R:$R,'VSAOI transakcijas'!$D:$D,\"Iemaksa\",'VSAOI transakcijas'!$H:$H,\"Pamatsumma\",'VSAOI transakcijas'!$S:$S,\">=\"&DATE(YEAR(J2),MONTH(J2),1),'VSAOI transakcijas'!$S:$S,\"<=\"&'Sakuma lapa'!$F$16,'VSAOI transakcijas'!$O:$O,YEAR(DATE(YEAR(J2),MONTH(J2)+1,0)),'VSAOI transakcijas'!$P:$P,RIGHT(\"0\"&MONTH(DATE(YEAR(J2),MONTH(J2)+1,0)),2),'VSAOI transakcijas'!$Q:$Q,\"Riska nodeva\")\n-SUMIFS('VSAOI transakcijas'!$R:$R,'VSAOI transakcijas'!$D:$D,\"Atmaksa\",'VSAOI transakcijas'!$H:$H,\"Pamatsumma\",'VSAOI transakcijas'!$S:$S,\">=\"&DATE(YEAR(J2),MONTH(J2),1),'VSAOI transakcijas'!$S:$S,\"<=\"&'Sakuma lapa'!$F$16,'VSAOI transakcijas'!$O:$O,YEAR(DATE(YEAR(J2),MONTH(J2)+1,0)),'VSAOI transakcijas'!$P:$P,RIGHT(\"0\"&MONTH(DATE(YEAR(J2),MONTH(J2)+1,0)),2),'VSAOI transakcijas'!$Q:$Q,\"Riska nodeva\")\n-SUMIFS('VSAOI transakcijas'!$R:$R,'VSAOI transakcijas'!$D:$D,\"Aprēķins\",'VSAOI transakcijas'!$H:$H,\"Pamatsumma\",'VSAOI transakcijas'!$S:$S,\">=\"&DATE(YEAR(J2),MONTH(J2),1),'VSAOI transakcijas'!$S:$S,\"<=\"&'Sakuma lapa'!$F$16,'VSAOI transakcijas'!$O:$O,YEAR(DATE(YEAR(J2),MONTH(J2)+1,0)),'VSAOI transakcijas'!$P:$P,RIGHT(\"0\"&MONTH(DATE(YEAR(J2),MONTH(J2)+1,0)),2),'VSAOI transakcijas'!$Q:$Q,\"Riska nodeva\",'VSAOI transakcijas'!$K:$K,\"FIFO*\")\n-SUMIFS('VSAOI transakcijas'!$R:$R,'VSAOI transakcijas'!$D:$D,\"Aprēķins\",'VSAOI transakcijas'!$H:$H,\"Pamatsumma\",'VSAOI transakcijas'!$S:$S,\">=\"&DATE(YEAR(J2),MONTH(J2),1),'VSAOI transakcijas'!$S:$S,\"<=\"&'Sakuma lapa'!$F$16,'VSAOI transakcijas'!$O:$O,YEAR(DATE(YEAR(J2),MONTH(J2)+1,0)),'VSAOI transakcijas'!$P:$P,RIGHT(\"0\"&MONTH(DATE(YEAR(J2),MONTH(J2)+1,0)),2),'VSAOI transakcijas'!$Q:$Q,\"Riska nodeva\",'VSAOI transakcijas'!$K:$K,\"Iemaksas atbrīvošana\")\n-SUMIFS('VSAOI transakcijas'!$R:$R,'VSAOI transakcijas'!$H:$H,\"Nokavējuma nauda\",'VSAOI transakcijas'!$S:$S,\">=\"&DATE(YEAR(J2),MONTH(J2),1),'VSAOI transakcijas'!$S:$S,\"<=\"&'Sakuma lapa'!$F$16,'VSAOI transakcijas'!$O:$O,YEAR(DATE(YEAR(J2),MONTH(J2)+1,0)),'VSAOI transakcijas'!$P:$P,RIGHT(\"0\"&MONTH(DATE(YEAR(J2),MONTH(J2)+1,0)),2),'VSAOI transakcijas'!$Q:$Q,\"Riska nodeva\")","v":0},{"$f":"-SUMIFS('VSAOI transakcijas'!$R:$R,'VSAOI transakcijas'!$D:$D,\"Iemaksa\",'VSAOI transakcijas'!$H:$H,\"Pamatsumma\",'VSAOI transakcijas'!$S:$S,\">=\"&DATE(YEAR(K2),MONTH(K2),1),'VSAOI transakcijas'!$S:$S,\"<=\"&'Sakuma lapa'!$F$16,'VSAOI transakcijas'!$O:$O,YEAR(DATE(YEAR(K2),MONTH(K2)+1,0)),'VSAOI transakcijas'!$P:$P,RIGHT(\"0\"&MONTH(DATE(YEAR(K2),MONTH(K2)+1,0)),2),'VSAOI transakcijas'!$Q:$Q,\"Riska nodeva\")\n-SUMIFS('VSAOI transakcijas'!$R:$R,'VSAOI transakcijas'!$D:$D,\"Atmaksa\",'VSAOI transakcijas'!$H:$H,\"Pamatsumma\",'VSAOI transakcijas'!$S:$S,\">=\"&DATE(YEAR(K2),MONTH(K2),1),'VSAOI transakcijas'!$S:$S,\"<=\"&'Sakuma lapa'!$F$16,'VSAOI transakcijas'!$O:$O,YEAR(DATE(YEAR(K2),MONTH(K2)+1,0)),'VSAOI transakcijas'!$P:$P,RIGHT(\"0\"&MONTH(DATE(YEAR(K2),MONTH(K2)+1,0)),2),'VSAOI transakcijas'!$Q:$Q,\"Riska nodeva\")\n-SUMIFS('VSAOI transakcijas'!$R:$R,'VSAOI transakcijas'!$D:$D,\"Aprēķins\",'VSAOI transakcijas'!$H:$H,\"Pamatsumma\",'VSAOI transakcijas'!$S:$S,\">=\"&DATE(YEAR(K2),MONTH(K2),1),'VSAOI transakcijas'!$S:$S,\"<=\"&'Sakuma lapa'!$F$16,'VSAOI transakcijas'!$O:$O,YEAR(DATE(YEAR(K2),MONTH(K2)+1,0)),'VSAOI transakcijas'!$P:$P,RIGHT(\"0\"&MONTH(DATE(YEAR(K2),MONTH(K2)+1,0)),2),'VSAOI transakcijas'!$Q:$Q,\"Riska nodeva\",'VSAOI transakcijas'!$K:$K,\"FIFO*\")\n-SUMIFS('VSAOI transakcijas'!$R:$R,'VSAOI transakcijas'!$D:$D,\"Aprēķins\",'VSAOI transakcijas'!$H:$H,\"Pamatsumma\",'VSAOI transakcijas'!$S:$S,\">=\"&DATE(YEAR(K2),MONTH(K2),1),'VSAOI transakcijas'!$S:$S,\"<=\"&'Sakuma lapa'!$F$16,'VSAOI transakcijas'!$O:$O,YEAR(DATE(YEAR(K2),MONTH(K2)+1,0)),'VSAOI transakcijas'!$P:$P,RIGHT(\"0\"&MONTH(DATE(YEAR(K2),MONTH(K2)+1,0)),2),'VSAOI transakcijas'!$Q:$Q,\"Riska nodeva\",'VSAOI transakcijas'!$K:$K,\"Iemaksas atbrīvošana\")\n-SUMIFS('VSAOI transakcijas'!$R:$R,'VSAOI transakcijas'!$H:$H,\"Nokavējuma nauda\",'VSAOI transakcijas'!$S:$S,\">=\"&DATE(YEAR(K2),MONTH(K2),1),'VSAOI transakcijas'!$S:$S,\"<=\"&'Sakuma lapa'!$F$16,'VSAOI transakcijas'!$O:$O,YEAR(DATE(YEAR(K2),MONTH(K2)+1,0)),'VSAOI transakcijas'!$P:$P,RIGHT(\"0\"&MONTH(DATE(YEAR(K2),MONTH(K2)+1,0)),2),'VSAOI transakcijas'!$Q:$Q,\"Riska nodeva\")","v":0},{"$f":"-SUMIFS('VSAOI transakcijas'!$R:$R,'VSAOI transakcijas'!$D:$D,\"Iemaksa\",'VSAOI transakcijas'!$H:$H,\"Pamatsumma\",'VSAOI transakcijas'!$S:$S,\">=\"&DATE(YEAR(L2),MONTH(L2),1),'VSAOI transakcijas'!$S:$S,\"<=\"&'Sakuma lapa'!$F$16,'VSAOI transakcijas'!$O:$O,YEAR(DATE(YEAR(L2),MONTH(L2)+1,0)),'VSAOI transakcijas'!$P:$P,RIGHT(\"0\"&MONTH(DATE(YEAR(L2),MONTH(L2)+1,0)),2),'VSAOI transakcijas'!$Q:$Q,\"Riska nodeva\")\n-SUMIFS('VSAOI transakcijas'!$R:$R,'VSAOI transakcijas'!$D:$D,\"Atmaksa\",'VSAOI transakcijas'!$H:$H,\"Pamatsumma\",'VSAOI transakcijas'!$S:$S,\">=\"&DATE(YEAR(L2),MONTH(L2),1),'VSAOI transakcijas'!$S:$S,\"<=\"&'Sakuma lapa'!$F$16,'VSAOI transakcijas'!$O:$O,YEAR(DATE(YEAR(L2),MONTH(L2)+1,0)),'VSAOI transakcijas'!$P:$P,RIGHT(\"0\"&MONTH(DATE(YEAR(L2),MONTH(L2)+1,0)),2),'VSAOI transakcijas'!$Q:$Q,\"Riska nodeva\")\n-SUMIFS('VSAOI transakcijas'!$R:$R,'VSAOI transakcijas'!$D:$D,\"Aprēķins\",'VSAOI transakcijas'!$H:$H,\"Pamatsumma\",'VSAOI transakcijas'!$S:$S,\">=\"&DATE(YEAR(L2),MONTH(L2),1),'VSAOI transakcijas'!$S:$S,\"<=\"&'Sakuma lapa'!$F$16,'VSAOI transakcijas'!$O:$O,YEAR(DATE(YEAR(L2),MONTH(L2)+1,0)),'VSAOI transakcijas'!$P:$P,RIGHT(\"0\"&MONTH(DATE(YEAR(L2),MONTH(L2)+1,0)),2),'VSAOI transakcijas'!$Q:$Q,\"Riska nodeva\",'VSAOI transakcijas'!$K:$K,\"FIFO*\")\n-SUMIFS('VSAOI transakcijas'!$R:$R,'VSAOI transakcijas'!$D:$D,\"Aprēķins\",'VSAOI transakcijas'!$H:$H,\"Pamatsumma\",'VSAOI transakcijas'!$S:$S,\">=\"&DATE(YEAR(L2),MONTH(L2),1),'VSAOI transakcijas'!$S:$S,\"<=\"&'Sakuma lapa'!$F$16,'VSAOI transakcijas'!$O:$O,YEAR(DATE(YEAR(L2),MONTH(L2)+1,0)),'VSAOI transakcijas'!$P:$P,RIGHT(\"0\"&MONTH(DATE(YEAR(L2),MONTH(L2)+1,0)),2),'VSAOI transakcijas'!$Q:$Q,\"Riska nodeva\",'VSAOI transakcijas'!$K:$K,\"Iemaksas atbrīvošana\")\n-SUMIFS('VSAOI transakcijas'!$R:$R,'VSAOI transakcijas'!$H:$H,\"Nokavējuma nauda\",'VSAOI transakcijas'!$S:$S,\">=\"&DATE(YEAR(L2),MONTH(L2),1),'VSAOI transakcijas'!$S:$S,\"<=\"&'Sakuma lapa'!$F$16,'VSAOI transakcijas'!$O:$O,YEAR(DATE(YEAR(L2),MONTH(L2)+1,0)),'VSAOI transakcijas'!$P:$P,RIGHT(\"0\"&MONTH(DATE(YEAR(L2),MONTH(L2)+1,0)),2),'VSAOI transakcijas'!$Q:$Q,\"Riska nodeva\")","v":0},{"$f":"-SUMIFS('VSAOI transakcijas'!$R:$R,'VSAOI transakcijas'!$D:$D,\"Iemaksa\",'VSAOI transakcijas'!$H:$H,\"Pamatsumma\",'VSAOI transakcijas'!$S:$S,\">=\"&DATE(YEAR(M2),MONTH(M2),1),'VSAOI transakcijas'!$S:$S,\"<=\"&'Sakuma lapa'!$F$16,'VSAOI transakcijas'!$O:$O,YEAR(DATE(YEAR(M2),MONTH(M2)+1,0)),'VSAOI transakcijas'!$P:$P,RIGHT(\"0\"&MONTH(DATE(YEAR(M2),MONTH(M2)+1,0)),2),'VSAOI transakcijas'!$Q:$Q,\"Riska nodeva\")\n-SUMIFS('VSAOI transakcijas'!$R:$R,'VSAOI transakcijas'!$D:$D,\"Atmaksa\",'VSAOI transakcijas'!$H:$H,\"Pamatsumma\",'VSAOI transakcijas'!$S:$S,\">=\"&DATE(YEAR(M2),MONTH(M2),1),'VSAOI transakcijas'!$S:$S,\"<=\"&'Sakuma lapa'!$F$16,'VSAOI transakcijas'!$O:$O,YEAR(DATE(YEAR(M2),MONTH(M2)+1,0)),'VSAOI transakcijas'!$P:$P,RIGHT(\"0\"&MONTH(DATE(YEAR(M2),MONTH(M2)+1,0)),2),'VSAOI transakcijas'!$Q:$Q,\"Riska nodeva\")\n-SUMIFS('VSAOI transakcijas'!$R:$R,'VSAOI transakcijas'!$D:$D,\"Aprēķins\",'VSAOI transakcijas'!$H:$H,\"Pamatsumma\",'VSAOI transakcijas'!$S:$S,\">=\"&DATE(YEAR(M2),MONTH(M2),1),'VSAOI transakcijas'!$S:$S,\"<=\"&'Sakuma lapa'!$F$16,'VSAOI transakcijas'!$O:$O,YEAR(DATE(YEAR(M2),MONTH(M2)+1,0)),'VSAOI transakcijas'!$P:$P,RIGHT(\"0\"&MONTH(DATE(YEAR(M2),MONTH(M2)+1,0)),2),'VSAOI transakcijas'!$Q:$Q,\"Riska nodeva\",'VSAOI transakcijas'!$K:$K,\"FIFO*\")\n-SUMIFS('VSAOI transakcijas'!$R:$R,'VSAOI transakcijas'!$D:$D,\"Aprēķins\",'VSAOI transakcijas'!$H:$H,\"Pamatsumma\",'VSAOI transakcijas'!$S:$S,\">=\"&DATE(YEAR(M2),MONTH(M2),1),'VSAOI transakcijas'!$S:$S,\"<=\"&'Sakuma lapa'!$F$16,'VSAOI transakcijas'!$O:$O,YEAR(DATE(YEAR(M2),MONTH(M2)+1,0)),'VSAOI transakcijas'!$P:$P,RIGHT(\"0\"&MONTH(DATE(YEAR(M2),MONTH(M2)+1,0)),2),'VSAOI transakcijas'!$Q:$Q,\"Riska nodeva\",'VSAOI transakcijas'!$K:$K,\"Iemaksas atbrīvošana\")\n-SUMIFS('VSAOI transakcijas'!$R:$R,'VSAOI transakcijas'!$H:$H,\"Nokavējuma nauda\",'VSAOI transakcijas'!$S:$S,\">=\"&DATE(YEAR(M2),MONTH(M2),1),'VSAOI transakcijas'!$S:$S,\"<=\"&'Sakuma lapa'!$F$16,'VSAOI transakcijas'!$O:$O,YEAR(DATE(YEAR(M2),MONTH(M2)+1,0)),'VSAOI transakcijas'!$P:$P,RIGHT(\"0\"&MONTH(DATE(YEAR(M2),MONTH(M2)+1,0)),2),'VSAOI transakcijas'!$Q:$Q,\"Riska nodeva\")","v":0},{"$f":"-SUMIFS('VSAOI transakcijas'!$R:$R,'VSAOI transakcijas'!$D:$D,\"Iemaksa\",'VSAOI transakcijas'!$H:$H,\"Pamatsumma\",'VSAOI transakcijas'!$S:$S,\">=\"&DATE(YEAR(N2),MONTH(N2),1),'VSAOI transakcijas'!$S:$S,\"<=\"&'Sakuma lapa'!$F$16,'VSAOI transakcijas'!$O:$O,YEAR(DATE(YEAR(N2),MONTH(N2)+1,0)),'VSAOI transakcijas'!$P:$P,RIGHT(\"0\"&MONTH(DATE(YEAR(N2),MONTH(N2)+1,0)),2),'VSAOI transakcijas'!$Q:$Q,\"Riska nodeva\")\n-SUMIFS('VSAOI transakcijas'!$R:$R,'VSAOI transakcijas'!$D:$D,\"Atmaksa\",'VSAOI transakcijas'!$H:$H,\"Pamatsumma\",'VSAOI transakcijas'!$S:$S,\">=\"&DATE(YEAR(N2),MONTH(N2),1),'VSAOI transakcijas'!$S:$S,\"<=\"&'Sakuma lapa'!$F$16,'VSAOI transakcijas'!$O:$O,YEAR(DATE(YEAR(N2),MONTH(N2)+1,0)),'VSAOI transakcijas'!$P:$P,RIGHT(\"0\"&MONTH(DATE(YEAR(N2),MONTH(N2)+1,0)),2),'VSAOI transakcijas'!$Q:$Q,\"Riska nodeva\")\n-SUMIFS('VSAOI transakcijas'!$R:$R,'VSAOI transakcijas'!$D:$D,\"Aprēķins\",'VSAOI transakcijas'!$H:$H,\"Pamatsumma\",'VSAOI transakcijas'!$S:$S,\">=\"&DATE(YEAR(N2),MONTH(N2),1),'VSAOI transakcijas'!$S:$S,\"<=\"&'Sakuma lapa'!$F$16,'VSAOI transakcijas'!$O:$O,YEAR(DATE(YEAR(N2),MONTH(N2)+1,0)),'VSAOI transakcijas'!$P:$P,RIGHT(\"0\"&MONTH(DATE(YEAR(N2),MONTH(N2)+1,0)),2),'VSAOI transakcijas'!$Q:$Q,\"Riska nodeva\",'VSAOI transakcijas'!$K:$K,\"FIFO*\")\n-SUMIFS('VSAOI transakcijas'!$R:$R,'VSAOI transakcijas'!$D:$D,\"Aprēķins\",'VSAOI transakcijas'!$H:$H,\"Pamatsumma\",'VSAOI transakcijas'!$S:$S,\">=\"&DATE(YEAR(N2),MONTH(N2),1),'VSAOI transakcijas'!$S:$S,\"<=\"&'Sakuma lapa'!$F$16,'VSAOI transakcijas'!$O:$O,YEAR(DATE(YEAR(N2),MONTH(N2)+1,0)),'VSAOI transakcijas'!$P:$P,RIGHT(\"0\"&MONTH(DATE(YEAR(N2),MONTH(N2)+1,0)),2),'VSAOI transakcijas'!$Q:$Q,\"Riska nodeva\",'VSAOI transakcijas'!$K:$K,\"Iemaksas atbrīvošana\")\n-SUMIFS('VSAOI transakcijas'!$R:$R,'VSAOI transakcijas'!$H:$H,\"Nokavējuma nauda\",'VSAOI transakcijas'!$S:$S,\">=\"&DATE(YEAR(N2),MONTH(N2),1),'VSAOI transakcijas'!$S:$S,\"<=\"&'Sakuma lapa'!$F$16,'VSAOI transakcijas'!$O:$O,YEAR(DATE(YEAR(N2),MONTH(N2)+1,0)),'VSAOI transakcijas'!$P:$P,RIGHT(\"0\"&MONTH(DATE(YEAR(N2),MONTH(N2)+1,0)),2),'VSAOI transakcijas'!$Q:$Q,\"Riska nodeva\")","v":0},{"$f":"SUM(C55:N55)","v":0}]
[null,"VG  beigu atlikums"]
[null,"VG beigu atlikuma starpība",{"$f":"IF(C56=\"\",\"-\",C56-D52)","v":"-"},"-","-","-","-","-","-","-","-","-","-","-"]
[null,"Starpība starp deklarācijām un TransParsk",{"$f":"C15-C53","v":0},0,0,0,0,0,0,0,0,0,0,0,{"$f":"SUM(C58:N58)","v":0}]

{"sheet":"VSAOI horizontāli","index":9,"n_rows":28,"n_cols":19,"rows_kept":28,"cut":false,"hidden":false,"merged":[[24,7,24,8],[25,7,25,8],[26,7,26,8],[27,7,27,8],[27,15,27,16],[26,15,26,16],[25,15,25,16],[24,15,24,16],[23,7,23,8],[23,15,23,16],[20,6,20,8],[20,11,20,12],[20,14,20,16],[21,7,21,8],[22,7,22,8],[22,15,22,16],[21,15,21,16]]}
[null,{"$f":"'Sakuma lapa'!O30","v":0}]
[null,"Mēnesis","Bruto alga","Revidenta aprēķinātās \nDD VSAOI","Revidenta aprēķinātās \nDŅ VSAOI","starpības","KOPĀ VSAOI no VID EDS","Darbinieku skaits ","ar nodokļu grāmatiņu","bez nodokļu grāmatiņas","Apgādājamo skaits",{"$f":"\"Ieturētais IIN \npar \"&'Sakuma lapa'!$J$8","v":"Ieturētais IIN \npar pārskata mēnesi"},"Revidenta pārrēķinātais IIN \npar tekošo mēnesi","starpības","Riska nodeva","Nostrādātās stundas","Atlaistie","Vidējā mēneša alga","Vidējā stundas likme"]
[null,{"$f":"'Sakuma lapa'!E16","v":"00:00:00"},{"$f":"SUMIF('VSAOI data'!$Y:$Y,YEAR($B3)&MONTH($B3),'VSAOI data'!$J:$J)+SUMIF('VSAOI data'!$Y:$Y,YEAR($B3)&MONTH($B3),'VSAOI data'!$L:$L)","v":0},{"$f":"SUMIF('VSAOI data'!$Z:$Z,YEAR($B3)&MONTH($B3)&\"D*\",'VSAOI data'!$AP:$AP)+SUMIF('VSAOI data'!$Z:$Z,YEAR($B3)&MONTH($B3)&\"C*\",'VSAOI data'!$AP:$AP)+SUMIF('VSAOI data'!$Z:$Z,YEAR($B3)&MONTH($B3)&\"A*\",'VSAOI data'!$AP:$AP)","v":0},{"$f":"SUMIF('VSAOI data'!$Z:$Z,YEAR($B3)&MONTH($B3)&\"D*\",'VSAOI data'!$AO:$AO)+SUMIF('VSAOI data'!$Z:$Z,YEAR($B3)&MONTH($B3)&\"C*\",'VSAOI data'!$AO:$AO)+SUMIF('VSAOI data'!$Z:$Z,YEAR($B3)&MONTH($B3)&\"A*\",'VSAOI data'!$AO:$AO)","v":0},{"$f":"G3-SUM(D3:E3)","v":0},{"$f":"SUMIF('VSAOI data'!$Y:$Y,YEAR($B3)&MONTH($B3),'VSAOI data'!$K:$K)+SUMIF('VSAOI data'!$Y:$Y,YEAR($B3)&MONTH($B3),'VSAOI data'!$M:$M)","v":0},{"$f":"SUM(I3:J3)","v":0},{"$f":"COUNTIF('VSAOI data'!$AA:$AA,YEAR($B3)&MONTH($B3)&\"Tab*Ir\")-COUNTIF('VSAOI data'!$AA:$AA,YEAR($B3)&MONTH($B3)&\"Tab4*Ir\")","v":0},{"$f":"COUNTIF('VSAOI data'!$AA:$AA,YEAR($B3)&MONTH($B3)&\"Tab*Nav\")-COUNTIF('VSAOI data'!$AA:$AA,YEAR($B3)&MONTH($B3)&\"Tab4*Nav\")","v":0},{"$f":"SUMIF('VSAOI data'!$Z:$Z,YEAR($B3)&MONTH($B3)&\"D*\",'VSAOI data'!$AI:$AI)+SUMIF('VSAOI data'!$Z:$Z,YEAR($B3)&MONTH($B3)&\"C*\",'VSAOI data'!$AI:$AI)+SUMIF('VSAOI data'!$Z:$Z,YEAR($B3)&MONTH($B3)&\"A*\",'VSAOI data'!$AI:$AI)","v":0},{"$f":"SUMIF('VSAOI data'!$Y:$Y,YEAR($B3)&MONTH($B3),'VSAOI data'!$N:$N)","v":0},{"$f":"SUMIF('VSAOI data'!$Z:$Z,YEAR($B3)&MONTH($B3)&\"D*\",'VSAOI data'!$AM:$AM)+SUMIF('VSAOI data'!$Z:$Z,YEAR($B3)&MONTH($B3)&\"C*\",'VSAOI data'!$AM:$AM)+SUMIF('VSAOI data'!$Z:$Z,YEAR($B3)&MONTH($B3)&\"A*\",'VSAOI data'!$AM:$AM)","v":0},{"$f":"IF('Sakuma lapa'!$J$8=\"iepriekšējo mēnesi\",IF(C4>0,M3-L4,0),IF(C3>0,M3-L3,0))","v":0},{"$f":"SUMIF('VSAOI data'!$Y:$Y,YEAR($B3)&MONTH($B3),'VSAOI data'!$P:$P)","v":0},{"$f":"SUMIF('VSAOI data'!$Y:$Y,YEAR($B3)&MONTH($B3),'VSAOI data'!$Q:$Q)","v":0},{"$f":"COUNTIF('VSAOI data'!$AA:$AA,YEAR($B3)&MONTH($B3)&\"Tab4G*\")","v":0},{"$f":"IFERROR((SUMIF('VSAOI data'!$AB:$AB,YEAR($B3)&MONTH($B3),'VSAOI data'!$J:$J)+SUMIF('VSAOI data'!$AB:$AB,YEAR($B3)&MONTH($B3),'VSAOI data'!$L:$L))/COUNTIF('VSAOI data'!$AB:$AB,YEAR($B3)&MONTH($B3)),\"-\")","v":"-"},{"$f":"IFERROR((SUMIF('VSAOI data'!$AB:$AB,YEAR($B3)&MONTH($B3),'VSAOI data'!$J:$J)+SUMIF('VSAOI data'!$AB:$AB,YEAR($B3)&MONTH($B3),'VSAOI data'!$L:$L))/SUMIF('VSAOI data'!$AB:$AB,YEAR($B3)&MONTH($B3),'VSAOI data'!$Q:$Q),\"-\")","v":"-"}]
[null,{"$f":"DATE(YEAR(B3),MONTH(B3)+2,0)","v":60},{"$f":"SUMIF('VSAOI data'!$Y:$Y,YEAR($B4)&MONTH($B4),'VSAOI data'!$J:$J)+SUMIF('VSAOI data'!$Y:$Y,YEAR($B4)&MONTH($B4),'VSAOI data'!$L:$L)","v":0},{"$f":"SUMIF('VSAOI data'!$Z:$Z,YEAR($B4)&MONTH($B4)&\"D*\",'VSAOI data'!$AP:$AP)+SUMIF('VSAOI data'!$Z:$Z,YEAR($B4)&MONTH($B4)&\"C*\",'VSAOI data'!$AP:$AP)+SUMIF('VSAOI data'!$Z:$Z,YEAR($B4)&MONTH($B4)&\"A*\",'VSAOI data'!$AP:$AP)","v":0},{"$f":"SUMIF('VSAOI data'!$Z:$Z,YEAR($B4)&MONTH($B4)&\"D*\",'VSAOI data'!$AO:$AO)+SUMIF('VSAOI data'!$Z:$Z,YEAR($B4)&MONTH($B4)&\"C*\",'VSAOI data'!$AO:$AO)+SUMIF('VSAOI data'!$Z:$Z,YEAR($B4)&MONTH($B4)&\"A*\",'VSAOI data'!$AO:$AO)","v":0},{"$f":"G4-SUM(D4:E4)","v":0},{"$f":"SUMIF('VSAOI data'!$Y:$Y,YEAR($B4)&MONTH($B4),'VSAOI data'!$K:$K)+SUMIF('VSAOI data'!$Y:$Y,YEAR($B4)&MONTH($B4),'VSAOI data'!$M:$M)","v":0},{"$f":"SUM(I4:J4)","v":0},{"$f":"COUNTIF('VSAOI data'!$AA:$AA,YEAR($B4)&MONTH($B4)&\"Tab*Ir\")-COUNTIF('VSAOI data'!$AA:$AA,YEAR($B4)&MONTH($B4)&\"Tab4*Ir\")","v":0},{"$f":"COUNTIF('VSAOI data'!$AA:$AA,YEAR($B4)&MONTH($B4)&\"Tab*Nav\")-COUNTIF('VSAOI data'!$AA:$AA,YEAR($B4)&MONTH($B4)&\"Tab4*Nav\")","v":0},{"$f":"SUMIF('VSAOI data'!$Z:$Z,YEAR($B4)&MONTH($B4)&\"D*\",'VSAOI data'!$AI:$AI)+SUMIF('VSAOI data'!$Z:$Z,YEAR($B4)&MONTH($B4)&\"C*\",'VSAOI data'!$AI:$AI)+SUMIF('VSAOI data'!$Z:$Z,YEAR($B4)&MONTH($B4)&\"A*\",'VSAOI data'!$AI:$AI)","v":0},{"$f":"SUMIF('VSAOI data'!$Y:$Y,YEAR($B4)&MONTH($B4),'VSAOI data'!$N:$N)","v":0},{"$f":"SUMIF('VSAOI data'!$Z:$Z,YEAR($B4)&MONTH($B4)&\"D*\",'VSAOI data'!$AM:$AM)+SUMIF('VSAOI data'!$Z:$Z,YEAR($B4)&MONTH($B4)&\"C*\",'VSAOI data'!$AM:$AM)+SUMIF('VSAOI data'!$Z:$Z,YEAR($B4)&MONTH($B4)&\"A*\",'VSAOI data'!$AM:$AM)","v":0},{"$f":"IF('Sakuma lapa'!$J$8=\"iepriekšējo mēnesi\",IF(C5>0,M4-L5,0),IF(C4>0,M4-L4,0))","v":0},{"$f":"SUMIF('VSAOI data'!$Y:$Y,YEAR($B4)&MONTH($B4),'VSAOI data'!$P:$P)","v":0},{"$f":"SUMIF('VSAOI data'!$Y:$Y,YEAR($B4)&MONTH($B4),'VSAOI data'!$Q:$Q)","v":0},{"$f":"COUNTIF('VSAOI data'!$AA:$AA,YEAR($B4)&MONTH($B4)&\"Tab4G*\")","v":0},{"$f":"IFERROR((SUMIF('VSAOI data'!$AB:$AB,YEAR($B4)&MONTH($B4),'VSAOI data'!$J:$J)+SUMIF('VSAOI data'!$AB:$AB,YEAR($B4)&MONTH($B4),'VSAOI data'!$L:$L))/COUNTIF('VSAOI data'!$AB:$AB,YEAR($B4)&MONTH($B4)),\"-\")","v":"-"},{"$f":"IFERROR((SUMIF('VSAOI data'!$AB:$AB,YEAR($B4)&MONTH($B4),'VSAOI data'!$J:$J)+SUMIF('VSAOI data'!$AB:$AB,YEAR($B4)&MONTH($B4),'VSAOI data'!$L:$L))/SUMIF('VSAOI data'!$AB:$AB,YEAR($B4)&MONTH($B4),'VSAOI data'!$Q:$Q),\"-\")","v":"-"}]
[null,{"$f":"DATE(YEAR(B4),MONTH(B4)+2,0)","v":"1900-03-31"},{"$f":"SUMIF('VSAOI data'!$Y:$Y,YEAR($B5)&MONTH($B5),'VSAOI data'!$J:$J)+SUMIF('VSAOI data'!$Y:$Y,YEAR($B5)&MONTH($B5),'VSAOI data'!$L:$L)","v":0},{"$f":"SUMIF('VSAOI data'!$Z:$Z,YEAR($B5)&MONTH($B5)&\"D*\",'VSAOI data'!$AP:$AP)+SUMIF('VSAOI data'!$Z:$Z,YEAR($B5)&MONTH($B5)&\"C*\",'VSAOI data'!$AP:$AP)+SUMIF('VSAOI data'!$Z:$Z,YEAR($B5)&MONTH($B5)&\"A*\",'VSAOI data'!$AP:$AP)","v":0},{"$f":"SUMIF('VSAOI data'!$Z:$Z,YEAR($B5)&MONTH($B5)&\"D*\",'VSAOI data'!$AO:$AO)+SUMIF('VSAOI data'!$Z:$Z,YEAR($B5)&MONTH($B5)&\"C*\",'VSAOI data'!$AO:$AO)+SUMIF('VSAOI data'!$Z:$Z,YEAR($B5)&MONTH($B5)&\"A*\",'VSAOI data'!$AO:$AO)","v":0},0,{"$f":"SUMIF('VSAOI data'!$Y:$Y,YEAR($B5)&MONTH($B5),'VSAOI data'!$K:$K)+SUMIF('VSAOI data'!$Y:$Y,YEAR($B5)&MONTH($B5),'VSAOI data'!$M:$M)","v":0},0,{"$f":"COUNTIF('VSAOI data'!$AA:$AA,YEAR($B5)&MONTH($B5)&\"Tab*Ir\")-COUNTIF('VSAOI data'!$AA:$AA,YEAR($B5)&MONTH($B5)&\"Tab4*Ir\")","v":0},{"$f":"COUNTIF('VSAOI data'!$AA:$AA,YEAR($B5)&MONTH($B5)&\"Tab*Nav\")-COUNTIF('VSAOI data'!$AA:$AA,YEAR($B5)&MONTH($B5)&\"Tab4*Nav\")","v":0},{"$f":"SUMIF('VSAOI data'!$Z:$Z,YEAR($B5)&MONTH($B5)&\"D*\",'VSAOI data'!$AI:$AI)+SUMIF('VSAOI data'!$Z:$Z,YEAR($B5)&MONTH($B5)&\"C*\",'VSAOI data'!$AI:$AI)+SUMIF('VSAOI data'!$Z:$Z,YEAR($B5)&MONTH($B5)&\"A*\",'VSAOI data'!$AI:$AI)","v":0},{"$f":"SUMIF('VSAOI data'!$Y:$Y,YEAR($B5)&MONTH($B5),'VSAOI data'!$N:$N)","v":0},{"$f":"SUMIF('VSAOI data'!$Z:$Z,YEAR($B5)&MONTH($B5)&\"D*\",'VSAOI data'!$AM:$AM)+SUMIF('VSAOI data'!$Z:$Z,YEAR($B5)&MONTH($B5)&\"C*\",'VSAOI data'!$AM:$AM)+SUMIF('VSAOI data'!$Z:$Z,YEAR($B5)&MONTH($B5)&\"A*\",'VSAOI data'!$AM:$AM)","v":0},{"$f":"IF('Sakuma lapa'!$J$8=\"iepriekšējo mēnesi\",IF(C6>0,M5-L6,0),IF(C5>0,M5-L5,0))","v":0},{"$f":"SUMIF('VSAOI data'!$Y:$Y,YEAR($B5)&MONTH($B5),'VSAOI data'!$P:$P)","v":0},{"$f":"SUMIF('VSAOI data'!$Y:$Y,YEAR($B5)&MONTH($B5),'VSAOI data'!$Q:$Q)","v":0},{"$f":"COUNTIF('VSAOI data'!$AA:$AA,YEAR($B5)&MONTH($B5)&\"Tab4G*\")","v":0},{"$f":"IFERROR((SUMIF('VSAOI data'!$AB:$AB,YEAR($B5)&MONTH($B5),'VSAOI data'!$J:$J)+SUMIF('VSAOI data'!$AB:$AB,YEAR($B5)&MONTH($B5),'VSAOI data'!$L:$L))/COUNTIF('VSAOI data'!$AB:$AB,YEAR($B5)&MONTH($B5)),\"-\")","v":"-"},{"$f":"IFERROR((SUMIF('VSAOI data'!$AB:$AB,YEAR($B5)&MONTH($B5),'VSAOI data'!$J:$J)+SUMIF('VSAOI data'!$AB:$AB,YEAR($B5)&MONTH($B5),'VSAOI data'!$L:$L))/SUMIF('VSAOI data'!$AB:$AB,YEAR($B5)&MONTH($B5),'VSAOI data'!$Q:$Q),\"-\")","v":"-"}]
[null,"1900-04-30",{"$f":"SUMIF('VSAOI data'!$Y:$Y,YEAR($B6)&MONTH($B6),'VSAOI data'!$J:$J)+SUMIF('VSAOI data'!$Y:$Y,YEAR($B6)&MONTH($B6),'VSAOI data'!$L:$L)","v":0},{"$f":"SUMIF('VSAOI data'!$Z:$Z,YEAR($B6)&MONTH($B6)&\"D*\",'VSAOI data'!$AP:$AP)+SUMIF('VSAOI data'!$Z:$Z,YEAR($B6)&MONTH($B6)&\"C*\",'VSAOI data'!$AP:$AP)+SUMIF('VSAOI data'!$Z:$Z,YEAR($B6)&MONTH($B6)&\"A*\",'VSAOI data'!$AP:$AP)","v":0},{"$f":"SUMIF('VSAOI data'!$Z:$Z,YEAR($B6)&MONTH($B6)&\"D*\",'VSAOI data'!$AO:$AO)+SUMIF('VSAOI data'!$Z:$Z,YEAR($B6)&MONTH($B6)&\"C*\",'VSAOI data'!$AO:$AO)+SUMIF('VSAOI data'!$Z:$Z,YEAR($B6)&MONTH($B6)&\"A*\",'VSAOI data'!$AO:$AO)","v":0},0,{"$f":"SUMIF('VSAOI data'!$Y:$Y,YEAR($B6)&MONTH($B6),'VSAOI data'!$K:$K)+SUMIF('VSAOI data'!$Y:$Y,YEAR($B6)&MONTH($B6),'VSAOI data'!$M:$M)","v":0},0,{"$f":"COUNTIF('VSAOI data'!$AA:$AA,YEAR($B6)&MONTH($B6)&\"Tab*Ir\")-COUNTIF('VSAOI data'!$AA:$AA,YEAR($B6)&MONTH($B6)&\"Tab4*Ir\")","v":0},{"$f":"COUNTIF('VSAOI data'!$AA:$AA,YEAR($B6)&MONTH($B6)&\"Tab*Nav\")-COUNTIF('VSAOI data'!$AA:$AA,YEAR($B6)&MONTH($B6)&\"Tab4*Nav\")","v":0},{"$f":"SUMIF('VSAOI data'!$Z:$Z,YEAR($B6)&MONTH($B6)&\"D*\",'VSAOI data'!$AI:$AI)+SUMIF('VSAOI data'!$Z:$Z,YEAR($B6)&MONTH($B6)&\"C*\",'VSAOI data'!$AI:$AI)+SUMIF('VSAOI data'!$Z:$Z,YEAR($B6)&MONTH($B6)&\"A*\",'VSAOI data'!$AI:$AI)","v":0},{"$f":"SUMIF('VSAOI data'!$Y:$Y,YEAR($B6)&MONTH($B6),'VSAOI data'!$N:$N)","v":0},{"$f":"SUMIF('VSAOI data'!$Z:$Z,YEAR($B6)&MONTH($B6)&\"D*\",'VSAOI data'!$AM:$AM)+SUMIF('VSAOI data'!$Z:$Z,YEAR($B6)&MONTH($B6)&\"C*\",'VSAOI data'!$AM:$AM)+SUMIF('VSAOI data'!$Z:$Z,YEAR($B6)&MONTH($B6)&\"A*\",'VSAOI data'!$AM:$AM)","v":0},{"$f":"IF('Sakuma lapa'!$J$8=\"iepriekšējo mēnesi\",IF(C7>0,M6-L7,0),IF(C6>0,M6-L6,0))","v":0},{"$f":"SUMIF('VSAOI data'!$Y:$Y,YEAR($B6)&MONTH($B6),'VSAOI data'!$P:$P)","v":0},{"$f":"SUMIF('VSAOI data'!$Y:$Y,YEAR($B6)&MONTH($B6),'VSAOI data'!$Q:$Q)","v":0},{"$f":"COUNTIF('VSAOI data'!$AA:$AA,YEAR($B6)&MONTH($B6)&\"Tab4G*\")","v":0},{"$f":"IFERROR((SUMIF('VSAOI data'!$AB:$AB,YEAR($B6)&MONTH($B6),'VSAOI data'!$J:$J)+SUMIF('VSAOI data'!$AB:$AB,YEAR($B6)&MONTH($B6),'VSAOI data'!$L:$L))/COUNTIF('VSAOI data'!$AB:$AB,YEAR($B6)&MONTH($B6)),\"-\")","v":"-"},{"$f":"IFERROR((SUMIF('VSAOI data'!$AB:$AB,YEAR($B6)&MONTH($B6),'VSAOI data'!$J:$J)+SUMIF('VSAOI data'!$AB:$AB,YEAR($B6)&MONTH($B6),'VSAOI data'!$L:$L))/SUMIF('VSAOI data'!$AB:$AB,YEAR($B6)&MONTH($B6),'VSAOI data'!$Q:$Q),\"-\")","v":"-"}]
[null,"1900-05-31",{"$f":"SUMIF('VSAOI data'!$Y:$Y,YEAR($B7)&MONTH($B7),'VSAOI data'!$J:$J)+SUMIF('VSAOI data'!$Y:$Y,YEAR($B7)&MONTH($B7),'VSAOI data'!$L:$L)","v":0},{"$f":"SUMIF('VSAOI data'!$Z:$Z,YEAR($B7)&MONTH($B7)&\"D*\",'VSAOI data'!$AP:$AP)+SUMIF('VSAOI data'!$Z:$Z,YEAR($B7)&MONTH($B7)&\"C*\",'VSAOI data'!$AP:$AP)+SUMIF('VSAOI data'!$Z:$Z,YEAR($B7)&MONTH($B7)&\"A*\",'VSAOI data'!$AP:$AP)","v":0},{"$f":"SUMIF('VSAOI data'!$Z:$Z,YEAR($B7)&MONTH($B7)&\"D*\",'VSAOI data'!$AO:$AO)+SUMIF('VSAOI data'!$Z:$Z,YEAR($B7)&MONTH($B7)&\"C*\",'VSAOI data'!$AO:$AO)+SUMIF('VSAOI data'!$Z:$Z,YEAR($B7)&MONTH($B7)&\"A*\",'VSAOI data'!$AO:$AO)","v":0},0,{"$f":"SUMIF('VSAOI data'!$Y:$Y,YEAR($B7)&MONTH($B7),'VSAOI data'!$K:$K)+SUMIF('VSAOI data'!$Y:$Y,YEAR($B7)&MONTH($B7),'VSAOI data'!$M:$M)","v":0},0,{"$f":"COUNTIF('VSAOI data'!$AA:$AA,YEAR($B7)&MONTH($B7)&\"Tab*Ir\")-COUNTIF('VSAOI data'!$AA:$AA,YEAR($B7)&MONTH($B7)&\"Tab4*Ir\")","v":0},{"$f":"COUNTIF('VSAOI data'!$AA:$AA,YEAR($B7)&MONTH($B7)&\"Tab*Nav\")-COUNTIF('VSAOI data'!$AA:$AA,YEAR($B7)&MONTH($B7)&\"Tab4*Nav\")","v":0},{"$f":"SUMIF('VSAOI data'!$Z:$Z,YEAR($B7)&MONTH($B7)&\"D*\",'VSAOI data'!$AI:$AI)+SUMIF('VSAOI data'!$Z:$Z,YEAR($B7)&MONTH($B7)&\"C*\",'VSAOI data'!$AI:$AI)+SUMIF('VSAOI data'!$Z:$Z,YEAR($B7)&MONTH($B7)&\"A*\",'VSAOI data'!$AI:$AI)","v":0},{"$f":"SUMIF('VSAOI data'!$Y:$Y,YEAR($B7)&MONTH($B7),'VSAOI data'!$N:$N)","v":0},{"$f":"SUMIF('VSAOI data'!$Z:$Z,YEAR($B7)&MONTH($B7)&\"D*\",'VSAOI data'!$AM:$AM)+SUMIF('VSAOI data'!$Z:$Z,YEAR($B7)&MONTH($B7)&\"C*\",'VSAOI data'!$AM:$AM)+SUMIF('VSAOI data'!$Z:$Z,YEAR($B7)&MONTH($B7)&\"A*\",'VSAOI data'!$AM:$AM)","v":0},{"$f":"IF('Sakuma lapa'!$J$8=\"iepriekšējo mēnesi\",IF(C8>0,M7-L8,0),IF(C7>0,M7-L7,0))","v":0},{"$f":"SUMIF('VSAOI data'!$Y:$Y,YEAR($B7)&MONTH($B7),'VSAOI data'!$P:$P)","v":0},{"$f":"SUMIF('VSAOI data'!$Y:$Y,YEAR($B7)&MONTH($B7),'VSAOI data'!$Q:$Q)","v":0},{"$f":"COUNTIF('VSAOI data'!$AA:$AA,YEAR($B7)&MONTH($B7)&\"Tab4G*\")","v":0},{"$f":"IFERROR((SUMIF('VSAOI data'!$AB:$AB,YEAR($B7)&MONTH($B7),'VSAOI data'!$J:$J)+SUMIF('VSAOI data'!$AB:$AB,YEAR($B7)&MONTH($B7),'VSAOI data'!$L:$L))/COUNTIF('VSAOI data'!$AB:$AB,YEAR($B7)&MONTH($B7)),\"-\")","v":"-"},{"$f":"IFERROR((SUMIF('VSAOI data'!$AB:$AB,YEAR($B7)&MONTH($B7),'VSAOI data'!$J:$J)+SUMIF('VSAOI data'!$AB:$AB,YEAR($B7)&MONTH($B7),'VSAOI data'!$L:$L))/SUMIF('VSAOI data'!$AB:$AB,YEAR($B7)&MONTH($B7),'VSAOI data'!$Q:$Q),\"-\")","v":"-"}]
[null,"1900-06-30",{"$f":"SUMIF('VSAOI data'!$Y:$Y,YEAR($B8)&MONTH($B8),'VSAOI data'!$J:$J)+SUMIF('VSAOI data'!$Y:$Y,YEAR($B8)&MONTH($B8),'VSAOI data'!$L:$L)","v":0},{"$f":"SUMIF('VSAOI data'!$Z:$Z,YEAR($B8)&MONTH($B8)&\"D*\",'VSAOI data'!$AP:$AP)+SUMIF('VSAOI data'!$Z:$Z,YEAR($B8)&MONTH($B8)&\"C*\",'VSAOI data'!$AP:$AP)+SUMIF('VSAOI data'!$Z:$Z,YEAR($B8)&MONTH($B8)&\"A*\",'VSAOI data'!$AP:$AP)","v":0},{"$f":"SUMIF('VSAOI data'!$Z:$Z,YEAR($B8)&MONTH($B8)&\"D*\",'VSAOI data'!$AO:$AO)+SUMIF('VSAOI data'!$Z:$Z,YEAR($B8)&MONTH($B8)&\"C*\",'VSAOI data'!$AO:$AO)+SUMIF('VSAOI data'!$Z:$Z,YEAR($B8)&MONTH($B8)&\"A*\",'VSAOI data'!$AO:$AO)","v":0},0,{"$f":"SUMIF('VSAOI data'!$Y:$Y,YEAR($B8)&MONTH($B8),'VSAOI data'!$K:$K)+SUMIF('VSAOI data'!$Y:$Y,YEAR($B8)&MONTH($B8),'VSAOI data'!$M:$M)","v":0},0,{"$f":"COUNTIF('VSAOI data'!$AA:$AA,YEAR($B8)&MONTH($B8)&\"Tab*Ir\")-COUNTIF('VSAOI data'!$AA:$AA,YEAR($B8)&MONTH($B8)&\"Tab4*Ir\")","v":0},{"$f":"COUNTIF('VSAOI data'!$AA:$AA,YEAR($B8)&MONTH($B8)&\"Tab*Nav\")-COUNTIF('VSAOI data'!$AA:$AA,YEAR($B8)&MONTH($B8)&\"Tab4*Nav\")","v":0},{"$f":"SUMIF('VSAOI data'!$Z:$Z,YEAR($B8)&MONTH($B8)&\"D*\",'VSAOI data'!$AI:$AI)+SUMIF('VSAOI data'!$Z:$Z,YEAR($B8)&MONTH($B8)&\"C*\",'VSAOI data'!$AI:$AI)+SUMIF('VSAOI data'!$Z:$Z,YEAR($B8)&MONTH($B8)&\"A*\",'VSAOI data'!$AI:$AI)","v":0},{"$f":"SUMIF('VSAOI data'!$Y:$Y,YEAR($B8)&MONTH($B8),'VSAOI data'!$N:$N)","v":0},{"$f":"SUMIF('VSAOI data'!$Z:$Z,YEAR($B8)&MONTH($B8)&\"D*\",'VSAOI data'!$AM:$AM)+SUMIF('VSAOI data'!$Z:$Z,YEAR($B8)&MONTH($B8)&\"C*\",'VSAOI data'!$AM:$AM)+SUMIF('VSAOI data'!$Z:$Z,YEAR($B8)&MONTH($B8)&\"A*\",'VSAOI data'!$AM:$AM)","v":0},{"$f":"IF('Sakuma lapa'!$J$8=\"iepriekšējo mēnesi\",IF(C9>0,M8-L9,0),IF(C8>0,M8-L8,0))","v":0},{"$f":"SUMIF('VSAOI data'!$Y:$Y,YEAR($B8)&MONTH($B8),'VSAOI data'!$P:$P)","v":0},{"$f":"SUMIF('VSAOI data'!$Y:$Y,YEAR($B8)&MONTH($B8),'VSAOI data'!$Q:$Q)","v":0},{"$f":"COUNTIF('VSAOI data'!$AA:$AA,YEAR($B8)&MONTH($B8)&\"Tab4G*\")","v":0},{"$f":"IFERROR((SUMIF('VSAOI data'!$AB:$AB,YEAR($B8)&MONTH($B8),'VSAOI data'!$J:$J)+SUMIF('VSAOI data'!$AB:$AB,YEAR($B8)&MONTH($B8),'VSAOI data'!$L:$L))/COUNTIF('VSAOI data'!$AB:$AB,YEAR($B8)&MONTH($B8)),\"-\")","v":"-"},{"$f":"IFERROR((SUMIF('VSAOI data'!$AB:$AB,YEAR($B8)&MONTH($B8),'VSAOI data'!$J:$J)+SUMIF('VSAOI data'!$AB:$AB,YEAR($B8)&MONTH($B8),'VSAOI data'!$L:$L))/SUMIF('VSAOI data'!$AB:$AB,YEAR($B8)&MONTH($B8),'VSAOI data'!$Q:$Q),\"-\")","v":"-"}]
[null,"1900-07-31",{"$f":"SUMIF('VSAOI data'!$Y:$Y,YEAR($B9)&MONTH($B9),'VSAOI data'!$J:$J)+SUMIF('VSAOI data'!$Y:$Y,YEAR($B9)&MONTH($B9),'VSAOI data'!$L:$L)","v":0},{"$f":"SUMIF('VSAOI data'!$Z:$Z,YEAR($B9)&MONTH($B9)&\"D*\",'VSAOI data'!$AP:$AP)+SUMIF('VSAOI data'!$Z:$Z,YEAR($B9)&MONTH($B9)&\"C*\",'VSAOI data'!$AP:$AP)+SUMIF('VSAOI data'!$Z:$Z,YEAR($B9)&MONTH($B9)&\"A*\",'VSAOI data'!$AP:$AP)","v":0},{"$f":"SUMIF('VSAOI data'!$Z:$Z,YEAR($B9)&MONTH($B9)&\"D*\",'VSAOI data'!$AO:$AO)+SUMIF('VSAOI data'!$Z:$Z,YEAR($B9)&MONTH($B9)&\"C*\",'VSAOI data'!$AO:$AO)+SUMIF('VSAOI data'!$Z:$Z,YEAR($B9)&MONTH($B9)&\"A*\",'VSAOI data'!$AO:$AO)","v":0},0,{"$f":"SUMIF('VSAOI data'!$Y:$Y,YEAR($B9)&MONTH($B9),'VSAOI data'!$K:$K)+SUMIF('VSAOI data'!$Y:$Y,YEAR($B9)&MONTH($B9),'VSAOI data'!$M:$M)","v":0},0,{"$f":"COUNTIF('VSAOI data'!$AA:$AA,YEAR($B9)&MONTH($B9)&\"Tab*Ir\")-COUNTIF('VSAOI data'!$AA:$AA,YEAR($B9)&MONTH($B9)&\"Tab4*Ir\")","v":0},{"$f":"COUNTIF('VSAOI data'!$AA:$AA,YEAR($B9)&MONTH($B9)&\"Tab*Nav\")-COUNTIF('VSAOI data'!$AA:$AA,YEAR($B9)&MONTH($B9)&\"Tab4*Nav\")","v":0},{"$f":"SUMIF('VSAOI data'!$Z:$Z,YEAR($B9)&MONTH($B9)&\"D*\",'VSAOI data'!$AI:$AI)+SUMIF('VSAOI data'!$Z:$Z,YEAR($B9)&MONTH($B9)&\"C*\",'VSAOI data'!$AI:$AI)+SUMIF('VSAOI data'!$Z:$Z,YEAR($B9)&MONTH($B9)&\"A*\",'VSAOI data'!$AI:$AI)","v":0},{"$f":"SUMIF('VSAOI data'!$Y:$Y,YEAR($B9)&MONTH($B9),'VSAOI data'!$N:$N)","v":0},{"$f":"SUMIF('VSAOI data'!$Z:$Z,YEAR($B9)&MONTH($B9)&\"D*\",'VSAOI data'!$AM:$AM)+SUMIF('VSAOI data'!$Z:$Z,YEAR($B9)&MONTH($B9)&\"C*\",'VSAOI data'!$AM:$AM)+SUMIF('VSAOI data'!$Z:$Z,YEAR($B9)&MONTH($B9)&\"A*\",'VSAOI data'!$AM:$AM)","v":0},{"$f":"IF('Sakuma lapa'!$J$8=\"iepriekšējo mēnesi\",IF(C10>0,M9-L10,0),IF(C9>0,M9-L9,0))","v":0},{"$f":"SUMIF('VSAOI data'!$Y:$Y,YEAR($B9)&MONTH($B9),'VSAOI data'!$P:$P)","v":0},{"$f":"SUMIF('VSAOI data'!$Y:$Y,YEAR($B9)&MONTH($B9),'VSAOI data'!$Q:$Q)","v":0},{"$f":"COUNTIF('VSAOI data'!$AA:$AA,YEAR($B9)&MONTH($B9)&\"Tab4G*\")","v":0},{"$f":"IFERROR((SUMIF('VSAOI data'!$AB:$AB,YEAR($B9)&MONTH($B9),'VSAOI data'!$J:$J)+SUMIF('VSAOI data'!$AB:$AB,YEAR($B9)&MONTH($B9),'VSAOI data'!$L:$L))/COUNTIF('VSAOI data'!$AB:$AB,YEAR($B9)&MONTH($B9)),\"-\")","v":"-"},{"$f":"IFERROR((SUMIF('VSAOI data'!$AB:$AB,YEAR($B9)&MONTH($B9),'VSAOI data'!$J:$J)+SUMIF('VSAOI data'!$AB:$AB,YEAR($B9)&MONTH($B9),'VSAOI data'!$L:$L))/SUMIF('VSAOI data'!$AB:$AB,YEAR($B9)&MONTH($B9),'VSAOI data'!$Q:$Q),\"-\")","v":"-"}]
[null,"1900-08-31",{"$f":"SUMIF('VSAOI data'!$Y:$Y,YEAR($B10)&MONTH($B10),'VSAOI data'!$J:$J)+SUMIF('VSAOI data'!$Y:$Y,YEAR($B10)&MONTH($B10),'VSAOI data'!$L:$L)","v":0},{"$f":"SUMIF('VSAOI data'!$Z:$Z,YEAR($B10)&MONTH($B10)&\"D*\",'VSAOI data'!$AP:$AP)+SUMIF('VSAOI data'!$Z:$Z,YEAR($B10)&MONTH($B10)&\"C*\",'VSAOI data'!$AP:$AP)+SUMIF('VSAOI data'!$Z:$Z,YEAR($B10)&MONTH($B10)&\"A*\",'VSAOI data'!$AP:$AP)","v":0},{"$f":"SUMIF('VSAOI data'!$Z:$Z,YEAR($B10)&MONTH($B10)&\"D*\",'VSAOI data'!$AO:$AO)+SUMIF('VSAOI data'!$Z:$Z,YEAR($B10)&MONTH($B10)&\"C*\",'VSAOI data'!$AO:$AO)+SUMIF('VSAOI data'!$Z:$Z,YEAR($B10)&MONTH($B10)&\"A*\",'VSAOI data'!$AO:$AO)","v":0},0,{"$f":"SUMIF('VSAOI data'!$Y:$Y,YEAR($B10)&MONTH($B10),'VSAOI data'!$K:$K)+SUMIF('VSAOI data'!$Y:$Y,YEAR($B10)&MONTH($B10),'VSAOI data'!$M:$M)","v":0},0,{"$f":"COUNTIF('VSAOI data'!$AA:$AA,YEAR($B10)&MONTH($B10)&\"Tab*Ir\")-COUNTIF('VSAOI data'!$AA:$AA,YEAR($B10)&MONTH($B10)&\"Tab4*Ir\")","v":0},{"$f":"COUNTIF('VSAOI data'!$AA:$AA,YEAR($B10)&MONTH($B10)&\"Tab*Nav\")-COUNTIF('VSAOI data'!$AA:$AA,YEAR($B10)&MONTH($B10)&\"Tab4*Nav\")","v":0},{"$f":"SUMIF('VSAOI data'!$Z:$Z,YEAR($B10)&MONTH($B10)&\"D*\",'VSAOI data'!$AI:$AI)+SUMIF('VSAOI data'!$Z:$Z,YEAR($B10)&MONTH($B10)&\"C*\",'VSAOI data'!$AI:$AI)+SUMIF('VSAOI data'!$Z:$Z,YEAR($B10)&MONTH($B10)&\"A*\",'VSAOI data'!$AI:$AI)","v":0},{"$f":"SUMIF('VSAOI data'!$Y:$Y,YEAR($B10)&MONTH($B10),'VSAOI data'!$N:$N)","v":0},{"$f":"SUMIF('VSAOI data'!$Z:$Z,YEAR($B10)&MONTH($B10)&\"D*\",'VSAOI data'!$AM:$AM)+SUMIF('VSAOI data'!$Z:$Z,YEAR($B10)&MONTH($B10)&\"C*\",'VSAOI data'!$AM:$AM)+SUMIF('VSAOI data'!$Z:$Z,YEAR($B10)&MONTH($B10)&\"A*\",'VSAOI data'!$AM:$AM)","v":0},{"$f":"IF('Sakuma lapa'!$J$8=\"iepriekšējo mēnesi\",IF(C11>0,M10-L11,0),IF(C10>0,M10-L10,0))","v":0},{"$f":"SUMIF('VSAOI data'!$Y:$Y,YEAR($B10)&MONTH($B10),'VSAOI data'!$P:$P)","v":0},{"$f":"SUMIF('VSAOI data'!$Y:$Y,YEAR($B10)&MONTH($B10),'VSAOI data'!$Q:$Q)","v":0},{"$f":"COUNTIF('VSAOI data'!$AA:$AA,YEAR($B10)&MONTH($B10)&\"Tab4G*\")","v":0},{"$f":"IFERROR((SUMIF('VSAOI data'!$AB:$AB,YEAR($B10)&MONTH($B10),'VSAOI data'!$J:$J)+SUMIF('VSAOI data'!$AB:$AB,YEAR($B10)&MONTH($B10),'VSAOI data'!$L:$L))/COUNTIF('VSAOI data'!$AB:$AB,YEAR($B10)&MONTH($B10)),\"-\")","v":"-"},{"$f":"IFERROR((SUMIF('VSAOI data'!$AB:$AB,YEAR($B10)&MONTH($B10),'VSAOI data'!$J:$J)+SUMIF('VSAOI data'!$AB:$AB,YEAR($B10)&MONTH($B10),'VSAOI data'!$L:$L))/SUMIF('VSAOI data'!$AB:$AB,YEAR($B10)&MONTH($B10),'VSAOI data'!$Q:$Q),\"-\")","v":"-"}]
[null,"1900-09-30",{"$f":"SUMIF('VSAOI data'!$Y:$Y,YEAR($B11)&MONTH($B11),'VSAOI data'!$J:$J)+SUMIF('VSAOI data'!$Y:$Y,YEAR($B11)&MONTH($B11),'VSAOI data'!$L:$L)","v":0},{"$f":"SUMIF('VSAOI data'!$Z:$Z,YEAR($B11)&MONTH($B11)&\"D*\",'VSAOI data'!$AP:$AP)+SUMIF('VSAOI data'!$Z:$Z,YEAR($B11)&MONTH($B11)&\"C*\",'VSAOI data'!$AP:$AP)+SUMIF('VSAOI data'!$Z:$Z,YEAR($B11)&MONTH($B11)&\"A*\",'VSAOI data'!$AP:$AP)","v":0},{"$f":"SUMIF('VSAOI data'!$Z:$Z,YEAR($B11)&MONTH($B11)&\"D*\",'VSAOI data'!$AO:$AO)+SUMIF('VSAOI data'!$Z:$Z,YEAR($B11)&MONTH($B11)&\"C*\",'VSAOI data'!$AO:$AO)+SUMIF('VSAOI data'!$Z:$Z,YEAR($B11)&MONTH($B11)&\"A*\",'VSAOI data'!$AO:$AO)","v":0},0,{"$f":"SUMIF('VSAOI data'!$Y:$Y,YEAR($B11)&MONTH($B11),'VSAOI data'!$K:$K)+SUMIF('VSAOI data'!$Y:$Y,YEAR($B11)&MONTH($B11),'VSAOI data'!$M:$M)","v":0},0,{"$f":"COUNTIF('VSAOI data'!$AA:$AA,YEAR($B11)&MONTH($B11)&\"Tab*Ir\")-COUNTIF('VSAOI data'!$AA:$AA,YEAR($B11)&MONTH($B11)&\"Tab4*Ir\")","v":0},{"$f":"COUNTIF('VSAOI data'!$AA:$AA,YEAR($B11)&MONTH($B11)&\"Tab*Nav\")-COUNTIF('VSAOI data'!$AA:$AA,YEAR($B11)&MONTH($B11)&\"Tab4*Nav\")","v":0},{"$f":"SUMIF('VSAOI data'!$Z:$Z,YEAR($B11)&MONTH($B11)&\"D*\",'VSAOI data'!$AI:$AI)+SUMIF('VSAOI data'!$Z:$Z,YEAR($B11)&MONTH($B11)&\"C*\",'VSAOI data'!$AI:$AI)+SUMIF('VSAOI data'!$Z:$Z,YEAR($B11)&MONTH($B11)&\"A*\",'VSAOI data'!$AI:$AI)","v":0},{"$f":"SUMIF('VSAOI data'!$Y:$Y,YEAR($B11)&MONTH($B11),'VSAOI data'!$N:$N)","v":0},{"$f":"SUMIF('VSAOI data'!$Z:$Z,YEAR($B11)&MONTH($B11)&\"D*\",'VSAOI data'!$AM:$AM)+SUMIF('VSAOI data'!$Z:$Z,YEAR($B11)&MONTH($B11)&\"C*\",'VSAOI data'!$AM:$AM)+SUMIF('VSAOI data'!$Z:$Z,YEAR($B11)&MONTH($B11)&\"A*\",'VSAOI data'!$AM:$AM)","v":0},{"$f":"IF('Sakuma lapa'!$J$8=\"iepriekšējo mēnesi\",IF(C12>0,M11-L12,0),IF(C11>0,M11-L11,0))","v":0},{"$f":"SUMIF('VSAOI data'!$Y:$Y,YEAR($B11)&MONTH($B11),'VSAOI data'!$P:$P)","v":0},{"$f":"SUMIF('VSAOI data'!$Y:$Y,YEAR($B11)&MONTH($B11),'VSAOI data'!$Q:$Q)","v":0},{"$f":"COUNTIF('VSAOI data'!$AA:$AA,YEAR($B11)&MONTH($B11)&\"Tab4G*\")","v":0},{"$f":"IFERROR((SUMIF('VSAOI data'!$AB:$AB,YEAR($B11)&MONTH($B11),'VSAOI data'!$J:$J)+SUMIF('VSAOI data'!$AB:$AB,YEAR($B11)&MONTH($B11),'VSAOI data'!$L:$L))/COUNTIF('VSAOI data'!$AB:$AB,YEAR($B11)&MONTH($B11)),\"-\")","v":"-"},{"$f":"IFERROR((SUMIF('VSAOI data'!$AB:$AB,YEAR($B11)&MONTH($B11),'VSAOI data'!$J:$J)+SUMIF('VSAOI data'!$AB:$AB,YEAR($B11)&MONTH($B11),'VSAOI data'!$L:$L))/SUMIF('VSAOI data'!$AB:$AB,YEAR($B11)&MONTH($B11),'VSAOI data'!$Q:$Q),\"-\")","v":"-"}]
[null,"1900-10-31",{"$f":"SUMIF('VSAOI data'!$Y:$Y,YEAR($B12)&MONTH($B12),'VSAOI data'!$J:$J)+SUMIF('VSAOI data'!$Y:$Y,YEAR($B12)&MONTH($B12),'VSAOI data'!$L:$L)","v":0},{"$f":"SUMIF('VSAOI data'!$Z:$Z,YEAR($B12)&MONTH($B12)&\"D*\",'VSAOI data'!$AP:$AP)+SUMIF('VSAOI data'!$Z:$Z,YEAR($B12)&MONTH($B12)&\"C*\",'VSAOI data'!$AP:$AP)+SUMIF('VSAOI data'!$Z:$Z,YEAR($B12)&MONTH($B12)&\"A*\",'VSAOI data'!$AP:$AP)","v":0},{"$f":"SUMIF('VSAOI data'!$Z:$Z,YEAR($B12)&MONTH($B12)&\"D*\",'VSAOI data'!$AO:$AO)+SUMIF('VSAOI data'!$Z:$Z,YEAR($B12)&MONTH($B12)&\"C*\",'VSAOI data'!$AO:$AO)+SUMIF('VSAOI data'!$Z:$Z,YEAR($B12)&MONTH($B12)&\"A*\",'VSAOI data'!$AO:$AO)","v":0},0,{"$f":"SUMIF('VSAOI data'!$Y:$Y,YEAR($B12)&MONTH($B12),'VSAOI data'!$K:$K)+SUMIF('VSAOI data'!$Y:$Y,YEAR($B12)&MONTH($B12),'VSAOI data'!$M:$M)","v":0},0,{"$f":"COUNTIF('VSAOI data'!$AA:$AA,YEAR($B12)&MONTH($B12)&\"Tab*Ir\")-COUNTIF('VSAOI data'!$AA:$AA,YEAR($B12)&MONTH($B12)&\"Tab4*Ir\")","v":0},{"$f":"COUNTIF('VSAOI data'!$AA:$AA,YEAR($B12)&MONTH($B12)&\"Tab*Nav\")-COUNTIF('VSAOI data'!$AA:$AA,YEAR($B12)&MONTH($B12)&\"Tab4*Nav\")","v":0},{"$f":"SUMIF('VSAOI data'!$Z:$Z,YEAR($B12)&MONTH($B12)&\"D*\",'VSAOI data'!$AI:$AI)+SUMIF('VSAOI data'!$Z:$Z,YEAR($B12)&MONTH($B12)&\"C*\",'VSAOI data'!$AI:$AI)+SUMIF('VSAOI data'!$Z:$Z,YEAR($B12)&MONTH($B12)&\"A*\",'VSAOI data'!$AI:$AI)","v":0},{"$f":"SUMIF('VSAOI data'!$Y:$Y,YEAR($B12)&MONTH($B12),'VSAOI data'!$N:$N)","v":0},{"$f":"SUMIF('VSAOI data'!$Z:$Z,YEAR($B12)&MONTH($B12)&\"D*\",'VSAOI data'!$AM:$AM)+SUMIF('VSAOI data'!$Z:$Z,YEAR($B12)&MONTH($B12)&\"C*\",'VSAOI data'!$AM:$AM)+SUMIF('VSAOI data'!$Z:$Z,YEAR($B12)&MONTH($B12)&\"A*\",'VSAOI data'!$AM:$AM)","v":0},{"$f":"IF('Sakuma lapa'!$J$8=\"iepriekšējo mēnesi\",IF(C13>0,M12-L13,0),IF(C12>0,M12-L12,0))","v":0},{"$f":"SUMIF('VSAOI data'!$Y:$Y,YEAR($B12)&MONTH($B12),'VSAOI data'!$P:$P)","v":0},{"$f":"SUMIF('VSAOI data'!$Y:$Y,YEAR($B12)&MONTH($B12),'VSAOI data'!$Q:$Q)","v":0},{"$f":"COUNTIF('VSAOI data'!$AA:$AA,YEAR($B12)&MONTH($B12)&\"Tab4G*\")","v":0},{"$f":"IFERROR((SUMIF('VSAOI data'!$AB:$AB,YEAR($B12)&MONTH($B12),'VSAOI data'!$J:$J)+SUMIF('VSAOI data'!$AB:$AB,YEAR($B12)&MONTH($B12),'VSAOI data'!$L:$L))/COUNTIF('VSAOI data'!$AB:$AB,YEAR($B12)&MONTH($B12)),\"-\")","v":"-"},{"$f":"IFERROR((SUMIF('VSAOI data'!$AB:$AB,YEAR($B12)&MONTH($B12),'VSAOI data'!$J:$J)+SUMIF('VSAOI data'!$AB:$AB,YEAR($B12)&MONTH($B12),'VSAOI data'!$L:$L))/SUMIF('VSAOI data'!$AB:$AB,YEAR($B12)&MONTH($B12),'VSAOI data'!$Q:$Q),\"-\")","v":"-"}]
[null,{"$f":"DATE(YEAR(B12),MONTH(B12)+2,0)","v":"1900-11-30"},{"$f":"SUMIF('VSAOI data'!$Y:$Y,YEAR($B13)&MONTH($B13),'VSAOI data'!$J:$J)+SUMIF('VSAOI data'!$Y:$Y,YEAR($B13)&MONTH($B13),'VSAOI data'!$L:$L)","v":0},{"$f":"SUMIF('VSAOI data'!$Z:$Z,YEAR($B13)&MONTH($B13)&\"D*\",'VSAOI data'!$AP:$AP)+SUMIF('VSAOI data'!$Z:$Z,YEAR($B13)&MONTH($B13)&\"C*\",'VSAOI data'!$AP:$AP)+SUMIF('VSAOI data'!$Z:$Z,YEAR($B13)&MONTH($B13)&\"A*\",'VSAOI data'!$AP:$AP)","v":0},{"$f":"SUMIF('VSAOI data'!$Z:$Z,YEAR($B13)&MONTH($B13)&\"D*\",'VSAOI data'!$AO:$AO)+SUMIF('VSAOI data'!$Z:$Z,YEAR($B13)&MONTH($B13)&\"C*\",'VSAOI data'!$AO:$AO)+SUMIF('VSAOI data'!$Z:$Z,YEAR($B13)&MONTH($B13)&\"A*\",'VSAOI data'!$AO:$AO)","v":0},0,{"$f":"SUMIF('VSAOI data'!$Y:$Y,YEAR($B13)&MONTH($B13),'VSAOI data'!$K:$K)+SUMIF('VSAOI data'!$Y:$Y,YEAR($B13)&MONTH($B13),'VSAOI data'!$M:$M)","v":0},0,{"$f":"COUNTIF('VSAOI data'!$AA:$AA,YEAR($B13)&MONTH($B13)&\"Tab*Ir\")-COUNTIF('VSAOI data'!$AA:$AA,YEAR($B13)&MONTH($B13)&\"Tab4*Ir\")","v":0},{"$f":"COUNTIF('VSAOI data'!$AA:$AA,YEAR($B13)&MONTH($B13)&\"Tab*Nav\")-COUNTIF('VSAOI data'!$AA:$AA,YEAR($B13)&MONTH($B13)&\"Tab4*Nav\")","v":0},{"$f":"SUMIF('VSAOI data'!$Z:$Z,YEAR($B13)&MONTH($B13)&\"D*\",'VSAOI data'!$AI:$AI)+SUMIF('VSAOI data'!$Z:$Z,YEAR($B13)&MONTH($B13)&\"C*\",'VSAOI data'!$AI:$AI)+SUMIF('VSAOI data'!$Z:$Z,YEAR($B13)&MONTH($B13)&\"A*\",'VSAOI data'!$AI:$AI)","v":0},{"$f":"SUMIF('VSAOI data'!$Y:$Y,YEAR($B13)&MONTH($B13),'VSAOI data'!$N:$N)","v":0},{"$f":"SUMIF('VSAOI data'!$Z:$Z,YEAR($B13)&MONTH($B13)&\"D*\",'VSAOI data'!$AM:$AM)+SUMIF('VSAOI data'!$Z:$Z,YEAR($B13)&MONTH($B13)&\"C*\",'VSAOI data'!$AM:$AM)+SUMIF('VSAOI data'!$Z:$Z,YEAR($B13)&MONTH($B13)&\"A*\",'VSAOI data'!$AM:$AM)","v":0},{"$f":"IF('Sakuma lapa'!$J$8=\"iepriekšējo mēnesi\",IF(C14>0,M13-L14,0),IF(C13>0,M13-L13,0))","v":0},{"$f":"SUMIF('VSAOI data'!$Y:$Y,YEAR($B13)&MONTH($B13),'VSAOI data'!$P:$P)","v":0},{"$f":"SUMIF('VSAOI data'!$Y:$Y,YEAR($B13)&MONTH($B13),'VSAOI data'!$Q:$Q)","v":0},{"$f":"COUNTIF('VSAOI data'!$AA:$AA,YEAR($B13)&MONTH($B13)&\"Tab4G*\")","v":0},{"$f":"IFERROR((SUMIF('VSAOI data'!$AB:$AB,YEAR($B13)&MONTH($B13),'VSAOI data'!$J:$J)+SUMIF('VSAOI data'!$AB:$AB,YEAR($B13)&MONTH($B13),'VSAOI data'!$L:$L))/COUNTIF('VSAOI data'!$AB:$AB,YEAR($B13)&MONTH($B13)),\"-\")","v":"-"},{"$f":"IFERROR((SUMIF('VSAOI data'!$AB:$AB,YEAR($B13)&MONTH($B13),'VSAOI data'!$J:$J)+SUMIF('VSAOI data'!$AB:$AB,YEAR($B13)&MONTH($B13),'VSAOI data'!$L:$L))/SUMIF('VSAOI data'!$AB:$AB,YEAR($B13)&MONTH($B13),'VSAOI data'!$Q:$Q),\"-\")","v":"-"}]
[null,"1900-12-31",{"$f":"SUMIF('VSAOI data'!$Y:$Y,YEAR($B14)&MONTH($B14),'VSAOI data'!$J:$J)+SUMIF('VSAOI data'!$Y:$Y,YEAR($B14)&MONTH($B14),'VSAOI data'!$L:$L)","v":0},{"$f":"SUMIF('VSAOI data'!$Z:$Z,YEAR($B14)&MONTH($B14)&\"D*\",'VSAOI data'!$AP:$AP)+SUMIF('VSAOI data'!$Z:$Z,YEAR($B14)&MONTH($B14)&\"C*\",'VSAOI data'!$AP:$AP)+SUMIF('VSAOI data'!$Z:$Z,YEAR($B14)&MONTH($B14)&\"A*\",'VSAOI data'!$AP:$AP)","v":0},{"$f":"SUMIF('VSAOI data'!$Z:$Z,YEAR($B14)&MONTH($B14)&\"D*\",'VSAOI data'!$AO:$AO)+SUMIF('VSAOI data'!$Z:$Z,YEAR($B14)&MONTH($B14)&\"C*\",'VSAOI data'!$AO:$AO)+SUMIF('VSAOI data'!$Z:$Z,YEAR($B14)&MONTH($B14)&\"A*\",'VSAOI data'!$AO:$AO)","v":0},0,{"$f":"SUMIF('VSAOI data'!$Y:$Y,YEAR($B14)&MONTH($B14),'VSAOI data'!$K:$K)+SUMIF('VSAOI data'!$Y:$Y,YEAR($B14)&MONTH($B14),'VSAOI data'!$M:$M)","v":0},0,{"$f":"COUNTIF('VSAOI data'!$AA:$AA,YEAR($B14)&MONTH($B14)&\"Tab*Ir\")-COUNTIF('VSAOI data'!$AA:$AA,YEAR($B14)&MONTH($B14)&\"Tab4*Ir\")","v":0},{"$f":"COUNTIF('VSAOI data'!$AA:$AA,YEAR($B14)&MONTH($B14)&\"Tab*Nav\")-COUNTIF('VSAOI data'!$AA:$AA,YEAR($B14)&MONTH($B14)&\"Tab4*Nav\")","v":0},{"$f":"SUMIF('VSAOI data'!$Z:$Z,YEAR($B14)&MONTH($B14)&\"D*\",'VSAOI data'!$AI:$AI)+SUMIF('VSAOI data'!$Z:$Z,YEAR($B14)&MONTH($B14)&\"C*\",'VSAOI data'!$AI:$AI)+SUMIF('VSAOI data'!$Z:$Z,YEAR($B14)&MONTH($B14)&\"A*\",'VSAOI data'!$AI:$AI)","v":0},{"$f":"SUMIF('VSAOI data'!$Y:$Y,YEAR($B14)&MONTH($B14),'VSAOI data'!$N:$N)","v":0},{"$f":"SUMIF('VSAOI data'!$Z:$Z,YEAR($B14)&MONTH($B14)&\"D*\",'VSAOI data'!$AM:$AM)+SUMIF('VSAOI data'!$Z:$Z,YEAR($B14)&MONTH($B14)&\"C*\",'VSAOI data'!$AM:$AM)+SUMIF('VSAOI data'!$Z:$Z,YEAR($B14)&MONTH($B14)&\"A*\",'VSAOI data'!$AM:$AM)","v":0},{"$f":"IF('Sakuma lapa'!$J$8=\"iepriekšējo mēnesi\",IF(C15>0,M14-#REF!,0),IF(C14>0,M14-L14,0))","v":0},{"$f":"SUMIF('VSAOI data'!$Y:$Y,YEAR($B14)&MONTH($B14),'VSAOI data'!$P:$P)","v":0},{"$f":"SUMIF('VSAOI data'!$Y:$Y,YEAR($B14)&MONTH($B14),'VSAOI data'!$Q:$Q)","v":0},{"$f":"COUNTIF('VSAOI data'!$AA:$AA,YEAR($B14)&MONTH($B14)&\"Tab4G*\")","v":0},{"$f":"IFERROR((SUMIF('VSAOI data'!$AB:$AB,YEAR($B14)&MONTH($B14),'VSAOI data'!$J:$J)+SUMIF('VSAOI data'!$AB:$AB,YEAR($B14)&MONTH($B14),'VSAOI data'!$L:$L))/COUNTIF('VSAOI data'!$AB:$AB,YEAR($B14)&MONTH($B14)),\"-\")","v":"-"},{"$f":"IFERROR((SUMIF('VSAOI data'!$AB:$AB,YEAR($B14)&MONTH($B14),'VSAOI data'!$J:$J)+SUMIF('VSAOI data'!$AB:$AB,YEAR($B14)&MONTH($B14),'VSAOI data'!$L:$L))/SUMIF('VSAOI data'!$AB:$AB,YEAR($B14)&MONTH($B14),'VSAOI data'!$Q:$Q),\"-\")","v":"-"}]
[null,"Kopā:",{"$f":"SUM(C3:C14)","v":0},{"$f":"SUM(D3:D14)","v":0},{"$f":"SUM(E3:E14)","v":0},{"$f":"SUM(F3:F14)","v":0},{"$f":"SUM(G3:G14)","v":0},null,null,null,null,{"$f":"SUM(L3:L14)","v":0},{"$f":"SUM(M3:M14)","v":0},{"$f":"SUM(N3:N14)","v":0},{"$f":"SUM(O3:O14)","v":0},{"$f":"SUM(P3:P14)","v":0}]
[]
[null,"VG aprēķīns"]
[null,"Aprēķ. novirze",{"$f":"C15-C17","v":0},{"$f":"D15-D17","v":0},0,null,{"$f":"G15-G17","v":0},null,null,null,null,{"$f":"L15-L17","v":0},null,null,{"$f":"O15-O17","v":0}]
[]
[null,null,null,null,null,null,"(+ parāds, - pārmaksa)",null,null,null,null,"(+ parāds, - pārmaksa)",null,null,"(+ parāds, - pārmaksa)"]
[null,null,null,null,null,null,"VSAOI",null,null,null,null,"IIN",null,null,"Riska nodeva"]
[null,null,null,null,null,null,null,"VG sakuma saldo",null,null,null,null,"VG sakuma saldo",null,null,"VG sakuma saldo"]
[null,null,null,null,null,null,{"$f":"'VSAOI vertikāli'!O37","v":0},"Aprēķināts - Deklarācija",null,null,null,{"$f":"'VSAOI vertikāli'!O45","v":0},"Aprēķināts ",null,{"$f":"'VSAOI vertikāli'!O53","v":0},"Aprēķināts "]
[null,null,null,null,null,null,{"$f":"'VSAOI vertikāli'!O38","v":0},"Aprēķināts - Citi",null,null,null,{"$f":"'VSAOI vertikāli'!O46","v":0},"Aprēķināts - CIti",null,{"$f":"'VSAOI vertikāli'!O54","v":0},"Aprēķināts "]
[null,null,null,null,null,null,{"$f":"G15-SUM(G23:G24)","v":0},"Apr. starpība",null,null,null,{"$f":"L15-SUM(L23:L24)","v":0},"Apr. starpība",null,{"$f":"O15-SUM(O23:O24)","v":0},"Apr. starpība"]
[null,null,null,null,null,null,{"$f":"'VSAOI vertikāli'!O39","v":0},"Iemaksa/Atmaksa/Pārvietošana",null,null,null,{"$f":"'VSAOI vertikāli'!O47","v":0},"Iemaksa/Atmaksa/Pārvietošana"," ",{"$f":"'VSAOI vertikāli'!O55","v":0},"Iemaksa/Atmaksa/Pārvietošana"]
[null,null,null,null,null,null,null,"VG  beigu saldo",null,null,null,null,"VG  beigu saldo",null,null,"VG  beigu saldo"]
[null,null,null,null,null,null,{"$f":"IF(G27=\"\",\"-\",G27-SUM(G22:G23,G26))","v":"-"},"Saldo starpība",null,null,null,{"$f":"IF(L27=\"\",\"-\",L27-SUM(L22:L23,L26))","v":"-"},"Saldo starpība",null,{"$f":"IF(O27=\"\",\"-\",O27-SUM(O22:O23,O26))","v":"-"},"Saldo starpība"]

{"sheet":"VSAOI pa darbiniekiem","index":10,"n_rows":2,"n_cols":17,"rows_kept":2,"cut":false,"hidden":false,"merged":[]}
[]
[null,"Darbienieks","Statuss","Periods","Bruto alga","Aprēķinātās darba devēja VSAOI","Aprēķinātās darba ņēmēja VSAOI","starpības","KOPĀ VSAOI","Aprēķinātais\n IIN (par iepr. Menesi)","Riska nodeva","Nostrādātās stundas","Minimālā stundas likme","Stundas likme","80% no vid.st.\nlikmes valstī","St. likmen \nmēneša\nizmaiņas","DokId"]

{"sheet":"Ienākumi pa gruppam - Alga","index":11,"n_rows":11,"n_cols":8,"rows_kept":11,"cut":false,"hidden":false,"merged":[]}
[]
[null,null,null,"Kritērijs (EUR)","Skaits","%",null,"Bruto alga = Ienākumi + Precizētie ienākumi"]
[null,0.01,500,{"$f":"B3&\"-\"&C3","v":"0.01-500"},{"$f":"COUNTIF($E$11:$P$65536,\">=\"&B3)-E4-E5-E6","v":0},{"$f":"E3/SUM($E$3:$E$6)","v":{"$error":"#DIV/0!"}}]
[null,{"$f":"C3+0.01","v":500.01},1200,{"$f":"B4&\"-\"&C4","v":"500.01-1200"},{"$f":"COUNTIF($E$11:$P$65536,\">=\"&B4)-E5-E6","v":0},{"$f":"E4/SUM($E$3:$E$6)","v":{"$error":"#DIV/0!"}}]
[null,{"$f":"C4+0.01","v":1200.01},1667,{"$f":"B5&\"-\"&C5","v":"1200.01-1667"},{"$f":"COUNTIF($E$11:$P$65536,\">=\"&B5)-E6","v":0},{"$f":"E5/SUM($E$3:$E$6)","v":{"$error":"#DIV/0!"}}]
[null,{"$f":"C5+0.01","v":1667.01},null,{"$f":"B6&\"+\"&C6","v":"1667.01+"},{"$f":"COUNTIF($E$11:$P$65536,\">=\"&B6)","v":0},{"$f":"E6/SUM($E$3:$E$6)","v":{"$error":"#DIV/0!"}}]
[]
[null,null,null,"Sum of Bruto alga","Gads","Menesis"]
[null,null,null,null,"(blank)"]
[null,null,null,"Persona2","(blank)"]
[null,null,null,"(blank)",0]

{"sheet":"Ienākumi pa gruppam - st.likme","index":12,"n_rows":11,"n_cols":8,"rows_kept":11,"cut":false,"hidden":false,"merged":[]}
[]
[null,null,null,"Kritērijs (EUR)","Skaits","%",null,"Bruto alga = Ienākumi + Precizētie ienākumi"]
[null,0.01,5,{"$f":"B3&\"-\"&C3","v":"0.01-5"},{"$f":"COUNTIF($E$11:$P$65536,\">=\"&B3)-E4-E5-E6","v":0},{"$f":"E3/SUM($E$3:$E$6)","v":{"$error":"#DIV/0!"}}]
[null,{"$f":"C3+0.01","v":5.01},10,{"$f":"B4&\"-\"&C4","v":"5.01-10"},{"$f":"COUNTIF($E$11:$P$65536,\">=\"&B4)-E5-E6","v":0},{"$f":"E4/SUM($E$3:$E$6)","v":{"$error":"#DIV/0!"}}]
[null,{"$f":"C4+0.01","v":10.01},20,{"$f":"B5&\"-\"&C5","v":"10.01-20"},{"$f":"COUNTIF($E$11:$P$65536,\">=\"&B5)-E6","v":0},{"$f":"E5/SUM($E$3:$E$6)","v":{"$error":"#DIV/0!"}}]
[null,{"$f":"C5+0.01","v":20.010000000000002},null,{"$f":"B6&\"+\"&C6","v":"20.01+"},{"$f":"COUNTIF($E$11:$P$65536,\">=\"&B6)","v":0},{"$f":"E6/SUM($E$3:$E$6)","v":{"$error":"#DIV/0!"}}]
[]
[null,null,null,"Vid. st. likme ","Gads","Menesis"]
[null,null,null,null,"(blank)"]
[null,null,null,"Persona2","(blank)"]
[null,null,null,"(blank)"]

{"sheet":"Format","index":13,"n_rows":8,"n_cols":17,"rows_kept":8,"cut":false,"hidden":true,"merged":[]}
[]
[null,"Darbienieks","Statuss","Periods","Bruto alga","Aprēķinātās darba devēja VSAOI","Aprēķinātās darba ņēmēja VSAOI","starpības","KOPĀ VSAOI","Aprēķinātais\n IIN (par iepr. Menesi)","Riska nodeva","Nostrādātās stundas","Minimālā stundas likme","Stundas likme","80% no vid.st.\nlikmes valstī","St. likmen \nmēneša\nizmaiņas","DokId"]
[null,null,null,null,{"$f":"SUMIFS('VSAOI data'!$J:$J,'VSAOI data'!$D:$D,$B3)+SUMIFS('VSAOI data'!$L:$L,'VSAOI data'!$D:$D,$B3)","v":0},{"$f":"SUMIFS('VSAOI data'!$AP:$AP,'VSAOI data'!$D:$D,$B3)","v":0},{"$f":"SUMIFS('VSAOI data'!$AO:$AO,'VSAOI data'!$D:$D,$B3)","v":0},{"$f":"I3-SUM(F3:G3)","v":0},{"$f":"SUMIFS('VSAOI data'!$K:$K,'VSAOI data'!$D:$D,$B3)+SUMIFS('VSAOI data'!$M:$M,'VSAOI data'!$D:$D,$B3)","v":0},{"$f":"SUMIFS('VSAOI data'!$N:$N,'VSAOI data'!$D:$D,$B3)","v":0},{"$f":"SUMIFS('VSAOI data'!$P:$P,'VSAOI data'!$D:$D,$B3)","v":0},{"$f":"SUMIFS('VSAOI data'!$Q:$Q,'VSAOI data'!$D:$D,$B3)","v":0},{"$f":"IF(COUNTIFS('VSAOI data'!$AD:$AD,$B3&\"*\")=0,\"-\",(SUMIFS('VSAOI data'!$J:$J,'VSAOI data'!$AD:$AD,$B3&\"*\")+SUMIFS('VSAOI data'!$L:$L,'VSAOI data'!$AD:$AD,$B3&\"*\"))\n/COUNTIFS('VSAOI data'!$AD:$AD,$B3&\"*\"))","v":0},{"$f":"IF(SUMIFS('VSAOI data'!$Q:$Q,'VSAOI data'!$AD:$AD,$B3&\"*\")=0,\"-\",(SUMIFS('VSAOI data'!$J:$J,'VSAOI data'!$D:$D,$B3)+SUMIFS('VSAOI data'!$L:$L,'VSAOI data'!$AD:$AD,$B3&\"*\"))\n/SUMIFS('VSAOI data'!$Q:$Q,'VSAOI data'!$AD:$AD,$B3&\"*\"))","v":"-"}]
[null,null,null,null,{"$f":"SUMIFS('VSAOI data'!$J:$J,'VSAOI data'!$D:$D,$B4,'VSAOI data'!$E:$E,YEAR($D4),'VSAOI data'!$F:$F,MONTH($D4))+SUMIFS('VSAOI data'!$L:$L,'VSAOI data'!$D:$D,$B4,'VSAOI data'!$E:$E,YEAR($D4),'VSAOI data'!$F:$F,MONTH($D4))","v":0},{"$f":"SUMIFS('VSAOI data'!$AP:$AP,'VSAOI data'!$D:$D,$B4,'VSAOI data'!$E:$E,YEAR($D4),'VSAOI data'!$F:$F,MONTH($D4))","v":0},{"$f":"SUMIFS('VSAOI data'!$AO:$AO,'VSAOI data'!$D:$D,$B4,'VSAOI data'!$E:$E,YEAR($D4),'VSAOI data'!$F:$F,MONTH($D4))","v":0},{"$f":"I4-SUM(F4:G4)","v":0},{"$f":"SUMIFS('VSAOI data'!$K:$K,'VSAOI data'!$D:$D,$B4,'VSAOI data'!$E:$E,YEAR($D4),'VSAOI data'!$F:$F,MONTH($D4))+SUMIFS('VSAOI data'!$M:$M,'VSAOI data'!$D:$D,$B4,'VSAOI data'!$E:$E,YEAR($D4),'VSAOI data'!$F:$F,MONTH($D4))","v":0},{"$f":"SUMIFS('VSAOI data'!$N:$N,'VSAOI data'!$D:$D,$B4,'VSAOI data'!$E:$E,YEAR($D4),'VSAOI data'!$F:$F,MONTH($D4))","v":0},{"$f":"SUMIFS('VSAOI data'!$P:$P,'VSAOI data'!$D:$D,$B4,'VSAOI data'!$E:$E,YEAR($D4),'VSAOI data'!$F:$F,MONTH($D4))","v":0},{"$f":"SUMIFS('VSAOI data'!$Q:$Q,'VSAOI data'!$D:$D,$B4,'VSAOI data'!$E:$E,YEAR($D4),'VSAOI data'!$F:$F,MONTH($D4))","v":0},{"$f":"SUMIF('Sakuma lapa'!$N$15:$N$26,D4,'Sakuma lapa'!$R$15:$R$26)","v":0},{"$f":"IF(L4=0,\"-\",ROUND(E4/L4,2))","v":"-"},null,{"$f":"IFERROR(IF(D3=\"\",\"\",N4-N3),\"-\")","v":""}]
[]
[]
[]
[null,null,null,null,null,null,null,null,null,{"$f":"IF(AND(I8=\"\",OR(M8<>\"\",L8<>\"\")),IF(L8=\"\",M8,L8)-1,IF(I8<>\"\",I8,IF(H8<'Sakuma lapa'!$F$16,'Sakuma lapa'!$F$16,\"\")))","v":""}]

{"sheet":"Tiesibas","index":14,"n_rows":18,"n_cols":15,"rows_kept":18,"cut":false,"hidden":true,"merged":[]}
[]
[null,null,null,"DatumsNo","2025-05-05",null,null,"TisWbName","ThisWbCustId","RN","ActivationDate","CompName/Path","Processor/HddSerialId","PROCESSOR_REVISION","USERNAME"]
[null,null,null,"DatumsLidz","2025-05-15",null,null,"VSAOI",1,24,"2020-09-09","-","-","-","-"]
[null,null,null,"Skaitītājs (demo versijai)"]
[]
[null,null,null,"ThisWbName","VSAOI"]
[null,null,null,"ThisWbCustId",1]
[null,null,null,"Limenis","D"]
[]
[null,null,null,"Nesakonfigurētas tiesības!"]
[null,null,null,"Nesakonfigurētas tiesības versijai!"]
[null,null,null,"Versijas periods ir beidzies!"]
[null,null,null,"Versijas apstrādes uzņēmuma RegNr neatbilst definētam!"]
[null,null,null,"Izvelētais RegNr nav definēts šajā versijā!"]
[null,null,null,"Lūdzu aizpildiet reģistrācijas numuru!"]
[null,null,null,"Versijas Importa/Eksporta skaits sasniedza 20!"]
[null,null,null,"Lūdzu veikt faila aktivāciju uz lapas \"Instrukcija\"!"]
[null,null,null,"Fails jau ir aktivizēts šim datoram un lietotājam!"]